Workbook

Sheet CF (hidden)
B2: CONDITIONAL FORMATTING MAP
F3: =INDEX(dms_CF_3.6.5, MATCH(dms_TradingName,dms_CF_TradingName))="Y" | G3: =INDEX(dms_CF_3.6.6.1, MATCH(dms_TradingName,dms_CF_TradingName))="Y" | H3: =INDEX(dms_CF_3.6.6.2, MATCH(dms_TradingName,dms_CF_TradingName))="Y" | I3: =INDEX(dms_CF_3.6.6.3, MATCH(dms_TradingName,dms_CF_TradingName))="Y" | J3: =INDEX(dms_CF_3.6.7.1, MATCH(dms_TradingName,dms_CF_TradingName))="Y" | K3: =INDEX(dms_CF_3.6.7.2, MATCH(dms_TradingName,dms_CF_TradingName))="Y" | L3: =INDEX(dms_CF_3.6.7.3, MATCH(dms_TradingName,dms_CF_TradingName))="Y" | M3: =INDEX(dms_CF_3.6.7.4, MATCH(dms_TradingName,dms_CF_TradingName))="Y" | N3: =INDEX(dms_CF_6.6.1, MATCH(dms_TradingName,dms_CF_TradingName))="Y" | O3: =INDEX(dms_CF_6.6.2, MATCH(dms_TradingName,dms_CF_TradingName))="Y" | P3: =INDEX(dms_CF_6.6.3, MATCH(dms_TradingName,dms_CF_TradingName))="Y" | Q3: =INDEX(dms_CF_6.6.4, MATCH(dms_TradingName,dms_CF_TradingName))="Y" | R3: =INDEX(dms_CF_6.8, MATCH(dms_TradingName,dms_CF_TradingName))="Y" | S3: =INDEX(dms_CF_7.12, MATCH(dms_TradingName,dms_CF_TradingName))="Y" | T3: =INDEX(dms_CF_8.1_A, MATCH(dms_TradingName,dms_CF_TradingName))="Y" | U3: =INDEX(dms_CF_8.1_B, MATCH(dms_TradingName,dms_CF_TradingName))="Y" | V3: =INDEX(dms_CF_8.1_Neg, MATCH(dms_TradingName,dms_CF_TradingName))="Y"
B4: dms_CF_TradingName | C4: JurisdictionList | D4: Sector | E4: Segment | F4: dms_CF_3.6.5 | G4: dms_CF_3.6.6.1 | H4: dms_CF_3.6.6.2 | I4: dms_CF_3.6.6.3 | J4: dms_CF_3.6.7.1 | K4: dms_CF_3.6.7.2 | L4: dms_CF_3.6.7.3 | M4: dms_CF_3.6.7.4 | N4: dms_CF_6.6.1 | O4: dms_CF_6.6.2 | P4: dms_CF_6.6.3 | Q4: dms_CF_6.6.4 | R4: dms_CF_6.8 | S4: dms_CF_7.12 | T4: dms_CF_8.1_A | U4: dms_CF_8.1_B | V4: dms_CF_8.1_Neg | W4: Column1 | X4: Column3
B5: ActewAGL Distribution | C5: ACT | D5: Electricity | E5: Distribution | F5: Y | G5: N | H5: Y | I5: Y | J5: Y | K5: Y | L5: N | M5: Y | N5: N | O5: Y | P5: Y | Q5: Y | R5: Y | S5: Y | T5: N | U5: Y | V5: Y | W5: N
B6: Ausgrid | C6: NSW | D6: Electricity | E6: Distribution | F6: Y | G6: N | H6: Y | I6: Y | J6: N | K6: N | L6: N | M6: Y | N6: N | O6: Y | P6: Y | Q6: Y | R6: Y | S6: Y | T6: N | U6: Y | V6: Y | W6: N
B7: AusNet (D) | C7: Vic | D7: Electricity | E7: Distribution | F7: N | G7: N | H7: N | I7: N | J7: N | K7: N | L7: N | M7: N | N7: N | O7: Y | P7: Y | Q7: Y | R7: Y | S7: N | T7: N | U7: N | V7: Y | W7: N
B8: AusNet (T) | C8: Vic | D8: Electricity | E8: Transmission | F8: N | G8: N | H8: N | I8: N | J8: N | K8: N | L8: N | M8: N | N8: N | O8: N | P8: N | Q8: N | R8: Y | S8: N | T8: N | U8: N | V8: Y | W8: N
B9: CitiPower | C9: Vic | D9: Electricity | E9: Distribution | F9: N | G9: N | H9: N | I9: N | J9: N | K9: N | L9: N | M9: N | N9: N | O9: Y | P9: Y | Q9: Y | R9: Y | S9: N | T9: N | U9: N | V9: Y | W9: N
B10: Directlink | C10: Qld | D10: Electricity | E10: Transmission | F10: N | G10: N | H10: N | I10: N | J10: N | K10: N | L10: N | M10: N | N10: N | O10: N | P10: N | Q10: N | R10: Y | S10: N | T10: N | U10: Y | V10: Y | W10: N
B11: ElectraNet | C11: SA | D11: Electricity | E11: Transmission | F11: N | G11: N | H11: N | I11: N | J11: N | K11: N | L11: N | M11: N | N11: N | O11: N | P11: N | Q11: N | R11: Y | S11: N | T11: N | U11: Y | V11: Y | W11: N
B12: Endeavour Energy | C12: NSW | D12: Electricity | E12: Distribution | F12: Y | G12: N | H12: Y | I12: Y | J12: N | K12: N | L12: N | M12: Y | N12: N | O12: Y | P12: Y | Q12: Y | R12: Y | S12: Y | T12: N | U12: Y | V12: Y | W12: N
B13: Energex | C13: Qld | D13: Electricity | E13: Distribution | F13: Y | G13: N | H13: N | I13: N | J13: N | K13: N | L13: N | M13: N | N13: N | O13: Y | P13: Y | Q13: Y | R13: Y | S13: Y | T13: N | U13: Y | V13: Y | W13: N
B14: Ergon Energy | C14: Qld | D14: Electricity | E14: Distribution | F14: Y | G14: N | H14: Y | I14: Y | J14: N | K14: N | L14: N | M14: N | N14: N | O14: Y | P14: Y | Q14: Y | R14: Y | S14: Y | T14: N | U14: Y | V14: Y | W14: N
B15: Essential Energy | C15: NSW | D15: Electricity | E15: Distribution | F15: Y | G15: N | H15: Y | I15: Y | J15: N | K15: N | L15: N | M15: Y | N15: N | O15: Y | P15: Y | Q15: Y | R15: Y | S15: Y | T15: N | U15: Y | V15: Y | W15: N
B16: Jemena Electricity | C16: Vic | D16: Electricity | E16: Distribution | F16: N | G16: N | H16: N | I16: N | J16: N | K16: N | L16: N | M16: N | N16: N | O16: Y | P16: Y | Q16: Y | R16: Y | S16: N | T16: N | U16: N | V16: Y | W16: N
B17: Murraylink | C17: SA | D17: Electricity | E17: Transmission | F17: N | G17: N | H17: N | I17: N | J17: N | K17: N | L17: N | M17: N | N17: N | O17: N | P17: N | Q17: N | R17: Y | S17: N | T17: N | U17: Y | V17: Y | W17: N
B18: Power and Water | C18: NT | D18: Electricity | E18: Distribution | F18: N | G18: N | H18: N | I18: N | J18: N | K18: Y | L18: N | M18: N | N18: Y | O18: Y | P18: Y | Q18: Y | R18: Y | S18: Y | T18: N | U18: Y | V18: Y | W18: N
B19: Powercor Australia | C19: Vic | D19: Electricity | E19: Distribution | F19: N | G19: N | H19: N | I19: N | J19: N | K19: N | L19: N | M19: N | N19: N | O19: Y | P19: Y | Q19: Y | R19: Y | S19: N | T19: N | U19: N | V19: Y | W19: N
B20: Powerlink | C20: Qld | D20: Electricity | E20: Transmission | F20: N | G20: N | H20: N | I20: N | J20: N | K20: N | L20: N | M20: N | N20: N | O20: N | P20: N | Q20: N | R20: Y | S20: N | T20: N | U20: Y | V20: Y | W20: N
B21: SA Power Networks | C21: SA | D21: Electricity | E21: Distribution | F21: Y | G21: N | H21: N | I21: N | J21: N | K21: N | L21: N | M21: N | N21: N | O21: Y | P21: Y | Q21: Y | R21: Y | S21: Y | T21: Y | U21: Y | V21: N | W21: N
B22: TasNetworks (D) | C22: Tas | D22: Electricity | E22: Distribution | F22: Y | G22: N | H22: N | I22: N | J22: N | K22: N | L22: N | M22: N | N22: N | O22: Y | P22: Y | Q22: Y | R22: Y | S22: Y | T22: N | U22: Y | V22: Y | W22: N
B23: TasNetworks (T) | C23: Tas | D23: Electricity | E23: Transmission | F23: N | G23: N | H23: N | I23: N | J23: N | K23: N | L23: N | M23: N | N23: N | O23: N | P23: N | Q23: N | R23: Y | S23: N | T23: N | U23: Y | V23: Y | W23: N
B24: TransGrid | C24: NSW | D24: Electricity | E24: Transmission | F24: N | G24: N | H24: N | I24: N | J24: N | K24: N | L24: N | M24: N | N24: N | O24: N | P24: N | Q24: N | R24: Y | S24: N | T24: N | U24: Y | V24: Y | W24: N
B25: United Energy | C25: Vic | D25: Electricity | E25: Distribution | F25: N | G25: N | H25: N | I25: N | J25: N | K25: N | L25: N | M25: N | N25: N | O25: Y | P25: Y | Q25: Y | R25: Y | S25: N | T25: N | U25: N | V25: Y | W25: N

Sheet AER only (hidden)
B1: Data in these columns used for data validation and database purposes.
B2: Date last modified: | C2: 2017-01-16 | D2: added (Albury and Victora) for AGN
C3: 2016-10-17 | D3: updated TransGrid's correct legal name, corrected TasNetworks (T) to June financial year
C4: 2017-02-01 | D4: inserted Power and Water, added NRs (dms_FeederCat_1 and dms_FeederCat_2)
C5: 2017-03-03 | D5: inserted AEMO as a business | AB5: FOR ELECTRICITY BUSINESSES ONLY
C6: 2018-03-28 | D6: major changes to accommodate STPIS
C7: Template Version | D7: 5 | AB7: Feeder Types | AF7: TasNetworks (D) | AG7: MAIFI flag | AH7: Feeder Names
AB9: CBD | AC9: Urban | AD9: Short rural | AE9: long rural | AF9: EXTRA
B10: dms_TradingName_List | C10: dms_TradingNameFull_List | D10: dms_ABN_List | E10: dms_JurisdictionList | F10: dms_Sector_List | G10: dms_Segment_List | H10: dms_FormControl_List | I10: dms_RPT_List | J10: dms_RPTMonth_List | K10: dms_CRCPlength_List | L10: dms_FRCPlength_List | M10: dms_663_List | N10: dms_DeterminationRef_List | O10: dms_Addr1_List | P10: dms_Addr2_List | Q10: dms_Suburb_List | R10: dms_State_List | S10: dms_PostCode_List | T10: dms_PAddr1_List | U10: dms_PAddr2_List | V10: dms_PSuburb_List | W10: dms_PState_List | X10: dms_PPostCode_List | Y10: dms_ContactName1_List | Z10: dms_ContactPh1_List | AA10: dms_ContactEmail_List | AB10: dms_CBD_flag | AC10: dms_Urban_flag | AD10: dms_ShortRural_flag | AE10: dms_LongRural_flag | AF10: dms_FeederType_5_flag | AG10: dms_MAIFI_flag_List | AH10: dms_FeederName_1 | AI10: dms_FeederName_2 | AJ10: dms_FeederName_3 | AK10: dms_FeederName_4 | AL10: dms_FeederName_5 | AM10: dms_Public_Lighting_List | AN10: Column1
B11: ActewAGL Distribution | C11: ActewAGL Distribution | D11: 76670568688 | E11: ACT | F11: Electricity | G11: Distribution | H11: Revenue cap | I11: Financial | J11: June | K11: 5 | L11: 5 | M11: 5 | N11: 2014-19 Distribution Determination | O11: 40 Bunda Street | Q11: CANBERRA | R11: ACT | S11: 2600 | T11: GPO BOX 366 | V11: CANBERRA | W11: ACT | X11: 2601 | Y11: Robert Walker | Z11: 02 6248 3847 | AA11: robert.walker@actewagle.com.au | AB11: NO | AC11: YES | AD11: YES | AE11: NO | AF11: NO | AG11: NO | AH11: CBD | AI11: Urban | AJ11: Short rural | AK11: Long rural | AM11: YES | AN11: ActewAGL Distribution
B12: ActewAGL Distribution (Tx Assets) | C12: ActewAGL Distribution (Tx Assets) | D12: 76670568688 | E12: ACT | F12: Electricity | G12: Distribution | H12: Revenue cap | I12: Financial | J12: June | K12: 5 | L12: 5 | M12: 5 | N12: distribution determination | O12: 40 Bunda Street | Q12: CANBERRA | R12: ACT | S12: 2600 | T12: GPO BOX 366 | V12: CANBERRA | W12: ACT | X12: 2601 | Y12: Robert Walker | Z12: 02 6248 3847 | AA12: robert.walker@actewagle.com.au | AB12: NO | AC12: YES | AD12: YES | AE12: NO | AF12: NO | AG12: NO | AH12: CBD | AI12: Urban | AJ12: Short rural | AK12: Long rural | AM12: NO | AN12: ActewAGL Distribution (Tx Assets)
B13: ActewAGL Gas | C13: ActewAGL Gas | D13: 76670568688 | E13: ACT | F13: Gas | G13: Distribution | H13: Weighted average price cap | I13: Financial | J13: June | K13: 5 | L13: 5 | M13: x | O13: 40 Bunda Street | Q13: CANBERRA | R13: ACT | S13: 2600 | T13: GPO BOX 366 | V13: CANBERRA | W13: ACT | X13: 2601 | Y13: Philip Deamer | Z13: 02 6248 3438 | AA13: GasAAReview@actewagl.com.au | AB13: NO | AC13: NO | AD13: NO | AE13: NO | AF13: NO | AH13: CBD | AI13: Urban | AJ13: Short rural | AK13: Long rural | AM13: NO | AN13: ActewAGL Gas
B14: AEMO | C14: Australian Energy Market Operator Ltd | D14: 94072010327 | E14: Vic | F14: Electricity | G14: Transmission | H14: - | I14: Financial | J14: March | K14: 5 | L14: 5 | M14: x | N14: - | O14: Level 22 | P14: 530 Collins Street | Q14: MELBOURNE | R14: VIC | S14: 3000 | T14: GPO Box 2008 | V14: MELBOURNE | W14: VIC | X14: 3001 | AB14: NO | AC14: NO | AD14: NO | AE14: NO | AF14: NO | AH14: CBD | AI14: Urban | AJ14: Short rural | AK14: Long rural | AM14: NO | AN14: AEMO
B15: AGN (Albury and Victoria) | C15: Australian Gas Networks Limited (reporting data for Albury and Victoria) | D15: 19078551685 | E15: Vic | F15: Gas | G15: Distribution | H15: Weighted average price cap | I15: Calendar | J15: December | K15: 5 | L15: 5 | M15: x | O15: Level 6 | P15: 400 King William Street | Q15: ADELAIDE | R15: SA | S15: 5000 | T15: PO Box 6468 | U15: Halifax Street | V15: ADELAIDE | W15: SA | X15: 5000 | Y15: Craig de Laine | Z15: 08 8418 1129 | AA15: craig.delaine@agn.com.au | AB15: NO | AC15: NO | AD15: NO | AE15: NO | AF15: NO | AH15: CBD | AI15: Urban | AJ15: Short rural | AK15: Long rural | AM15: NO | AN15: AGN (Albury)
B16: AGN (Albury) | C16: Australian Gas Networks Limited (reporting data for Albury) | D16: 19078551685 | E16: Vic | F16: Gas | G16: Distribution | H16: Weighted average price cap | I16: Calendar | J16: December | K16: 5 | L16: 5 | M16: x | O16: Level 6 | P16: 400 King William Street | Q16: ADELAIDE | R16: SA | S16: 5000 | T16: PO Box 6468 | U16: Halifax Street | V16: ADELAIDE | W16: SA | X16: 5000 | Y16: Craig de Laine | Z16: 08 8418 1129 | AA16: craig.delaine@agn.com.au | AB16: NO | AC16: NO | AD16: NO | AE16: NO | AF16: NO | AH16: CBD | AI16: Urban | AJ16: Short rural | AK16: Long rural | AM16: NO
B17: AGN (SA) | C17: Australian Gas Networks Limited (reporting data for SA) | D17: 19078551685 | E17: SA | F17: Gas | G17: Distribution | H17: Weighted average price cap | I17: Financial | J17: June | K17: 5 | L17: 5 | M17: 5 | N17: distribution determination | O17: Level 6 | P17: 400 King William Street | Q17: ADELAIDE | R17: SA | S17: 5000 | T17: PO Box 6468 | U17: Halifax Street | V17: ADELAIDE | W17: SA | X17: 5000 | Y17: Craig de Laine | Z17: 08 8418 1129 | AA17: craig.delaine@agn.com.au | AB17: NO | AC17: NO | AD17: NO | AE17: NO | AF17: NO | AH17: CBD | AI17: Urban | AJ17: Short rural | AK17: Long rural | AM17: NO | AN17: AGN (SA)
B18: AGN (Victoria) | C18: Australian Gas Networks Limited (reporting data for Victoria) | D18: 19078551685 | E18: Vic | F18: Gas | G18: Distribution | H18: Weighted average price cap | I18: Calendar | J18: December | K18: 5 | L18: 5 | M18: x | O18: Level 6 | P18: 400 King William Street | Q18: ADELAIDE | R18: SA | S18: 5000 | T18: PO Box 6468 | U18: Halifax Street | V18: ADELAIDE | W18: SA | X18: 5000 | Y18: Craig de Laine | Z18: 08 8418 1129 | AA18: craig.delaine@agn.com.au | AB18: NO | AC18: NO | AD18: NO | AE18: NO | AF18: NO | AH18: CBD | AI18: Urban | AJ18: Short rural | AK18: Long rural | AM18: NO | AN18: AGN (Victoria)
B19: Amadeus | C19: APT Pipelines (NT) Pty Ltd | D19: 39009737393 | E19: NT | F19: Gas | G19: Transmission | H19: Weighted average price cap | I19: Financial | J19: June | K19: 5 | L19: 5 | M19: x | N19: n/a | O19: Level 19, HSBC Building | P19: 580 George Street | Q19: SYDNEY | R19: NSW | S19: 2000 | T19: Level 19, HSBC Building | U19: 580 George Street | V19: SYDNEY | W19: NSW | X19: 2000 | Y19: Alexandra Curran | Z19: 02 9275 0020 | AA19: alexandra.curran@apa.com.au | AB19: NO | AC19: NO | AD19: NO | AE19: NO | AF19: NO | AH19: CBD | AI19: Urban | AJ19: Short rural | AK19: Long rural | AM19: NO | AN19: Amadeus
B20: APA GasNet | C20: APA GasNet Australia (Operations) Pty Ltd | D20: 065083009 | E20: Vic | F20: Gas | G20: Transmission | H20: Weighted average price cap | I20: Calendar | J20: December | K20: 5 | L20: 5 | M20: x | O20: Level 19, HSBC Building | P20: 580 George Street | Q20: SYDNEY | R20: NSW | S20: 2000 | T20: PO Box R41 | V20: ROYAL EXCHANGE | W20: NSW | X20: 1225 | Y20: Alexandra Curran | Z20: 02 9275 0020 | AA20: alexandra.curran@apa.com.au | AB20: NO | AC20: NO | AD20: NO | AE20: NO | AF20: NO | AH20: CBD | AI20: Urban | AJ20: Short rural | AK20: Long rural | AM20: NO | AN20: APA GasNet
B21: Ausgrid | C21: Ausgrid | D21: 78508211731 | E21: NSW | F21: Electricity | G21: Distribution | H21: Revenue cap | I21: Financial | J21: June | K21: 5 | L21: 5 | M21: 5 | N21: 2014-19 Distribution Determination | O21: 570 George St | Q21: SYDNEY | R21: NSW | S21: 2000 | T21: GPO Box 4009 | V21: SYDNEY | W21: NSW | X21: 2001 | Y21: John Thomson | Z21: 02 9269 2312 | AA21: john.thomson@ausgrid.com.au | AB21: YES | AC21: YES | AD21: YES | AE21: YES | AF21: NO | AG21: NO | AH21: CBD | AI21: Urban | AJ21: Short rural | AK21: Long rural | AM21: YES | AN21: Ausgrid
B22: Ausgrid (Tx Assets) | C22: Ausgrid (Tx Assets) | D22: 67505337385 | E22: NSW | F22: Electricity | G22: Distribution | H22: Revenue cap | I22: Financial | J22: June | K22: 5 | L22: 5 | M22: 5 | N22: distribution determination | O22: 570 George St | Q22: SYDNEY | R22: NSW | S22: 2000 | T22: GPO Box 4009 | V22: SYDNEY | W22: NSW | X22: 2001 | Y22: John Thomson | Z22: 02 9269 2312 | AA22: john.thomson@ausgrid.com.au | AB22: YES | AC22: YES | AD22: YES | AE22: YES | AF22: NO | AG22: NO | AH22: CBD | AI22: Urban | AJ22: Short rural | AK22: Long rural | AM22: NO | AN22: Ausgrid (Tx Assets)
B23: AusNet (D) | C23: AusNet Electricity Services Pty Ltd | D23: 91064651118 | E23: Vic | F23: Electricity | G23: Distribution | H23: Revenue cap | I23: Calendar | J23: December | K23: 5 | L23: 5 | M23: 2 | N23: 2016-20 Distribution Determination | O23: Level 32 | P23: 2 Southbank Boulevard | Q23: SOUTHBANK | R23: Vic | S23: 3006 | T23: Locked Bag 14051 | V23: MELBOURNE CITY MAIL CENTRE | W23: VIC | X23: 8001 | Y23: please provide contact details | AB23: NO | AC23: YES | AD23: YES | AE23: YES | AF23: NO | AH23: CBD | AI23: Urban | AJ23: Short rural | AK23: Long rural | AM23: YES | AN23: AusNet (D)
B24: AusNet (Gas) | C24: AusNet Gas Services | D24: 086015036 | E24: Vic | F24: Gas | G24: Distribution | H24: Weighted average price cap | I24: Calendar | J24: December | K24: 5 | L24: 5 | M24: X | O24: Level 19, HSBC Building | P24: 580 George Street | Q24: SYDNEY | R24: NSW | S24: 2000 | T24: PO Box R41 | V24: ROYAL EXCHANGE | W24: NSW | X24: 1225 | Y24: Alexandra Curran | Z24: 02 9275 0020 | AA24: alexandra.curran@apa.com.au | AB24: NO | AC24: NO | AD24: NO | AE24: NO | AF24: NO | AH24: CBD | AI24: Urban | AJ24: Short rural | AK24: Long rural | AM24: NO | AN24: AusNet (Gas)
B25: AusNet (T) | C25: Ausnet Services (Transmission) Ltd | D25: 48116124362 | E25: Vic | F25: Electricity | G25: Transmission | H25: Revenue cap | I25: Financial | J25: March | K25: 5 | L25: 5 | M25: 2 | N25: transmission determination | O25: Level 32 | P25: 2 Southbank Boulevard | Q25: SOUTHBANK | R25: Vic | S25: 3006 | T25: Locked Bag 14051 | V25: MELBOURNE CITY MAIL CENTRE | W25: Vic | X25: 8001 | Y25: Clare Thompson | Z25: 03 9695 6670 | AA25: clare.e.thompson@ausnetservices.com.au | AB25: NO | AC25: NO | AD25: NO | AE25: NO | AF25: NO | AH25: CBD | AI25: Urban | AJ25: Short rural | AK25: Long rural | AM25: NO | AN25: AusNet (T)
B26: Australian Distribution Co. | C26: Australian Distribution Co. | D26: 11222333444 | E26: - | F26: Electricity | G26: Distribution | H26: Revenue cap | I26: Financial | J26: June | K26: 5 | L26: 5 | M26: 2 | N26: distribution determination | O26: 123 Straight Street | Q26: SYDNEY | R26: NSW | S26: 2000 | T26: PO Box 123 | V26: SYDNEY | W26: NSW | X26: 2000 | Y26: Bob Smith | Z26: 02 1234 5678 | AA26: bob@auselec.net.au | AB26: YES | AC26: YES | AD26: YES | AE26: YES | AF26: NO | AH26: CBD | AI26: Urban | AJ26: Short rural | AK26: Long rural | AM26: YES | AN26: Australian Distribution Co.
B27: Australian Distribution Co. (Vic) | C27: Australian Distribution Co. (Victoria) | D27: 11222333444 | E27: Vic | F27: Electricity | G27: Distribution | H27: Revenue cap | I27: Calendar | J27: December | K27: 5 | L27: 5 | M27: 2 | N27: distribution determination | O27: 123 Straight Street | Q27: MELBOURNE | R27: Vic | S27: 3000 | T27: PO Box 123 | V27: MELBOURNE | W27: VIC | X27: 3000 | Y27: Bob Smith | Z27: 02 1234 5678 | AA27: bob@auselec.net.au | AB27: NO | AC27: NO | AD27: NO | AE27: NO | AF27: NO | AH27: CBD | AI27: Urban | AJ27: Short rural | AK27: Long rural | AM27: YES | AN27: Australian Distribution Co. (Vic)
B28: Australian Distribution Co. (Gas) | C28: Australian Gas Distribution Co. | D28: 11222333444 | E28: NSW | F28: Gas | G28: Distribution | H28: Weighted average price cap | I28: Financial | J28: June | K28: 5 | L28: 5 | O28: 123 Straight Street | Q28: SYDNEY | R28: NSW | S28: 2000 | T28: PO Box 123 | V28: SYDNEY | W28: NSW | X28: 2000 | Y28: Bob Smith | Z28: 02 1234 5678 | AA28: bob@auselec.net.au | AB28: NO | AC28: NO | AD28: NO | AE28: NO | AF28: NO | AH28: CBD | AI28: Urban | AJ28: Short rural | AK28: Long rural | AM28: NO | AN28: Australian Distribution Co. (Vic)
B29: Australian Transmission Co. | C29: Australian Transmission Co. | D29: 11222333444 | E29: - | F29: Electricity | G29: Transmission | H29: Revenue cap | I29: Financial | J29: June | K29: 5 | L29: 5 | M29: 5 | N29: transmission determination | O29: 123 Straight Street | Q29: SYDNEY | R29: NSW | S29: 2000 | T29: PO Box 123 | V29: SYDNEY | W29: NSW | X29: 2000 | Y29: Bob Smith | Z29: 02 1234 5678 | AA29: bob@auselec.net.au | AB29: NO | AC29: NO | AD29: NO | AE29: NO | AF29: NO | AH29: CBD | AI29: Urban | AJ29: Short rural | AK29: Long rural | AM29: NO | AN29: Australian Transmission Co.
B30: Central Ranges Pipeline (D) | C30: Central Ranges Pipeline Pty Ltd | D30: 108218355 | E30: NSW | F30: Gas | G30: Distribution | H30: Weighted average price cap | I30: Financial | J30: June | K30: 15 | L30: 5 | M30: 5 | N30: distribution determination | O30: Level 19 | P30: 580 George Street | Q30: SYDNEY | R30: NSW | S30: 2000 | T30: PO Box R41 | V30: ROYAL EXCHANGE | W30: NSW | X30: 1225 | Y30: Scott Young | Z30: 02 9275 0031 | AA30: scott.young@apa.com.au | AB30: NO | AC30: NO | AD30: NO | AE30: NO | AF30: NO | AH30: CBD | AI30: Urban | AJ30: Short rural | AK30: Long rural | AM30: NO
B31: Central Ranges Pipeline (T) | C31: Central Ranges Pipeline Pty Ltd | D31: 108218355 | E31: NSW | F31: Gas | G31: Distribution | H31: Weighted average price cap | I31: Financial | J31: June | K31: 14 | L31: 5 | M31: 5 | N31: transmission determination | O31: Level 19 | P31: 580 George Street | Q31: SYDNEY | R31: NSW | S31: 2000 | T31: PO Box R41 | V31: ROYAL EXCHANGE | W31: NSW | X31: 1225 | Y31: Scott Young | Z31: 02 9275 0031 | AA31: scott.young@apa.com.au | AB31: NO | AC31: NO | AD31: NO | AE31: NO | AF31: NO | AH31: CBD | AI31: Urban | AJ31: Short rural | AK31: Long rural | AM31: NO
B32: CitiPower | C32: CitiPower | D32: 76064651056 | E32: Vic | F32: Electricity | G32: Distribution | H32: Revenue cap | I32: Calendar | J32: December | K32: 5 | L32: 5 | M32: 2 | N32: 2016-20 Distribution Determination | O32: 40 Market Street | Q32: MELBOURNE | R32: Vic | S32: 3000 | T32: Locked Bag 14090 | V32: MELBOURNE | W32: VIC | X32: 8001 | Y32: Hannah Williams | Z32: 03 9683 4088 | AA32: hwilliams@powercor.com.au | AB32: YES | AC32: YES | AD32: NO | AE32: NO | AF32: NO | AH32: CBD | AI32: Urban | AJ32: Short rural | AK32: Long rural | AM32: YES | AN32: CitiPower
B33: Directlink | C33: Directlink | D33: 16779340889 | E33: Qld | F33: Electricity | G33: Transmission | H33: Revenue cap | I33: Financial | J33: June | K33: 9 | L33: 5 | M33: 5 | N33: transmission determination | O33: Level 19, HSBC Building | P33: 580 George Street | Q33: SYDNEY | R33: NSW | S33: 2000 | T33: PO Box R41 | V33: ROYAL EXCHANGE | W33: NSW | X33: 1225 | Y33: Scott Young | Z33: 02 9275 0031 | AA33: scott.young@apa.com.au | AB33: NO | AC33: NO | AD33: NO | AE33: NO | AF33: NO | AH33: CBD | AI33: Urban | AJ33: Short rural | AK33: Long rural | AM33: NO | AN33: Directlink
B34: ElectraNet | C34: ElectraNet | D34: 41094482416 | E34: SA | F34: Electricity | G34: Transmission | H34: Revenue cap | I34: Financial | J34: June | K34: 5 | L34: 5 | M34: 5 | N34: transmission determination | O34: 52-55 East Terrace | P34: Rymill Park | Q34: ADELAIDE | R34: SA | S34: 5000 | T34: PO Box 7096 | U34: Hutt Street Post Office | V34: ADELAIDE | W34: SA | X34: 5000 | Y34: Bill Jackson | Z34: 08 8404 7969 | AA34: jackson.bill@electranet.com.au | AB34: NO | AC34: NO | AD34: NO | AE34: NO | AF34: NO | AH34: CBD | AI34: Urban | AJ34: Short rural | AK34: Long rural | AM34: NO | AN34: ElectraNet
B35: Endeavour Energy | C35: Endeavour Energy | D35: 11247365823 | E35: NSW | F35: Electricity | G35: Distribution | H35: Revenue cap | I35: Financial | J35: June | K35: 5 | L35: 5 | M35: 5 | N35: 2014-19 Distribution Determination | O35: 51 Huntingwood Drive | Q35: HUNTINGWOOD | R35: NSW | S35: 2148 | T35: PO Box 811 | V35: SEVEN HILLS | W35: NSW | X35: 1730 | Y35: Jon Hocking | Z35: 02 9853 4386 / 0407 348 156 | AA35: Jon.Hocking@Endeavourenergy.com.au | AB35: NO | AC35: YES | AD35: YES | AE35: YES | AF35: NO | AG35: NO | AH35: CBD | AI35: Urban | AJ35: Short rural | AK35: Long rural | AM35: YES | AN35: Endeavour Energy
B36: Energex | C36: Energex | D36: 40078849055 | E36: Qld | F36: Electricity | G36: Distribution | H36: Revenue cap | I36: Financial | J36: June | K36: 5 | L36: 5 | M36: 5 | N36: 2015-20 Distribution Determination | O36: 26 Reddacliff Street | Q36: NEWSTEAD | R36: Qld | S36: 4006 | T36: 26 Reddacliff Street | V36: NEWSTEAD | W36: QLD | X36: 4006 | Y36: Jenny Doyle, Group Manager Regulatory Affairs | Z36: (07) 3851 6416 | AA36: jenny.doyle@ergon.com.au | AB36: YES | AC36: YES | AD36: YES | AE36: NO | AF36: NO | AG36: NO | AH36: CBD | AI36: Urban | AJ36: Short rural | AK36: Long rural | AM36: YES | AN36: Energex
B37: Ergon Energy | C37: Ergon Energy | D37: 50087646062 | E37: Qld | F37: Electricity | G37: Distribution | H37: Revenue cap | I37: Financial | J37: June | K37: 5 | L37: 5 | M37: 5 | N37: 2015-20 Distribution Determination | O37: 22 Walker Street | Q37: TOWNSVILLE | R37: Qld | S37: 4810 | T37: Po Box 264 | V37: FORTITUDE VALLEY | W37: QLD | X37: 4006 | Y37: Jenny Doyle, Group Manager Regulatory Affairs | Z37: (07) 3851 6416 | AA37: jenny.doyle@ergon.com.au | AB37: NO | AC37: YES | AD37: YES | AE37: YES | AF37: NO | AG37: NO | AH37: CBD | AI37: Urban | AJ37: Short rural | AK37: Long rural | AM37: YES | AN37: Ergon Energy
B38: Essential Energy | C38: Essential Energy | D38: 37428185226 | E38: NSW | F38: Electricity | G38: Distribution | H38: Revenue cap | I38: Financial | J38: June | K38: 5 | L38: 5 | M38: 5 | N38: 2014-19 Distribution Determination | O38: 8 Buller Street | Q38: PORT MACQUARIE | R38: NSW | S38: 2444 | T38: PO Box 5730 | V38: PORT MACQUARIE | W38: NSW | X38: 2444 | Y38: Catherine Waddell | Z38: 02 6338 3553 | AA38: catherine.waddell@essentialenergy.com.au | AB38: NO | AC38: NO | AD38: YES | AE38: YES | AF38: NO | AG38: NO | AH38: CBD | AI38: Urban | AJ38: Short rural | AK38: Long rural | AM38: YES | AN38: Essential Energy
B39: Jemena Electricity | C39: Jemena Electricity | D39: 82064651083 | E39: Vic | F39: Electricity | G39: Distribution | H39: Revenue cap | I39: Calendar | J39: December | K39: 5 | L39: 5 | M39: 2 | N39: 2016-20 Distribution Determination | O39: Level 16 | P39: 567 Collins Street | Q39: MELBOURNE | R39: VIC | S39: 3000 | T39: PO Box 16182 | V39: MELBOURNE | W39: VIC | X39: 8001 | Y39: Matthew Serpell | Z39: 03 9173 8231 | AA39: matthew.serpell@jemena.com.au | AB39: NO | AC39: YES | AD39: YES | AE39: NO | AF39: NO | AH39: CBD | AI39: Urban | AJ39: Short rural | AK39: Long rural | AM39: YES | AN39: Jemena Electricity
B40: JGN | C40: Jemena Gas Networks (NSW) Ltd | D40: 003 004 322 | E40: NSW | F40: Gas | G40: Distribution | H40: Weighted average price cap | I40: Financial | J40: June | K40: 5 | L40: 5 | Y40: please provide contact details | AB40: NO | AC40: NO | AD40: NO | AE40: NO | AF40: NO | AH40: CBD | AI40: Urban | AJ40: Short rural | AK40: Long rural | AM40: NO | AN40: JGN
B41: Multinet Gas | C41: Multinet Gas (DB No.1) Pty Ltd (ACN 086 026 986), Multinet Gas (DB No.2) Pty Ltd (ACN 086 230 122) | D41: 086026986 | E41: Vic | F41: Gas | G41: Distribution | H41: Weighted average price cap | I41: Calendar | J41: December | K41: 5 | L41: 5 | M41: x | O41: 43-45 Centreway | Q41: MT WAVERLEY | R41: Vic | S41: 3149 | Y41: Andrew Schille | Z41: 03 8846 9860 | AA41: andrew.schille@ue.com.au | AB41: NO | AC41: NO | AD41: NO | AE41: NO | AF41: NO | AH41: CBD | AI41: Urban | AJ41: Short rural | AK41: Long rural | AM41: NO | AN41: Multinet Gas
B42: Murraylink | C42: Murraylink | D42: 79181207909 | E42: SA | F42: Electricity | G42: Transmission | H42: Revenue cap | I42: Financial | J42: June | K42: 5 | L42: 5 | M42: 5 | N42: transmission determination | O42: Level 19 | P42: 580 George Street | Q42: SYDNEY | R42: NSW | S42: 2000 | T42: PO Box R41 | V42: ROYAL EXCHANGE | W42: NSW | X42: 1225 | Y42: Scott Young | Z42: 02 9275 0031 | AA42: scott.young@apa.com.au | AB42: NO | AC42: NO | AD42: NO | AE42: NO | AF42: NO | AH42: CBD | AI42: Urban | AJ42: Short rural | AK42: Long rural | AM42: NO | AN42: Murraylink
B43: Power and Water | C43: Power and Water Corporation | D43: 15947352360 | E43: NT | F43: Electricity | G43: Distribution | H43: Revenue cap | I43: Financial | J43: June | K43: 5 | L43: 5 | M43: x | N43: distribution determination | O43: GPO Box 1921 | Q43: DARWIN | R43: NT | S43: 801 | T43: GPO Box 1921 | V43: DARWIN | W43: NT | X43: 801 | Y43: Lucy Moon | Z43: 08 8924 5822 | AA43: Lucy.Moon@powerwater.com.au | AB43: YES | AC43: YES | AD43: YES | AE43: YES | AF43: NO | AH43: CBD | AI43: Urban | AJ43: Short rural | AK43: Long rural | AM43: NO | AN43: Power and Water
B44: Powercor Australia | C44: Powercor Australia | D44: 89064651109 | E44: Vic | F44: Electricity | G44: Distribution | H44: Revenue cap | I44: Calendar | J44: December | K44: 5 | L44: 5 | M44: 2 | N44: 2016-20 Distribution Determination | O44: 40 Market Street | Q44: MELBOURNE | R44: Vic | S44: 3000 | T44: Locked bag 14090 | V44: MELBOURNE | W44: VIC | X44: 8001 | Y44: Hannah Williams | Z44: 03 9683 4088 | AA44: hwilliams@powercor.com.au | AB44: NO | AC44: NO | AD44: YES | AE44: YES | AF44: NO | AH44: CBD | AI44: Urban | AJ44: Short rural | AK44: Long rural | AM44: YES | AN44: Powercor Australia
B45: Powerlink | C45: Queensland Electricity Transmission Corporation Limited trading as Powerlink Queensland | D45: 82078849233 | E45: Qld | F45: Electricity | G45: Transmission | H45: Revenue cap | I45: Financial | J45: June | K45: 5 | L45: 5 | M45: 5 | N45: transmission determination | O45: 33 Harold St | Q45: VIRGINIA | R45: Qld | S45: 4014 | T45: PO Box 1193 | V45: VIRGINIA | W45: QLD | X45: 4014 | Y45: Jennifer Harris | Z45: 07 3860 2667 | AA45: jharris@powerlink.com.au | AB45: NO | AC45: NO | AD45: NO | AE45: NO | AF45: NO | AH45: CBD | AI45: Urban | AJ45: Short rural | AK45: Long rural | AM45: NO | AN45: Powerlink
B46: Roma to Brisbane Pipeline | C46: APT Petroleum Pipelines Limited t/a Roma to Brisbane Pipeline | D46: 009 737 393 | E46: Qld | F46: Gas | G46: Transmission | H46: Weighted average price cap | I46: Financial | J46: June | K46: 5 | L46: 5 | M46: x | N46: n/a | O46: 580 George Street | Q46: SYDNEY | R46: NSW | S46: 2000 | T46: PO Box R41 | V46: ROYAL EXCHANGE | W46: NSW | X46: 1225 | Y46: Mark Allen | Z46: 02 9275 0010 | AA46: mark.allen@apa.com.au | AB46: NO | AC46: NO | AD46: NO | AE46: NO | AF46: NO | AH46: CBD | AI46: Urban | AJ46: Short rural | AK46: Long rural | AM46: NO | AN46: Roma to Brisbane Pipeline
B47: SA Power Networks | C47: SA Power Networks | D47: 13332330749 | E47: SA | F47: Electricity | G47: Distribution | H47: Revenue cap | I47: Financial | J47: June | K47: 5 | L47: 5 | M47: 5 | N47: 2015-20 Distribution Determination | O47: 1 Anzac Highway | Q47: KESWICK | R47: SA | S47: 5035 | T47: GPO Box 77 | V47: ADELAIDE | W47: SA | X47: 5000 | Y47: Richard Sibly | Z47: 08 8404 5613 | AA47: richard.sibly@sapowernetworks.com.au | AB47: YES | AC47: YES | AD47: YES | AE47: YES | AF47: NO | AG47: NO | AH47: CBD | AI47: Urban | AJ47: Short rural | AK47: Long rural | AM47: NO | AN47: SA Power Networks
B48: TasNetworks (D) | C48: TasNetworks (D) | D48: 24167357299 | E48: Tas | F48: Electricity | G48: Distribution | H48: Revenue cap | I48: Financial | J48: June | K48: 5 | L48: 5 | M48: 5 | N48: distribution determination | O48: 1-7 Maria Street | Q48: LENAH VALLEY | R48: Tas | S48: 7008 | T48: PO Box 606 | V48: MOONAH | W48: Tas | X48: 7009 | Y48: John Sayers | Z48: 03 6271 6469 | AA48: john.sayers@tasnetworks.com.au | AB48: YES | AC48: YES | AD48: YES | AE48: YES | AF48: YES | AG48: NO | AH48: Critical Infrastructure | AI48: High density commercial | AJ48: Urban | AK48: High density rural | AL48: Low density rural | AM48: YES | AN48: TasNetworks (D)
B49: TasNetworks (T) | C49: TasNetworks (T) | D49: 24167357299 | E49: Tas | F49: Electricity | G49: Transmission | H49: Revenue cap | I49: Financial | J49: June | K49: 5 | L49: 5 | M49: 5 | N49: transmission determination | O49: 1-7 Maria Street | Q49: LENAH VALLEY | R49: Tas | S49: 7008 | T49: PO Box 606 | V49: MOONAH | W49: Tas | X49: 7009 | Y49: John Sayers | Z49: 03 6271 6469 | AA49: john.sayers@tasnetworks.com.au | AB49: NO | AC49: NO | AD49: NO | AE49: NO | AF49: NO | AH49: CBD | AI49: Urban | AJ49: Short rural | AK49: Long rural | AM49: NO | AN49: TasNetworks (T)
B50: TransGrid | C50: NSW Electricity Networks Operations Pty Ltd trading as TransGrid | D50: 70 250 995 390 | E50: NSW | F50: Electricity | G50: Transmission | H50: Revenue cap | I50: Financial | J50: June | K50: 4 | L50: 5 | M50: 5 | N50: transmission determination | O50: 180 Thomas Street | Q50: SYDNEY | R50: NSW | S50: 2000 | T50: PO Box A1000 | V50: SYDNEY SOUTH | W50: NSW | X50: 1235 | Y50: Garrie Chubb | Z50: 0408 210 221 | AA50: garrie.chubb@transgrid.com.au | AB50: NO | AC50: NO | AD50: NO | AE50: NO | AF50: NO | AH50: CBD | AI50: Urban | AJ50: Short rural | AK50: Long rural | AM50: NO | AN50: TransGrid
B51: United Energy | C51: United Energy | D51: 70064651029 | E51: Vic | F51: Electricity | G51: Distribution | H51: Revenue cap | I51: Calendar | J51: December | K51: 5 | L51: 5 | M51: 2 | N51: 2016-20 Distribution Determination | O51: Level 3 | P51: 6 Nexus Court | Q51: MULGRAVE | R51: Vic | S51: 3149 | T51: PO Box 449 | V51: MOUNT WAVERLEY | W51: VIC | X51: 3170 | Y51: Mathew Abraham | Z51: 03 8846 9758 | AA51: mathew.abraham@ue.com.au | AB51: NO | AC51: NO | AD51: YES | AE51: NO | AF51: NO | AH51: CBD | AI51: Urban | AJ51: Short rural | AK51: Long rural | AM51: YES | AN51: United Energy
Z54: For EB & Reset RINs only | AE54: For AARs only
B55: The Reg Year Ending (dms_RYE) must be set to the last year of the regulatory period. For forecast data is is usually (FRCP_y5) for actual it is a single year (CRY). For historical actual data the RYE will need to be set manually in the business details sheet by setting the dms_Multiyear_flag to 1 and putting the correct value in 'dms_Specified_FinalYear. See cells C67:C68 | N55: Drop down selector box for CA & Reset RINs. | O55: For CA & Reset RINs only | Z55: for DNSP only | AE55: For DNSPs only
B56: dms_Model_List | C56: dms_Worksheet_List | E56: dms_RYE_Formula_Result | N56: dms_0203_ProjectType | O56: dms_020303_01_UOM | P56: dms_020501_01_UOM | Q56: dms_020501_02_UOM | R56: dms_020501_03_UOM | S56: dms_020501_04_UOM | T56: dms_020603_01_UOM | U56: dms_020701_01_UOM | V56: dms_020701_02_UOM | W56: dms_020701_01_Rows | X56: dms_040102_01_UOM | Y56: dms_040102_04_UOM | Z56: dms_030601_01_UOM | AA56: dms_030601_02_UOM | AB56: dms_030701_01_UOM | AC56: dms_030702_01_UOM | AD56: dms_030703_01_UOM | AE56: dms_030605_UOM | AF56: dms_03060703_UOM
B57: ARR | C57: ANNUAL REPORTING STATEMENT | E57: =LEFT(dms_SingleYear_FinalYear_Result,2)&RIGHT(dms_SingleYear_FinalYear_Result,2) -> 2018 | F57: =LEFT(dms_SingleYear_FinalYear_Result,2)&RIGHT(dms_SingleYear_FinalYear_Result,2) | H57: Formula errors are OK | N57: New line on new route - single circuit | O57: Circuit line length in km | P57: 0's | Q57: 0's | R57: 0's | S57: 0's | T57: 0's | U57: km | V57: km | W57: Route line length within zone | X57: 0's | Y57: days | Z57: minutes/customer | AA57: minutes/customer | AB57: Customer / km | AC57: % | AD57: km | AE57: number | AF57: number
B58: CA | C58: CATEGORY ANALYSIS | E58: =LEFT(dms_SingleYear_FinalYear_Result,2)&RIGHT(dms_SingleYear_FinalYear_Result,2) -> 2018 | F58: =LEFT(dms_SingleYear_FinalYear_Result,2)&RIGHT(dms_SingleYear_FinalYear_Result,2) | H58: Formula errors are OK | N58: New line on new route - dual circuit | O58: Circuit line length in km | P58: 0's | Q58: 0's | R58: 0's | S58: 0's | T58: 0's | U58: 0's | V58: 0's | W58: Number of maintenance spans | X58: 0's | Y58: 0's | Z58: minutes/customer | AA58: minutes/customer | AB58: MWh/customer | AC58: Number of spans | AE58: number | AF58: number
B59: CESS | C59: CAPITLAL EXPENDITURE SHARING SCHEMING | E59: 2016 | F59: =LEFT(dms_SingleYear_FinalYear_Result,2)&RIGHT(dms_SingleYear_FinalYear_Result,2) | N59: New line on new route - other | O59: Circuit line length in km | P59: MVA added | Q59: MVA added | R59: MVA added | S59: MVA added | T59: 0's | U59: km | V59: km | W59: Total length of maintenance spans | X59: 0's | Y59: $0s | Z59: interruptions/customer | AA59: interruptions/customer | AB59: kVA / customer | AC59: Number of spans | AE59: number | AF59: number
B60: CPI | C60: CPI | N60: Line rebuild over existing route - single circuit | O60: Circuit line length in km | P60: 0's | Q60: 0's | R60: 0's | S60: 0's | T60: 0's | U60: km | V60: km | W60: Length of vegetation corridors | X60: $0s | Y60: 0's | Z60: interruptions/customer | AA60: interruptions/customer | AC60: Number of spans | AE60: number | AF60: number
B61: EB | C61: ECONOMIC BENCHMARKING | E61: =LEFT(dms_SingleYear_FinalYear_Result,2)&RIGHT(dms_SingleYear_FinalYear_Result,2) -> 2018 | F61: =LEFT(dms_SingleYear_FinalYear_Result,2)&RIGHT(dms_SingleYear_FinalYear_Result,2) | H61: Formula errors are OK | N61: Line rebuild over existing route - dual circuit | O61: Number | P61: total spend $0s | Q61: total spend $0s | R61: total spend $0s | S61: total spend $0s | T61: (per cent) | U61: 0's | V61: 0's | W61: Average number of trees per maintenance span | AC61: Number of spans | AE61: number | AF61: (per cent)
B62: PTRM | C62: POST TAX REVENUE MODEL | E62: =LEFT(dms_MultiYear_FinalYear_Result,2)&RIGHT(dms_MultiYear_FinalYear_Result,2) -> 2025 | F62: =LEFT(dms_MultiYear_FinalYear_Result,2)&RIGHT(dms_MultiYear_FinalYear_Result,2) | N62: Reconductor - Single circuit | O62: Number | P62: net circuit km added | Q62: net circuit km added | R62: net circuit km added | S62: net circuit km added | U62: years | V62: years | W62: Average frequency of cutting cycle | AC62: Years | AE62: number
B63: Reset | C63: REGULATORY REPORTING STATEMENT | E63: =LEFT(dms_MultiYear_FinalYear_Result,2)&RIGHT(dms_MultiYear_FinalYear_Result,2) -> 2025 | F63: =LEFT(dms_MultiYear_FinalYear_Result,2)&RIGHT(dms_MultiYear_FinalYear_Result,2) | H63: Formula errors are OK | N63: Reconductor - Dual circuit | O63: Number | P63: total spend $0s | Q63: total spend $0s | R63: total spend $0s | S63: total spend $0s | AC63: Years | AE63: number
B64: RFM | C64: ROLL FORWARD MODEL | E64: =LEFT(dms_CRCP_FinalYear_Result,2)&RIGHT(dms_CRCP_FinalYear_Result,2) -> 2018 | F64: =LEFT(dms_CRCP_FinalYear_Result,2)&RIGHT(dms_CRCP_FinalYear_Result,2) | N64: Other | P64: net circuit km added | Q64: net circuit km added | R64: net circuit km added | S64: net circuit km added | AC64: Trees | AE64: number
B65: WACC | C65: WEIGHTED AVERAGE COST OF CAPITAL | E65: =LEFT(dms_MultiYear_FinalYear_Result,2)&RIGHT(dms_MultiYear_FinalYear_Result,2) -> 2025 | F65: =LEFT(dms_MultiYear_FinalYear_Result,2)&RIGHT(dms_MultiYear_FinalYear_Result,2) | P65: total spend $0s | Q65: total spend $0s | R65: total spend $0s | S65: total spend $0s | AC65: Trees | AE65: number
P66: 0's | R66: $0s | AC66: Defects | AE66: number
B67: dms_DataQuality_List | P67: 0's | AC67: Defects | AE67: number
B68: Actual | P68: 0's | AC68: Spans | AE68: number
B69: Estimate | P69: $0s | AC69: km | AE69: (per cent)
B70: Consolidated | AC70: Spans | AE70: (per cent)
B71: Recast
B72: Public
O73: For PTRM files - this field set the text for the named range "DMS_Xfactor" which in all cases is simply the text "x factors" - this saves putting in each old gas PTRM file | Z73: for TNSP only
B74: For all files either AER or business needs to be able to specify the type of submission | C74: For PTRM & RFM templates we must provide a choice in case they change their form of control - otherwise it is drawn from the business specific lookup table above. | O74: DMS_Xfactor | Z74: dms_030601_01_UOM | AB74: dms_030701_01_UOM | AC74: dms_030702_01_UOM
B75: dms_SourceList | C75: dms_FormControl_Choices | O75: x factors | Z75: % | AB75: Number of spans | AC75: km
B76: After appeal | C76: Revenue cap | Z76: number | AB76: Years | AC76: %
B77: Draft decision | C77: Revenue yield | Z77: number | AB77: Trees | AC77: km
B78: Final decision | C78: Weighted average price cap | Z78: % | AB78: Defects | AC78: number
B79: PTRM update 1 | Z79: number | AB79: Number of spans
B80: PTRM update 2 | Z80: number | AB80: km
B81: PTRM update 3 | Z81: % | AB81: km
B82: PTRM update 4 | Z82: number | AB82: Number of spans
B83: PTRM update 5 | Z83: number
B84: PTRM update 6 | Z84: %
B85: PTRM update 7 | Z85: number
B86: Regulatory proposal | Z86: %
B87: Reporting | Z87: number
B88: Revised regulatory proposal | Z88: %
Z89: number
B93: Reason for interruption | C93: dms_Reason_Interruption_Detailed | D93: dms_Reason_Interruption | E93: dms_STPIS_Exclusion_List | F93: dms_020301_ProjectType_List | G93: dms_020302_ProjectType_List
B94: Animal | C94: Animal impact | D94: Animal | E94: Weather | F94: New substation establishment | G94: New line on new route - single circuit
C95: Animal nesting/burrowing, etc and other | D95: Asset failure | E95: Equipment failure | F95: Capacity upgrade | G95: New line on new route - dual circuit
C96: Other | D96: Other | E96: Operational error | F96: Voltage upgrade | G96: New line on new route - other
B97: Asset failure | C97: LV | D97: Overloads | E97: Vegetation | F97: Other | G97: Line rebuild over existing route - single circuit
C98: Distribution substation | D98: Planned | E98: Animals | G98: Line rebuild over existing route - dual circuit
C99: HV | D99: Network business | E99: Third party impacts | G99: Reconductor - Single circuit
C100: Zone substation | D100: Third party | E100: Transmission failure | G100: Reconductor - Dual circuit
C101: Subtransmission | D101: Unknown | E101: Load shedding | G101: Reconductor - Other
B102: Other | C102: insert description of 'other' | D102: Vegetation | E102: Inter-distributor connection failure | G102: Line upgrade - raising/retensoring
B103: Overloads | C103: - | D103: Weather | E103: Other | G103: Line upgrade - voltage upgrade
B104: Planned | C104: - | D104: 2 - STPIS Exclusion (3.3)(a) | G104: Line upgrade - capacity
B105: Network business | C105: Network error | D105: 3 - STPIS Exclusion (3.3)(a) | G105: String spare circuit
C106: Switching and protection error | D106: 4 - STPIS Exclusion (3.3)(a) | G106: Other
B107: Third party | C107: Fire | D107: 5 - STPIS Exclusion (3.3)(a)
C108: Other | D108: 6 - STPIS Exclusion (3.3)(a)
C109: Dig-in | D109: 7 - STPIS Exclusion (3.3)(a)
C110: Unauthorised access
C111: Vehicle impact
B112: Unknown | C112: Unknown
B113: Vegetation | C113: Blow-in/Fall-in - NSP responsibility
C114: Grow-in - NSP responsibility
C115: Blow-in/Fall-in - Other responsible party
C116: Grow-in - Other responsible party
B117: Weather
B118: 2 - STPIS Exclusion (3.3)(a)
B119: 3 - STPIS Exclusion (3.3)(a)
B120: 4 - STPIS Exclusion (3.3)(a)
B121: 5 - STPIS Exclusion (3.3)(a)
B122: 6 - STPIS Exclusion (3.3)(a)
B123: 7 - STPIS Exclusion (3.3)(a)
B131: These are indeces and lookup values for various dates. All step from the value placed in FRCP_y1 on the business and other details worksheet | C131: =IF(dms_FifthFeeder_flag_NSP="NO","This NSP has only 4 feeder categories","This NSP has 5 feeder categories") -> This NSP has only 4 feeder categories | O131: These date tables are currently used in the Recast templates to provide column headings and conditional formatting
B132: dms_FRCPlength_Num_List | C132: dms_FinalYear_List | D132: dms_CRCPlength_Num_List | E132: dms_CFinalYear_List | F132: dms_FRCP_years | H132: dms_CRCP_years | J132: dms_CRCP_index | L132: dms_Financial_Years | M132: dms_Calendar_Years | O132: CRY from input cell on business sheet | P132: CRY - financial | Q132: dms_FinYears | R132: CRY calendar | S132: dms_CalYears
B133: 1 | C133: dms_FRCP_y1 | D133: 1 | E133: CRCP_y1 | F133: =FRCP_y1 -> 2020-21 | G133: dms_FRCP_y1 | H133: =IF(dms_RPT="financial",VALUE(LEFT(dms_FRCP_y1,4)-1)&"-"&TEXT(VALUE(MID(dms_FRCP_y1,3,2)),"00"),VALUE(LEFT(dms_FRCP_y1,4)-1)) -> 2019-20 | I133: dms_CRCP_yZ | J133: 1 | L133: 2005-06 | M133: 2006 | O133: =CRY -> 2017-18 | P133: =VALUE(LEFT(CRY,4))&"-"&TEXT(MID(CRY,3,2)+1,"00") -> 2017-18 | Q133: dms_CRYf_y1 | R133: =VALUE(LEFT(CRY,4)+1) -> 2018 | S133: dms_CRYc_y1
B134: 2 | C134: dms_FRCP_y2 | D134: 2 | E134: CRCP_y2 | F134: =IF(dms_RPT="financial",VALUE(LEFT(dms_FRCP_y1,4)+1)&"-"&TEXT(VALUE(RIGHT(dms_FRCP_y1,2)+1),"00"),VALUE(LEFT(dms_FRCP_y1,4)+1)) -> 2021-22 | G134: dms_FRCP_y2 | H134: =IF(dms_RPT="financial",VALUE(LEFT(dms_CRCP_yZ,4)-1)&"-"&TEXT(VALUE(MID(dms_CRCP_yZ,3,2)),"00"),VALUE(LEFT(dms_CRCP_yZ,4)-1)) -> 2018-19 | I134: dms_CRCP_yY | J134: 2 | L134: 2006-07 | M134: 2007 | P134: =VALUE(LEFT(dms_CRYf_y1,4)+1)&"-"&TEXT(MID(dms_CRYf_y1,3,2)+2,"00") -> 2018-19 | Q134: dms_CRYf_y2 | R134: =VALUE(LEFT(dms_CRYc_y1,4)+1) -> 2019 | S134: dms_CRYc_y2
B135: 3 | C135: dms_FRCP_y3 | D135: 3 | E135: CRCP_y3 | F135: =IF(dms_RPT="financial",VALUE(LEFT(dms_FRCP_y2,4)+1)&"-"&TEXT(VALUE(RIGHT(dms_FRCP_y2,2)+1),"00"),VALUE(LEFT(dms_FRCP_y2,4)+1)) -> 2022-23 | G135: dms_FRCP_y3 | H135: =IF(dms_RPT="financial",VALUE(LEFT(dms_CRCP_yY,4)-1)&"-"&TEXT(VALUE(MID(dms_CRCP_yY,3,2)),"00"),VALUE(LEFT(dms_CRCP_yY,4)-1)) -> 2017-18 | I135: dms_CRCP_yX | J135: 3 | L135: 2007-08 | M135: 2008 | P135: =VALUE(LEFT(dms_CRYf_y2,4)+1)&"-"&TEXT(MID(dms_CRYf_y2,3,2)+2,"00") -> 2019-20 | Q135: dms_CRYf_y3 | R135: =VALUE(LEFT(dms_CRYc_y2,4)+1) -> 2020 | S135: dms_CRYc_y3
B136: 4 | C136: dms_FRCP_y4 | D136: 4 | E136: CRCP_y4 | F136: =IF(dms_RPT="financial",VALUE(LEFT(dms_FRCP_y3,4)+1)&"-"&TEXT(VALUE(RIGHT(dms_FRCP_y3,2)+1),"00"),VALUE(LEFT(dms_FRCP_y3,4)+1)) -> 2023-24 | G136: dms_FRCP_y4 | H136: =IF(dms_RPT="financial",VALUE(LEFT(dms_CRCP_yX,4)-1)&"-"&TEXT(VALUE(MID(dms_CRCP_yX,3,2)),"00"),VALUE(LEFT(dms_CRCP_yX,4)-1)) -> 2016-17 | I136: dms_CRCP_yW | J136: 4 | L136: 2008-09 | M136: 2009 | P136: =VALUE(LEFT(dms_CRYf_y3,4)+1)&"-"&TEXT(MID(dms_CRYf_y3,3,2)+2,"00") -> 2020-21 | Q136: dms_CRYf_y4 | R136: =VALUE(LEFT(dms_CRYc_y3,4)+1) -> 2021 | S136: dms_CRYc_y4
B137: 5 | C137: dms_FRCP_y5 | D137: 5 | E137: CRCP_y5 | F137: =IF(dms_RPT="financial",VALUE(LEFT(dms_FRCP_y4,4)+1)&"-"&TEXT(VALUE(RIGHT(dms_FRCP_y4,2)+1),"00"),VALUE(LEFT(dms_FRCP_y4,4)+1)) -> 2024-25 | G137: dms_FRCP_y5 | H137: =IF(dms_RPT="financial",VALUE(LEFT(dms_CRCP_yW,4)-1)&"-"&TEXT(VALUE(MID(dms_CRCP_yW,3,2)),"00"),VALUE(LEFT(dms_CRCP_yW,4)-1)) -> 2015-16 | I137: dms_CRCP_yV | J137: 5 | L137: 2009-10 | M137: 2010 | P137: =VALUE(LEFT(dms_CRYf_y4,4)+1)&"-"&TEXT(MID(dms_CRYf_y4,3,2)+2,"00") -> 2021-22 | Q137: dms_CRYf_y5 | R137: =VALUE(LEFT(dms_CRYc_y4,4)+1) -> 2022 | S137: dms_CRYc_y5
B138: 6 | C138: dms_FRCP_y6 | D138: 6 | E138: CRCP_y6 | F138: =IF(dms_RPT="financial",VALUE(LEFT(dms_FRCP_y5,4)+1)&"-"&TEXT(VALUE(RIGHT(dms_FRCP_y5,2)+1),"00"),VALUE(LEFT(dms_FRCP_y5,4)+1)) -> 2025-26 | G138: dms_FRCP_y6 | H138: =IF(dms_RPT="financial",VALUE(LEFT(dms_CRCP_yV,4)-1)&"-"&TEXT(VALUE(MID(dms_CRCP_yV,3,2)),"00"),VALUE(LEFT(dms_CRCP_yV,4)-1)) -> 2014-15 | I138: dms_CRCP_yU | J138: 6 | L138: 2010-11 | M138: 2011 | P138: =VALUE(LEFT(dms_CRYf_y5,4)+1)&"-"&TEXT(MID(dms_CRYf_y5,3,2)+2,"00") -> 2022-23 | Q138: dms_CRYf_y6 | R138: =VALUE(LEFT(dms_CRYc_y5,4)+1) -> 2023 | S138: dms_CRYc_y6
B139: 7 | C139: dms_FRCP_y7 | D139: 7 | E139: CRCP_y7 | F139: =IF(dms_RPT="financial",VALUE(LEFT(dms_FRCP_y6,4)+1)&"-"&TEXT(VALUE(RIGHT(dms_FRCP_y6,2)+1),"00"),VALUE(LEFT(dms_FRCP_y6,4)+1)) -> 2026-27 | G139: dms_FRCP_y7 | H139: =IF(dms_RPT="financial",VALUE(LEFT(dms_CRCP_yU,4)-1)&"-"&TEXT(VALUE(MID(dms_CRCP_yU,3,2)),"00"),VALUE(LEFT(dms_CRCP_yU,4)-1)) -> 2013-14 | I139: dms_CRCP_yT | J139: 7 | L139: 2011-12 | M139: 2012 | P139: =VALUE(LEFT(dms_CRYf_y6,4)+1)&"-"&TEXT(MID(dms_CRYf_y6,3,2)+2,"00") -> 2023-24 | Q139: dms_CRYf_y7 | R139: =VALUE(LEFT(dms_CRYc_y6,4)+1) -> 2024 | S139: dms_CRYc_y7
B140: 8 | C140: dms_FRCP_y8 | D140: 8 | E140: CRCP_y8 | F140: =IF(dms_RPT="financial",VALUE(LEFT(dms_FRCP_y7,4)+1)&"-"&TEXT(VALUE(RIGHT(dms_FRCP_y7,2)+1),"00"),VALUE(LEFT(dms_FRCP_y7,4)+1)) -> 2027-28 | G140: dms_FRCP_y8 | H140: =IF(dms_RPT="financial",VALUE(LEFT(dms_CRCP_yT,4)-1)&"-"&TEXT(VALUE(MID(dms_CRCP_yT,3,2)),"00"),VALUE(LEFT(dms_CRCP_yT,4)-1)) -> 2012-13 | I140: dms_CRCP_yS | J140: 8 | L140: 2012-13 | M140: 2013 | P140: =VALUE(LEFT(dms_CRYf_y7,4)+1)&"-"&TEXT(MID(dms_CRYf_y7,3,2)+2,"00") -> 2024-25 | Q140: dms_CRYf_y8 | R140: =VALUE(LEFT(dms_CRYc_y7,4)+1) -> 2025 | S140: dms_CRYc_y8
B141: 9 | C141: dms_FRCP_y9 | D141: 9 | E141: CRCP_y9 | F141: =IF(dms_RPT="financial",VALUE(LEFT(dms_FRCP_y8,4)+1)&"-"&TEXT(VALUE(RIGHT(dms_FRCP_y8,2)+1),"00"),VALUE(LEFT(dms_FRCP_y8,4)+1)) -> 2028-29 | G141: dms_FRCP_y9 | H141: =IF(dms_RPT="financial",VALUE(LEFT(dms_CRCP_yS,4)-1)&"-"&TEXT(VALUE(MID(dms_CRCP_yS,3,2)),"00"),VALUE(LEFT(dms_CRCP_yS,4)-1)) -> 2011-12 | I141: dms_CRCP_yR | J141: 9 | L141: 2013-14 | M141: 2014 | P141: =VALUE(LEFT(dms_CRYf_y8,4)+1)&"-"&TEXT(MID(dms_CRYf_y8,3,2)+2,"00") -> 2025-26 | Q141: dms_CRYf_y9 | R141: =VALUE(LEFT(dms_CRYc_y8,4)+1) -> 2026 | S141: dms_CRYc_y9
B142: 10 | C142: dms_FRCP_y10 | D142: 10 | E142: CRCP_y10 | F142: =IF(dms_RPT="financial",VALUE(LEFT(dms_FRCP_y9,4)+1)&"-"&TEXT(VALUE(RIGHT(dms_FRCP_y9,2)+1),"00"),VALUE(LEFT(dms_FRCP_y9,4)+1)) -> 2029-30 | G142: dms_FRCP_y10 | H142: =IF(dms_RPT="financial",VALUE(LEFT(dms_CRCP_yR,4)-1)&"-"&TEXT(VALUE(MID(dms_CRCP_yR,3,2)),"00"),VALUE(LEFT(dms_CRCP_yR,4)-1)) -> 2010-11 | I142: dms_CRCP_yQ | J142: 10 | L142: 2014-15 | M142: 2015 | P142: =VALUE(LEFT(dms_CRYf_y9,4)+1)&"-"&TEXT(MID(dms_CRYf_y9,3,2)+2,"00") -> 2026-27 | Q142: dms_CRYf_y10 | R142: =VALUE(LEFT(dms_CRYc_y9,4)+1) -> 2027 | S142: dms_CRYc_y10
B143: 11 | C143: dms_FRCP_y11 | D143: 11 | E143: CRCP_y11 | F143: =IF(dms_RPT="financial",VALUE(LEFT(dms_FRCP_y10,4)+1)&"-"&TEXT(VALUE(RIGHT(dms_FRCP_y10,2)+1),"00"),VALUE(LEFT(dms_FRCP_y10,4)+1)) -> 2030-31 | G143: dms_FRCP_y11 | H143: =IF(dms_RPT="financial",VALUE(LEFT(dms_CRCP_yQ,4)-1)&"-"&TEXT(VALUE(MID(dms_CRCP_yQ,3,2)),"00"),VALUE(LEFT(dms_CRCP_yQ,4)-1)) -> 2009-10 | I143: dms_CRCP_yP | J143: 11 | L143: 2015-16 | M143: 2016 | P143: =VALUE(LEFT(dms_CRYf_y10,4)+1)&"-"&TEXT(MID(dms_CRYf_y10,3,2)+2,"00") -> 2027-28 | Q143: dms_CRYf_y11 | R143: =VALUE(LEFT(dms_CRYc_y10,4)+1) -> 2028 | S143: dms_CRYc_y11
B144: 12 | C144: dms_FRCP_y12 | D144: 12 | E144: CRCP_y12 | F144: =IF(dms_RPT="financial",VALUE(LEFT(dms_FRCP_y11,4)+1)&"-"&TEXT(VALUE(RIGHT(dms_FRCP_y11,2)+1),"00"),VALUE(LEFT(dms_FRCP_y11,4)+1)) -> 2031-32 | G144: dms_FRCP_y12 | H144: =IF(dms_RPT="financial",VALUE(LEFT(dms_CRCP_yP,4)-1)&"-"&TEXT(VALUE(MID(dms_CRCP_yP,3,2)),"00"),VALUE(LEFT(dms_CRCP_yP,4)-1)) -> 2008-09 | I144: dms_CRCP_yO | J144: 12 | L144: 2016-17 | M144: 2017 | P144: =VALUE(LEFT(dms_CRYf_y11,4)+1)&"-"&TEXT(MID(dms_CRYf_y11,3,2)+2,"00") -> 2028-29 | Q144: dms_CRYf_y12 | R144: =VALUE(LEFT(dms_CRYc_y11,4)+1) -> 2029 | S144: dms_CRYc_y12
B145: 13 | C145: dms_FRCP_y13 | D145: 13 | E145: CRCP_y13 | F145: =IF(dms_RPT="financial",VALUE(LEFT(dms_FRCP_y12,4)+1)&"-"&TEXT(VALUE(RIGHT(dms_FRCP_y12,2)+1),"00"),VALUE(LEFT(dms_FRCP_y12,4)+1)) -> 2032-33 | G145: dms_FRCP_y13 | H145: =IF(dms_RPT="financial",VALUE(LEFT(dms_CRCP_yO,4)-1)&"-"&TEXT(VALUE(MID(dms_CRCP_yO,3,2)),"00"),VALUE(LEFT(dms_CRCP_yO,4)-1)) -> 2007-08 | I145: dms_CRCP_yN | J145: 13 | L145: 2017-18 | M145: 2018 | P145: =VALUE(LEFT(dms_CRYf_y12,4)+1)&"-"&TEXT(MID(dms_CRYf_y12,3,2)+2,"00") -> 2029-30 | Q145: dms_CRYf_y13 | R145: =VALUE(LEFT(dms_CRYc_y12,4)+1) -> 2030 | S145: dms_CRYc_y13
B146: 14 | C146: dms_FRCP_y14 | D146: 14 | E146: CRCP_y14 | F146: =IF(dms_RPT="financial",VALUE(LEFT(dms_FRCP_y13,4)+1)&"-"&TEXT(VALUE(RIGHT(dms_FRCP_y13,2)+1),"00"),VALUE(LEFT(dms_FRCP_y13,4)+1)) -> 2033-34 | G146: dms_FRCP_y14 | H146: =IF(dms_RPT="financial",VALUE(LEFT(dms_CRCP_yN,4)-1)&"-"&TEXT(VALUE(MID(dms_CRCP_yN,3,2)),"00"),VALUE(LEFT(dms_CRCP_yN,4)-1)) -> 2006-07 | I146: dms_CRCP_yM | J146: 14 | L146: 2018-19 | M146: 2019 | P146: =VALUE(LEFT(dms_CRYf_y13,4)+1)&"-"&TEXT(MID(dms_CRYf_y13,3,2)+2,"00") -> 2030-31 | Q146: dms_CRYf_y14 | R146: =VALUE(LEFT(dms_CRYc_y13,4)+1) -> 2031 | S146: dms_CRYc_y14
B147: 15 | C147: dms_FRCP_y15 | D147: 15 | E147: CRCP_y15 | F147: =IF(dms_RPT="financial",VALUE(LEFT(dms_FRCP_y14,4)+1)&"-"&TEXT(VALUE(RIGHT(dms_FRCP_y14,2)+1),"00"),VALUE(LEFT(dms_FRCP_y14,4)+1)) -> 2034-35 | G147: dms_FRCP_y15 | H147: =IF(dms_RPT="financial",VALUE(LEFT(dms_CRCP_yM,4)-1)&"-"&TEXT(VALUE(MID(dms_CRCP_yM,3,2)),"00"),VALUE(LEFT(dms_CRCP_yM,4)-1)) -> 2005-06 | I147: dms_CRCP_yL | J147: 15 | L147: 2019-20 | M147: 2020 | P147: =VALUE(LEFT(dms_CRYf_y14,4)+1)&"-"&TEXT(MID(dms_CRYf_y14,3,2)+2,"00") -> 2031-32 | Q147: dms_CRYf_y15 | R147: =VALUE(LEFT(dms_CRYc_y14,4)+1) -> 2032 | S147: dms_CRYc_y15
L148: 2020-21 | M148: 2021 | P148: =VALUE(LEFT(dms_CRYf_y15,4)+1)&"-"&TEXT(MID(dms_CRYf_y15,3,2)+2,"00") -> 2032-33 | Q148: dms_CRYf_y16 | R148: =VALUE(LEFT(dms_CRYc_y15,4)+1) -> 2033 | S148: dms_CRYc_y16
B149: These are drop down lists for businesses to select the correct FRCP_y1 on the business and other details worksheet. This also populates the column headings in the worksheets | L149: 2021-22 | M149: 2022 | P149: =VALUE(LEFT(dms_CRYf_y16,4)+1)&"-"&TEXT(MID(dms_CRYf_y16,3,2)+2,"00") -> 2033-34 | Q149: dms_CRYf_y17 | R149: =VALUE(LEFT(dms_CRYc_y16,4)+1) -> 2034 | S149: dms_CRYc_y17
B150: dms_RCP_fyear_list | C150: dms_CRY_ListF | D150: dms_CRY_ListC | E150: dms_RCP_cyear_list | F150: dms_FRCP_fyear_list | G150: dms_FRCP_ListF | H150: dms_FRCP_ListC | I150: dms_FRCP_cyear_list | L150: 2022-23 | M150: 2023 | P150: =VALUE(LEFT(dms_CRYf_y17,4)+1)&"-"&TEXT(MID(dms_CRYf_y17,3,2)+2,"00") -> 2034-35 | Q150: dms_CRYf_y18 | R150: =VALUE(LEFT(dms_CRYc_y17,4)+1) -> 2035 | S150: dms_CRYc_y18
B151: dms_y1 | C151: =CRY -> 2017-18 | D151: 2006 | E151: dms_cy1 | F151: dms_frcp_fy1 | G151: 2010-11 | H151: 2011 | I151: dms_crcp_cy1 | L151: 2023-24 | M151: 2024 | P151: =VALUE(LEFT(dms_CRYf_y18,4)+1)&"-"&TEXT(MID(dms_CRYf_y18,3,2)+2,"00") -> 2035-36 | Q151: dms_CRYf_y19 | R151: =VALUE(LEFT(dms_CRYc_y18,4)+1) -> 2036 | S151: dms_CRYc_y19
B152: dms_y2 | C152: =IF(dms_RPT="financial",VALUE(LEFT(CRY,4)+1)&"-"&TEXT(MID(CRY,3,2)+2,"00"),VALUE(LEFT(CRY,4)+1)) -> 2018-19 | D152: 2007 | E152: dms_cy2 | F152: dms_frcp_fy2 | G152: 2011-12 | H152: 2012 | I152: dms_crcp_cy2 | L152: 2024-25 | M152: 2025 | P152: =VALUE(LEFT(dms_CRYf_y19,4)+1)&"-"&TEXT(MID(dms_CRYf_y19,3,2)+2,"00") -> 2036-37 | Q152: dms_CRYf_y20 | R152: =VALUE(LEFT(dms_CRYc_y19,4)+1) -> 2037 | S152: dms_CRYc_y20
B153: dms_y3 | C153: =IF(dms_RPT="financial",VALUE(LEFT(dms_fy2,4)+1)&"-"&TEXT(MID(dms_fy2,3,2)+2,"00"),VALUE(LEFT(dms_fy2,4)+1)) -> 2019-20 | D153: 2008 | E153: dms_cy3 | F153: dms_frcp_fy3 | G153: 2012-13 | H153: 2013 | I153: dms_crcp_cy3 | L153: 2025-26 | M153: 2026
B154: dms_y4 | C154: =IF(dms_RPT="financial",VALUE(LEFT(dms_fy3,4)+1)&"-"&TEXT(MID(dms_fy3,3,2)+2,"00"),VALUE(LEFT(dms_fy3,4)+1)) -> 2020-21 | D154: 2009 | E154: dms_cy4 | F154: dms_frcp_fy4 | G154: 2013-14 | H154: 2014 | I154: dms_crcp_cy4 | L154: 2026-27 | M154: 2027
B155: dms_y5 | C155: =IF(dms_RPT="financial",VALUE(LEFT(dms_fy4,4)+1)&"-"&TEXT(MID(dms_fy4,3,2)+2,"00"),VALUE(LEFT(dms_fy4,4)+1)) -> 2021-22 | D155: 2010 | E155: dms_cy5 | F155: dms_frcp_fy5 | G155: 2014-15 | H155: 2015 | I155: dms_crcp_cy5 | L155: 2027-28 | M155: 2028
B156: dms_y6 | C156: =IF(dms_RPT="financial",VALUE(LEFT(dms_fy5,4)+1)&"-"&TEXT(MID(dms_fy5,3,2)+2,"00"),VALUE(LEFT(dms_fy5,4)+1)) -> 2022-23 | D156: 2011 | E156: dms_cy6 | F156: dms_frcp_fy6 | G156: 2015-16 | H156: 2016 | I156: dms_crcp_cy6 | L156: 2028-29 | M156: 2029
B157: dms_y7 | C157: =IF(dms_RPT="financial",VALUE(LEFT(dms_fy6,4)+1)&"-"&TEXT(MID(dms_fy6,3,2)+2,"00"),VALUE(LEFT(dms_fy6,4)+1)) -> 2023-24 | D157: 2012 | E157: dms_cy7 | F157: dms_frcp_fy7 | G157: 2016-17 | H157: 2017 | I157: dms_crcp_cy7 | L157: 2029-30 | M157: 2030
B158: dms_y8 | C158: =IF(dms_RPT="financial",VALUE(LEFT(dms_fy7,4)+1)&"-"&TEXT(MID(dms_fy7,3,2)+2,"00"),VALUE(LEFT(dms_fy7,4)+1)) -> 2024-25 | D158: 2013 | E158: dms_cy8 | F158: dms_frcp_fy8 | G158: 2017-18 | H158: 2018 | I158: dms_crcp_cy8 | L158: 2030-31 | M158: 2031
B159: dms_y9 | C159: =IF(dms_RPT="financial",VALUE(LEFT(dms_fy8,4)+1)&"-"&TEXT(MID(dms_fy8,3,2)+2,"00"),VALUE(LEFT(dms_fy8,4)+1)) -> 2025-26 | D159: 2014 | E159: dms_cy9 | F159: dms_frcp_fy9 | G159: 2018-19 | H159: 2019 | I159: dms_crcp_cy9 | L159: 2031-32 | M159: 2032
B160: dms_y10 | C160: =IF(dms_RPT="financial",VALUE(LEFT(dms_fy9,4)+1)&"-"&TEXT(MID(dms_fy9,3,2)+2,"00"),VALUE(LEFT(dms_fy9,4)+1)) -> 2026-27 | D160: 2015 | E160: dms_cy10 | F160: dms_frcp_fy10 | G160: 2019-20 | H160: 2020 | I160: dms_crcp_cy10 | L160: 2032-33 | M160: 2033
B161: dms_y11 | C161: =IF(dms_RPT="financial",VALUE(LEFT(dms_fy10,4)+1)&"-"&TEXT(MID(dms_fy10,3,2)+2,"00"),VALUE(LEFT(dms_fy10,4)+1)) -> 2027-28 | D161: 2016 | E161: dms_cy11 | F161: dms_frcp_fy11 | G161: 2020-21 | H161: 2021 | I161: dms_crcp_cy11 | L161: 2033-34 | M161: 2034
B162: dms_y12 | C162: =IF(dms_RPT="financial",VALUE(LEFT(dms_fy11,4)+1)&"-"&TEXT(MID(dms_fy11,3,2)+2,"00"),VALUE(LEFT(dms_fy11,4)+1)) -> 2028-29 | D162: 2017 | E162: dms_cy12 | F162: dms_frcp_fy12 | G162: 2021-22 | H162: 2022 | I162: dms_crcp_cy12 | L162: 2034-35 | M162: 2035
B163: dms_y13 | C163: =IF(dms_RPT="financial",VALUE(LEFT(dms_fy12,4)+1)&"-"&TEXT(MID(dms_fy12,3,2)+2,"00"),VALUE(LEFT(dms_fy12,4)+1)) -> 2029-30 | D163: 2018 | E163: dms_cy13 | F163: dms_frcp_fy13 | G163: 2022-23 | H163: 2023 | I163: dms_crcp_cy13 | L163: 2035-36 | M163: 2036
B164: dms_y14 | C164: =IF(dms_RPT="financial",VALUE(LEFT(dms_fy13,4)+1)&"-"&TEXT(MID(dms_fy13,3,2)+2,"00"),VALUE(LEFT(dms_fy13,4)+1)) -> 2030-31 | D164: 2019 | E164: dms_cy14 | F164: dms_frcp_fy14 | G164: 2023-24 | H164: 2024 | I164: dms_crcp_cy14
B165: dms_y15 | C165: =IF(dms_RPT="financial",VALUE(LEFT(dms_fy14,4)+1)&"-"&TEXT(MID(dms_fy14,3,2)+2,"00"),VALUE(LEFT(dms_fy14,4)+1)) -> 2031-32 | D165: 2020 | E165: dms_cy15 | F165: dms_frcp_fy15 | G165: 2024-25 | H165: 2025 | I165: dms_crcp_cy15
B166: dms_y16 | C166: =IF(dms_RPT="financial",VALUE(LEFT(dms_fy15,4)+1)&"-"&TEXT(MID(dms_fy15,3,2)+2,"00"),VALUE(LEFT(dms_fy15,4)+1)) -> 2032-33 | D166: 2021 | E166: dms_cy16
B167: dms_y17 | C167: =IF(dms_RPT="financial",VALUE(LEFT(dms_fy16,4)+1)&"-"&TEXT(MID(dms_fy16,3,2)+2,"00"),VALUE(LEFT(dms_fy16,4)+1)) -> 2033-34 | D167: 2022 | E167: dms_cy17
B168: dms_y18 | C168: =IF(dms_RPT="financial",VALUE(LEFT(dms_fy17,4)+1)&"-"&TEXT(MID(dms_fy17,3,2)+2,"00"),VALUE(LEFT(dms_fy17,4)+1)) -> 2034-35 | D168: 2023 | E168: dms_cy18
B169: dms_y19 | C169: =IF(dms_RPT="financial",VALUE(LEFT(dms_fy18,4)+1)&"-"&TEXT(MID(dms_fy18,3,2)+2,"00"),VALUE(LEFT(dms_fy18,4)+1)) -> 2035-36 | D169: 2024 | E169: dms_cy19
B170: dms_y20 | C170: =IF(dms_RPT="financial",VALUE(LEFT(dms_fy19,4)+1)&"-"&TEXT(MID(dms_fy19,3,2)+2,"00"),VALUE(LEFT(dms_fy19)+1)) -> 2036-37 | D170: 2025 | E170: dms_cy20
B176: These "row descriptions" are the column headings in the various templates but become row descriptions in the ETL process
C177: Table 6.3 sustained interruptions - row descriptions
C178: dms_060301_CustNo_Affected_Row | D178: dms_060301_Avg_Duration_Sustained_Int_Row | E178: dms_060301_Effect_unplanned_SAIDI_Row | F178: dms_060301_Effect_unplanned_SAIFI_Row
C179: Number of customers affected by the interruption | D179: Average duration of sustained customer interruption | E179: Effect on unplanned SAIDI | F179: Effect on unplanned SAIFI
C183: Table 6.1 telephone answering - row descriptions and start date
C184: dms_060101_Rows | D184: dms_060102_Rows | E184: dms_060101_StartDateTxt
C185: Total number of calls (after removing excluded events) | D185: Number of calls answered within 30 seconds (after excluding excluded events) | E185: =dms_060701_StartDateTxt -> 1-Jul-2017
H189: dms_0603_FeederList | I189: =INDEX(dms_FeederName_1,MATCH(dms_TradingName,dms_TradingName_List)) -> CBD | J189: =INDEX(dms_FeederName_2,MATCH(dms_TradingName,dms_TradingName_List)) -> Urban | K189: =INDEX(dms_FeederName_3,MATCH(dms_TradingName,dms_TradingName_List)) -> Short rural | L189: =INDEX(dms_FeederName_4,MATCH(dms_TradingName,dms_TradingName_List)) -> Long rural | M189: =INDEX(dms_FeederName_5,MATCH(dms_TradingName,dms_TradingName_List)) -> 
C190: Table 6.7.1 - daily performance data - unplanned - MAIFI -- row descriptions and header named range values
C191: These headings (Lists) are determined from the INDEX/MATCH function on the NSP selected on the Business & other details sheet
B192: dms_060701_Feeder_Header_Lvl4 | C192: =INDEX(dms_FeederName_1,MATCH(dms_TradingName,dms_TradingName_List)) -> CBD | D192: =INDEX(dms_FeederName_1,MATCH(dms_TradingName,dms_TradingName_List)) -> CBD | E192: =INDEX(dms_FeederName_2,MATCH(dms_TradingName,dms_TradingName_List)) -> Urban | F192: =INDEX(dms_FeederName_2,MATCH(dms_TradingName,dms_TradingName_List)) -> Urban | G192: =INDEX(dms_FeederName_3,MATCH(dms_TradingName,dms_TradingName_List)) -> Short rural | H192: =INDEX(dms_FeederName_3,MATCH(dms_TradingName,dms_TradingName_List)) -> Short rural | I192: =INDEX(dms_FeederName_4,MATCH(dms_TradingName,dms_TradingName_List)) -> Long rural | J192: =INDEX(dms_FeederName_4,MATCH(dms_TradingName,dms_TradingName_List)) -> Long rural | K192: =IF((INDEX(dms_FeederName_5,MATCH(dms_TradingName,dms_TradingName_List))=0),"Network",(INDEX(dms_FeederName_5,MATCH(dms_TradingName,dms_TradingName_List)))) ->  | L192: =IF((INDEX(dms_FeederName_5,MATCH(dms_TradingName,dms_TradingName_List))=0),"Network",(INDEX(dms_FeederName_5,MATCH(dms_TradingName,dms_TradingName_List)))) ->  | M192: Network | N192: Network
B194: dms_060701_Rows | C194: All events | D194: After removing excluded events | E194: All events | F194: After removing excluded events | G194: All events | H194: After removing excluded events | I194: All events | J194: After removing excluded events | K194: All events | L194: After removing excluded events | M194: All events | N194: After removing excluded events
C195: the number of column headings changes from 10 to 12 depending on the number of feeder categories for the NSP
C200: Table 6.8.1 - row descriptions
C201: dms_060801_01_Rows | D201: dms_060801_02_Rows | E201: dms_060801_03_Rows | F201: dms_060801_04_Rows
C202: Number of interruptions | D202: Duration of interruptions | E202: Total unplanned minutes off supply | F202: Effect on unplanned MAIFI
C207: Table 7.9.4 - market impact component - row descriptions
B208: dms_070904_01_Rows | C208: without exclusions | D208: with exclusions
C214: Use this to add to existing files
C215: ARRs 6.7 STPIS daily performance
C216: dms_060101_Values | D216: dms_060102_Values | E216: dms_060701_Values
C218: ARR's 6.8 STPIS exclusions
C219: dms_060801_Event_Date | D219: dms_060801_OutageID | E219: dms_060801_FeederID | F219: dms_060801_FeederClass | G219: dms_060801_CauseID | H219: dms_060801_01_Values | I219: dms_060801_02_Values | J219: dms_060801_03_Values | K219: dms_060801_Excl_Cat | L219: dms_060801_04_Values
C220: dms_060801_StartCell
C222: CA 6.3 sustained interruptions
C223: dms_060301_Event_Date | D223: dms_060301_Event_Time | E223: dms_060301_AssetID | F223: dms_060301_FeederClass | G223: dms_060301_Reason | H223: dms_060301_DetailedReason | I223: dms_060301_CustNo_Affected_Values | J223: dms_060301_Avg_Duration_Sustained_Int_Values | K223: dms_060301_Effect_unplanned_SAIDI_Values | L223: dms_060301_Effect_unplanned_SAIFI_Values | M223: dms_060301_MED

Sheet Contents
B3: =CONCATENATE(dms_Segment," Network Service Provider") -> Distribution Network Service Provider
B5: Table of Contents
C8: Instructions
C9: Business & other details
B12: CATEGORY ANALYSIS | C12: STPIS | D12: STATUTORY ACCOUNTS
B14: 2.11 Labour | C14: 6.2 STPIS Reliability | D14: 8.1 Income
C15: 6.6 STPIS Customer Service | D15: 8.2 Capex
C16: 6.7 STPIS Daily Performance
C17: 6.8 STPIS Exclusions | D17: 8.4 Opex
C18: 6.9 STPIS GSL
B22: NETWORK PERFORMANCE | C22: OTHER INFORMATION | D22: PRICING PROPOSAL
D23: Victorian Businesses Only
B24: 3.6 Quality of services | C24: 7.8 Avoided Cost Payments
B25: 3.6.8 Network-feeders | C25: 7.10 Juris Scheme | D25: 9.5 TUoS
B26: 3.6.9 Network-reliability | C26: 7.11 DMIS-DMIA
C27: 7.12 Safety and Bushfire
B29: PUBLIC LIGHTING
B31: 4.1 Public lighting tariffs

Sheet Instructions
B2: =CONCATENATE(dms_Segment," Network Service Provider") -> Distribution Network Service Provider
B3: =IF(dms_Model="Reset","Regulatory Proposal RIN Template","Annual Reporting RIN") -> Annual Reporting RIN
C4: This template is to be used by Australian Distribution Co. to fulfil its reporting obligations to the AER.
C5: INSTRUCTIONS
C6: Complete the Business & other details worksheet before entering data or values in any other worksheets. The Business & other details worksheet is linked to other worksheets within the workbook and automatically generates certain column headings and conditional formatting.
C8: Identifying CONFIDENTIAL INFORMATION: Please use the macro at the top of each worksheet to identify confidential information.
C9: -Do this by selecting the cell or cells that contain confidential information and then run the Mark selected cells as CONFIDENTIAL macro. This will format the cells a specific colour that is identified by the AER's database which in turn marks that information as confidential. -To reverse this, select the cell or cells and run the Return cells to NON-CONFIDENTIAL macro.
C11: UNITS OF MEASURE All amounts are to be unrounded and reported on a one for one basis: that is 1000 is to be entered as '1000'. Applicable units of measure may be identified in the table column headings or row descriptors.
C13: COLOUR CODING OF INPUT / NON-INPUT CELLS:
D14: Yellow = Input cell (mandatory)
D15: Darker yellow = input cell (mandatory)
D16: Orange = input cell (if data available)
D17: Grey = Not applicable/No inputs required
D18: PLEASE DO NOT ENTER TEXT into cells that are to contain numeric data.
C21: WORKSHEET NAVIGATION Many tables in the worksheets have been "grouped" to allow for easy navigation. To ungroup or group data use the outline symbols in the left margin (for Row groupings) or above the columns (for column groupings).
C23: RETURNING COMPLETED RESPONSES Please return two (2) files to the AER: 1. A confidential version which must contain a complete set of all responses with confidential information marked using the Mark selection CONFIDENTIAL macro and which has been completed using the locked template file provided by the AER. 2. A public version with confidential information either removed completely or aggregated in some form together with writtten consent to disclose the public version of the response. Use the drop down box on the Business and other details worksheet to identify the file as either confidential ('consolidated') or public.
C25: SUBMITTING AMENDED DATA TO THE AER If an NSP wishes to correct data previously submitted to the AER it should resubmit that data using the original completed submission as the starting point. Please make any necessary changes to the data. Data that is not being amended should be left unchanged. NSPs must identify the reason for the amendments in the Amendment Reason box on the Business and other details worksheet. NSPs may provide further details regarding any amendments in the Amendments worksheet. .
C26: NSP may use Amended Data macro to highlight cells that contain amended data. NB: if data is also CONFIDENTIAL, re-apply the Confidentiality macro after applying the Amended macro
C27: Please resubmit two (2) files - a confidential version and a public version of the amended submission to the AER

Sheet Business & other details
B1: =IF(dms_DataQuality="backcast",INDEX(dms_Worksheet_List,MATCH(dms_Model,dms_Model_List))&" BACKCAST",INDEX(dms_Worksheet_List,MATCH(dms_Model,dms_Model_List))) -> ANNUAL REPORTING STATEMENT
B2: =INDEX(dms_TradingNameFull_List,MATCH(dms_TradingName,dms_TradingName_List)) -> Endeavour Energy
B3: =IF(SUM(dms_SingleYear_Model)>0,CONCATENATE(CRY),CONCATENATE(FRCP_y1," to ",dms_MultiYear_FinalYear_Result)) -> 2017-18
B4: BUSINESS & OTHER DETAILS
B7: Instructions
B8: Complete the following business details regulatory template before entering data or values in any other regulatory template. This regulatory template is linked to other cells within the spreadsheet and automatically generates column headings and conditional formatting to distinguish business specific input and non-input cells.
B10: SUBMISSION PARTICULARS INPUT SHEETS
B12: ENTITY DETAILS
B14: Short name | C14: Endeavour Energy | F14: Select business name from drop down list first
B15: ACN / ABN | C15: =INDEX(dms_ABN_List,MATCH(dms_TradingName,dms_TradingName_List)) -> 11247365823
B18: Business address | C18: Address 1 | E18: =INDEX(dms_Addr1_List,MATCH(dms_TradingName,dms_TradingName_List)) -> 51 Huntingwood Drive
D19: Address 2 | E19: =IF(ISBLANK(INDEX(dms_Addr2_List,MATCH(dms_TradingName,dms_TradingName_List))),"",(INDEX(dms_Addr2_List,MATCH(dms_TradingName,dms_TradingName_List)))) -> 
C20: Suburb | E20: =INDEX(dms_Suburb_List,MATCH(dms_TradingName,dms_TradingName_List)) -> HUNTINGWOOD
D21: State | E21: =INDEX(dms_State_List,MATCH(dms_TradingName,dms_TradingName_List)) -> NSW | F21: p/code | G21: =INDEX(dms_PostCode_List,MATCH(dms_TradingName,dms_TradingName_List)) -> 2148
B23: Postal address | C23: Address 1 | E23: =INDEX(dms_PAddr1_List,MATCH(dms_TradingName,dms_TradingName_List)) -> PO Box 811
D24: Address 2 | E24: =IF(ISBLANK(INDEX(dms_PAddr2_List,MATCH(dms_TradingName,dms_TradingName_List))),"",(INDEX(dms_PAddr2_List,MATCH(dms_TradingName,dms_TradingName_List)))) -> 
C25: Suburb | E25: =INDEX(dms_PSuburb_List,MATCH(dms_TradingName,dms_TradingName_List)) -> SEVEN HILLS
D26: State | E26: =INDEX(dms_PState_List,MATCH(dms_TradingName,dms_TradingName_List)) -> NSW | F26: p/code | G26: =INDEX(dms_PPostCode_List,MATCH(dms_TradingName,dms_TradingName_List)) -> 1730
B29: Contact name/s | C29: Fiona Place
B30: Contact phone/s | C30: (02) 9853 6302
B31: Contact email address/s | C31: fiona.place@endeavourenergy.com.au
B33: REGULATORY CONTROL PERIODS
B35: Forthcoming regulatory control period | C35: 2020-21 | D35: =dms_FRCP_y2 -> 2021-22 | E35: =dms_FRCP_y3 -> 2022-23 | F35: =dms_FRCP_y4 -> 2023-24 | G35: =dms_FRCP_y5 -> 2024-25
C36: =dms_FRCP_y6 -> 2025-26 | D36: =dms_FRCP_y7 -> 2026-27 | E36: =dms_FRCP_y8 -> 2027-28 | F36: =dms_FRCP_y9 -> 2028-29 | G36: =dms_FRCP_y10 -> 2029-30
B39: Current regulatory control period | C39: =dms_CRCP_FirstYear_Result -> 2015-16 | D39: =IF(dms_RPT="financial",VALUE(LEFT(CRCP_y1,4)+1)&"-"&TEXT(MID(CRCP_y1,3,2)+2,"00"),VALUE(LEFT(CRCP_y1,4)+1)) -> 2016-17 | E39: =IF(dms_RPT="financial",VALUE(LEFT(CRCP_y1,4)+2)&"-"&TEXT(VALUE(MID(CRCP_y1,3,2)+3),"00"),VALUE(LEFT(CRCP_y1,4)+2)) -> 2017-18 | F39: =IF(dms_RPT="financial",VALUE(LEFT(CRCP_y1,4)+3)&"-"&TEXT(MID(CRCP_y1,3,2)+4,"00"),VALUE(LEFT(CRCP_y1,4)+3)) -> 2018-19 | G39: =IF(dms_RPT="financial",VALUE(LEFT(CRCP_y1,4)+4)&"-"&TEXT(MID(CRCP_y1,3,2)+5,"00"),VALUE(LEFT(CRCP_y1,4)+4)) -> 2019-20
C40: =IF(dms_RPT="financial",VALUE(LEFT(CRCP_y1,4)+5)&"-"&TEXT(MID(CRCP_y1,3,2)+6,"00"),VALUE(LEFT(CRCP_y1,4)+5)) -> 2020-21 | D40: =IF(dms_RPT="financial",VALUE(LEFT(CRCP_y1,4)+6)&"-"&TEXT(MID(CRCP_y1,3,2)+7,"00"),VALUE(LEFT(CRCP_y1,4)+6)) -> 2021-22 | E40: =IF(dms_RPT="financial",VALUE(LEFT(CRCP_y1,4)+7)&"-"&TEXT(MID(CRCP_y1,3,2)+8,"00"),VALUE(LEFT(CRCP_y1,4)+7)) -> 2022-23 | F40: =IF(dms_RPT="financial",VALUE(LEFT(CRCP_y1,4)+8)&"-"&TEXT(MID(CRCP_y1,3,2)+9,"00"),VALUE(LEFT(CRCP_y1,4)+8)) -> 2023-24 | G40: =IF(dms_RPT="financial",VALUE(LEFT(CRCP_y1,4)+9)&"-"&TEXT(MID(CRCP_y1,3,2)+10,"00"),VALUE(LEFT(CRCP_y1,4)+9)) -> 2024-25
C41: =IF(dms_RPT="financial",VALUE(LEFT(CRCP_y1,4)+10)&"-"&TEXT(MID(CRCP_y1,3,2)+11,"00"),VALUE(LEFT(CRCP_y1,4)+10)) -> 2025-26 | D41: =IF(dms_RPT="financial",VALUE(LEFT(CRCP_y1,4)+11)&"-"&TEXT(MID(CRCP_y1,3,2)+12,"00"),VALUE(LEFT(CRCP_y1,4)+11)) -> 2026-27 | E41: =IF(dms_RPT="financial",VALUE(LEFT(CRCP_y1,4)+12)&"-"&TEXT(MID(CRCP_y1,3,2)+13,"00"),VALUE(LEFT(CRCP_y1,4)+12)) -> 2027-28 | F41: =IF(dms_RPT="financial",VALUE(LEFT(CRCP_y1,4)+13)&"-"&TEXT(MID(CRCP_y1,3,2)+14,"00"),VALUE(LEFT(CRCP_y1,4)+13)) -> 2028-29 | G41: =IF(dms_RPT="financial",VALUE(LEFT(CRCP_y1,4)+14)&"-"&TEXT(MID(CRCP_y1,3,2)+15,"00"),VALUE(LEFT(CRCP_y1,4)+14)) -> 2029-30
B44: Previous regulatory control period | C44: =IF(dms_RPT="financial",VALUE(LEFT(PRCP_y2,4)-1)&"-"&TEXT(VALUE(MID(PRCP_y2,3,2)),"00"),VALUE(LEFT(PRCP_y2,4)-1)) -> 2010-11 | D44: =IF(dms_RPT="financial",VALUE(LEFT(PRCP_y3,4)-1)&"-"&TEXT(VALUE(MID(PRCP_y3,3,2)),"00"),VALUE(LEFT(PRCP_y3,4)-1)) -> 2011-12 | E44: =IF(dms_RPT="financial",VALUE(LEFT(PRCP_y4,4)-1)&"-"&TEXT(VALUE(MID(PRCP_y4,3,2)),"00"),VALUE(LEFT(PRCP_y4,4)-1)) -> 2012-13 | F44: =IF(dms_RPT="financial",VALUE(LEFT(PRCP_y5,4)-1)&"-"&TEXT(VALUE(RIGHT(PRCP_y5,2)-1),"00"),VALUE(LEFT(PRCP_y5,4)-1)) -> 2013-14 | G44: =IF(dms_RPT="financial",VALUE(LEFT(CRCP_y1,4)-1)&"-"&TEXT(VALUE(RIGHT(CRCP_y1,2)-1),"00"),VALUE(LEFT(CRCP_y1,4)-1)) -> 2014-15
B48: Commencing regulatory year | C48: 2017-18 | D48: CRY
B50: Last completed regulatory year | C50: 2017-18 | D50: dms_FinalYear
C54: IF THIS IS AN ABC RIN - make sure the the named range CRY is applied and the named range dms_dollar_nom_UOM is applied
C55: IF THIS IS A RESET RIN - make sure the named ranges CRY and dms_dollar_nom_UOM are NOT present in the workbook
C56: FOR ABC RINS THAT SPAN MULTIPLE YEARS - make sure MultiYear Flag is set and final year entered as required
B58: Source | C58: Reporting | E58: Please select the correct submission type from the dropdown list.
B59: Data quality (actual, estimate, public, consolidated) | C59: Consolidated | E59: Use Consolidated for Consolidated Confidential version Use Public for Consolidated Public version
B60: Amended RIN submission - amendment reason | C60: Data has been amended in table 8.1 to reflect $, rather than $'000. Amendments have been made in table 2.11.3.2 to reconcile cells C33 and C36.
B61: Submission Date | C61: 2018-11-21 | D61: dms_SubmissionDate | E61: Please enter date this file submitted to AER (dd/mm/yyyy)
B62: EBSS - First application of scheme in forthcoming period? | C62: No
B63: Sector | C63: =INDEX(dms_Sector_List,MATCH(dms_TradingName,dms_TradingName_List)) -> Electricity | D63: dms_Sector | E63: =INDEX(dms_Sector_List,MATCH(dms_TradingName,dms_TradingName_List))
B64: Segment | C64: =INDEX(dms_Segment_List,MATCH(dms_TradingName,dms_TradingName_List)) -> Distribution | D64: dms_Segment | E64: =INDEX(dms_Segment_List,MATCH(dms_TradingName,dms_TradingName_List))
B65: Regulatory Year Ending | C65: =IF(dms_MultiYear_Flag=1,LEFT(dms_Specified_FinalYear,2)&RIGHT(dms_Specified_FinalYear,2),INDEX(dms_RYE_Formula_Result,MATCH(dms_Model,dms_Model_List))) -> 2018 | D65: dms_RYE | E65: =IF(dms_MultiYear_Flag=1,LEFT(dms_Specified_FinalYear,2)&RIGHT(dms_Specified_FinalYear,2),INDEX(dms_RYE_Formula_Result,MATCH(dms_Model,dms_Model_List)))
B66: Reporting Period Type | C66: =INDEX(dms_RPT_List,MATCH(dms_TradingName,dms_TradingName_List)) -> Financial | D66: dms_RPT | E66: =INDEX(dms_RPT_List,MATCH(dms_TradingName,dms_TradingName_List))
B67: Model or RIN Type | C67: ARR | D67: dms_Model | E67: Drop down selection
B68: EB/CA Unit of Measure for Monetary Values | C68: $0s | D68: dms_dollar_nom_UOM | E68: If the cover sheet is attached to an ABC RIN apply the NAMED RANGE to the cell
B69: Security Classification | C69: Public | D69: dms_Classification | E69: Always Public
B70: Jurisdiction | C70: =INDEX(dms_JurisdictionList,MATCH(dms_TradingName,dms_TradingName_List)) -> NSW | D70: dms_Jurisdiction | E70: =INDEX(dms_JurisdictionList,MATCH(dms_TradingName,dms_TradingName_List))
B71: FORECAST and MultiYear RINS
B72: CRY-1 (last full calendar year before CRY) | C72: =IF(dms_RPT="financial",VALUE(LEFT(dms_SingleYear_FinalYear_Result,4)),VALUE(LEFT(dms_SingleYear_FinalYear_Result,4)-1)) -> 2017 | D72: dms_Cal_Year_B4_CRY | E72: '=IF(dms_RPT="financial",VALUE(LEFT(dms_SingleYear_FinalYear_Result,4)),VALUE(LEFT(dms_SingleYear_FinalYear_Result,4)-1))
B73: Dollar $ real month | C73: =INDEX(dms_RPTMonth_List,MATCH(dms_TradingName,dms_TradingName_List)) -> June | D73: dms_RPTMonth | E73: =INDEX(dms_RPTMonth_List,MATCH(dms_TradingName,dms_TradingName_List))
B74: Dollar $ real (the last month before the FRCP_y1) | C74: =IF(SUM(dms_SingleYear_Model)>0,CONCATENATE(dms_RPTMonth)&" "&VALUE((LEFT(CRY,2))&RIGHT(CRY,2)),CONCATENATE(dms_RPTMonth)&" "&VALUE((LEFT(dms_CRCP_FinalYear_Result,2)&RIGHT(dms_CRCP_FinalYear_Result,2)))) -> June 2018 | D74: dms_DollarReal | E74: =IF(SUM(dms_SingleYear_Model)>0,CONCATENATE(dms_RPTMonth)&" "&VALUE((LEFT(CRY,2))&RIGHT(CRY,2)),CONCATENATE(dms_RPTMonth)&" "&VALUE((LEFT(dms_CRCP_FinalYear_Result,2)&RIGHT(dms_CRCP_FinalYear_Result,2))))
B75: Dollar $ real previous year (PRCP_y5) | C75: =IF(SUM(dms_SingleYear_Model)>0,CONCATENATE(dms_RPTMonth)&" "&VALUE(((LEFT(CRY,2))&RIGHT(CRY,2))-1),CONCATENATE(dms_RPTMonth)&" "&VALUE(((LEFT(dms_CRCP_FirstYear_Result,2)&RIGHT(dms_CRCP_FirstYear_Result,2))))-1) -> June 2017 | D75: dms_DollarReal_Prev | E75: =IF(SUM(dms_SingleYear_Model)>0,CONCATENATE(dms_RPTMonth)&" "&VALUE(((LEFT(CRY,2))&RIGHT(CRY,2))-1),CONCATENATE(dms_RPTMonth)&" "&VALUE(((LEFT(dms_CRCP_FirstYear_Result,2)&RIGHT(dms_CRCP_FirstYear_Result,2))))-1)
B76: This block works out the various RYE's for ALL RIN types and MODELS
B77: Single Year Model T/F | C77: =IF(dms_Model="EB",1,0) -> 0 | D77: dms_EB
C78: =IF(dms_Model="CA",1,0) -> 0 | D78: dms_CA | E78: =dms_SingleYear_Model
C79: =IF(dms_Model="ARR",1,0) -> 1 | D79: dms_ARR
B80: Is this a single Year RIN? | C80: =IF(SUM(dms_SingleYear_Model)=1,"yes","no") -> yes | D80: dms_SingleYearModel | E80: =IF(SUM(dms_SingleYear_Model)=1,"yes","no")
B81: Single Year Final Year Reference | C81: CRY | D81: dms_SingleYear_FinalYear_Ref | E81: This is the reference for EB, CA & ARR RINs
B82: Single Year Final Year Result | C82: =IFERROR(IF(SUM(dms_SingleYear_Model)<>0,(INDIRECT(dms_SingleYear_FinalYear_Ref)),"not a single year RIN"),"CRY not present") -> 2017-18 | D82: dms_SingleYear_FinalYear_Result | E82: =IFERROR(IF(SUM(dms_SingleYear_Model)<>0,(INDIRECT(dms_SingleYear_FinalYear_Ref)),"not a single year RIN"),"CRY not present")
B83: FRCP length in years | C83: =INDEX(dms_FRCPlength_List,MATCH(dms_TradingName,dms_TradingName_List)) -> 5 | D83: dms_FRCPlength_Num | E83: =INDEX(dms_FRCPlength_List,MATCH(dms_TradingName,dms_TradingName_List))
B84: Multi Year Final Year Reference | C84: =INDEX(dms_FinalYear_List,MATCH(dms_FRCPlength_Num,dms_FRCPlength_Num_List)) -> dms_FRCP_y5 | D84: dms_MultiYear_FinalYear_Ref | E84: =INDEX(dms_FinalYear_List,MATCH(dms_FRCPlength_Num,dms_FRCPlength_Num_List))
B85: Multi Year Final Year Result | C85: =IF(dms_MultiYear_Flag=0,INDIRECT(dms_MultiYear_FinalYear_Ref),dms_Specified_FinalYear) -> 2024-25 | D85: dms_MultiYear_FinalYear_Result | E85: =IF(dms_MultiYear_Flag=0,INDIRECT(dms_MultiYear_FinalYear_Ref),dms_Specified_FinalYear) | I85: Formula errors OK
B86: CRCP length in years | C86: =INDEX(dms_CRCPlength_List,MATCH(dms_TradingName,dms_TradingName_List)) -> 5 | D86: dms_CRCPlength_Num | E86: =INDEX(dms_CRCPlength_List,MATCH(dms_TradingName,dms_TradingName_List))
B87: CRCP Final Year Reference | C87: =INDEX(dms_CFinalYear_List,MATCH(dms_CRCPlength_Num,dms_CRCPlength_Num_List)) -> CRCP_y5 | D87: dms_CRCP_FinalYear_Ref | E87: =INDEX(dms_CFinalYear_List,MATCH(dms_CRCPlength_Num,dms_CRCPlength_Num_List))
B88: CRCP First Year Result | C88: =INDEX(dms_CRCP_years,MATCH(dms_CRCPlength_Num,dms_CRCP_index)) -> 2015-16 | D88: dms_CRCP_FirstYear_Result | E88: =INDEX(dms_CRCP_years,MATCH(dms_CRCPlength_Num,dms_CRCP_index))
B89: CRCP Final Year Result | C89: =IF(dms_MultiYear_Flag=0,(IF(SUM(dms_SingleYear_Model)>0,CRY,dms_CRCP_yZ)),dms_Specified_FinalYear) -> 2017-18 | D89: dms_CRCP_FinalYear_Result | E89: =IF(dms_MultiYear_Flag=0,(IF(SUM(dms_SingleYear_Model)>0,CRY,dms_CRCP_yZ)),dms_Specified_FinalYear)
B90: PTRM/ RFMs
B91: Form of control | C91: =INDEX(dms_FormControl_List,MATCH(dms_TradingName,dms_TradingName_List)) -> Revenue cap | D91: dms_FormControl | E91: =INDEX(dms_FormControl_List,MATCH(dms_TradingName,dms_TradingName_List))
B92: ABC RINS THAT SPAN MULTIPLE YEARS
B93: Is this a multi year ABC RIN? | C93: No
B94: Multiyear EB, CA or ARR? | C94: =IF(dms_MultiYear_ResponseFlag="No",0,1) -> 0 | D94: dms_MultiYear_Flag | E94: This is set from the answer provided above
C95: =IF(dms_MultiYear_Flag=1,FRY,"not a Multiple year submission") -> not a Multiple year submission | D95: dms_Specified_FinalYear | E95: The result here is returned to dms_CRCP_FinalYear_Result if response to Q in C73 is "yes" and dms_MultiYear_Flag is set to 1
B96: Start year for 5.2 in Multi year ABC RINS | C96: =IFERROR(IF(dms_MultiYear_Flag=1,FRY,CRY),"not an ABC") -> 2017-18 | D96: dms_0502_Inst_Year | E96: =IF(dms_MultiYear_Flag=1,FRY,CRY) | G96: For single year RINS this is CRY - multi year RINS need to start a the end of the span of years (ie. FRY)
B97: EB RINS
B98: Calendar Year for table 3.6 data | C98: =IF(dms_RPT="financial",VALUE(LEFT(dms_SingleYear_FinalYear_Result,4)),VALUE(LEFT(dms_SingleYear_FinalYear_Result,4)-1)) -> 2017 | D98: dms_0306_Year | E98: =IF(dms_RPT="financial",VALUE(LEFT(dms_SingleYear_FinalYear_Result,4)),VALUE(LEFT(dms_SingleYear_FinalYear_Result,4)-1))
B99: CA RINS
B100: Find how many rows in tables 6.3 sustained interruptions? | E100: dms_060301_MaxRows only returns a valid value when cover sheet is attached to a CA file
C101: =IF(dms_Model<>"CA","not a CA","Is a CA") -> not a CA | E101: =IF(dms_Model<>"CA","not a CA","Is a CA")
B102: dms_060301_Avg_Duration_Sustained_Int_Values present? | C102: =IFERROR(IF(INDEX(dms_060301_Avg_Duration_Sustained_Int_Values,1,1)<>"","yes","no"),"no") -> no | D102: dms_060301_checkvalue | E102: =IFERROR(IF(INDEX(dms_060301_Avg_Duration_Sustained_Int_Values,1,1)<>"","yes","no"),"no")
C103: =IF(AND(dms_Model="CA",(dms_060301_checkvalue="no")),"error - NR not present","no errors") -> no errors | E103: =IF(AND(dms_Model="CA",(dms_060301_checkvalue="no")),"error - NR not present","no errors")
B104: Table 6.3.1 - last row reference | C104: =IFERROR(IF(dms_Model="CA",LOOKUP(2,1/(dms_060301_Avg_Duration_Sustained_Int_Values<>""),(ROW(dms_060301_Avg_Duration_Sustained_Int_Values))),"not a CA"),"6.3 not present") -> not a CA | D104: dms_060301_LastRow | E104: =IFERROR(IF(dms_Model="CA",LOOKUP(2,1/(dms_060301_Avg_Duration_Sustained_Int_Values<>""),(ROW(dms_060301_Avg_Duration_Sustained_Int_Values))),"not a CA"),"6.3 not present")
B105: Table 6.3.1 - max number rows | C105: =IFERROR(IF(dms_Model="CA",(dms_060301_LastRow-15),"not a CA"),"error") -> not a CA | D105: dms_060301_MaxRows | E105: =IFERROR(IF(dms_Model="CA",(dms_060301_LastRow-15),"not a CA"),"error")
B106: Table 6.6.3 - Public lighting repair - no. business days | C106: =INDEX(dms_663_List,MATCH(dms_TradingName,dms_TradingName_List)) -> 5 | D106: dms_663 | E106: =INDEX(dms_663_List,MATCH(dms_TradingName,dms_TradingName_List))
B107: ARR or RESET RINS
B108: How many rows in tables 6.1 or 6.7? (leap year?) | C108: insert dms_LeapYear NR if required | E108: 'dms_LeapYear is used to determine dms_060701_Max_Rows BUT it is only found on worksheet 6.1 or 6.7 and the date value in the cell is used to determine whether it is a leap year
B109: Is dms_LeapYear named range present? | C109: =IFERROR(IF(dms_LeapYear,"yes"),"no") -> yes
B110: Table 6.7.1 - includes a leap year? | C110: =IFERROR(IF(MONTH(DATE(YEAR(dms_LeapYear),2,29))=2,"is a leap year","not a leap year"), "dms_LeapYear not present") -> not a leap year | D110: dms_LeapYear_Result | E110: =IFERROR(IF(MONTH(DATE(YEAR(dms_LeapYear),2,29))=2,"is a leap year","not a leap year"),"dms_LeapYear not present")
B111: MaxRows if Reset and leap year | C111: =IF(dms_LeapYear_Result="is a leap year",1827,1826) -> 1826 | D111: dms_060701_Reset_MaxRows | E111: =IF(dms_LeapYear_Result="is a leap year",1827,1826) | H111: number of days present in Reset RIN table
B112: MaxRows if ARR and leap year | C112: =IF(dms_LeapYear_Result="is a leap year",366,365) -> 365 | D112: dms_060701_ARR_MaxRows | E112: =IF(dms_LeapYear_Result="is a leap year",366,365) | H112: number of days present in ARR RIN table
B113: Table 6.7.1 - Max Rows (leap year/ non leap year) | C113: =IF(dms_Model="ARR",dms_060701_ARR_MaxRows,IF(dms_Model="Reset",dms_060701_Reset_MaxRows,"not a relevant RIN type")) -> 365 | D113: dms_060701_MaxRows | E113: =IF(dms_Model="ARR",dms_060701_ARR_MaxRows,IF(dms_Model="Reset",dms_060701_Reset_MaxRows,"not a relevant RIN type"))
B114: How many columns in 6.7? (4 or 5 feeder categories) | C114: =IF(dms_FifthFeeder_flag_NSP="NO","This NSP has only 4 feeder categories","This NSP has 5 feeder categories") -> This NSP has only 4 feeder categories
B115: Table 6.7.1 - Last column (# of feeder categories > 4) | C115: =IF(dms_FifthFeeder_flag_NSP="NO",10,12) -> 10 | D115: dms_060701_MaxCols | E115: =IF(dms_FifthFeeder_flag_NSP="NO",8,10)
B116: Table 6.7.1 - Number of offset rows | C116: =IF(dms_Model="ARR",15,9) -> 15 | D116: dms_060701_OffsetRows | E116: =IF(dms_Model="ARR",15,9)
B117: Start date for telephone answering in 6.1 or 6.7? | E117: Using 060101 as naming standard not 060701 for start dates
B118: Table 6.1.1 and 6.7.1 - Start Date as Text | C118: =IF(dms_SingleYearModel="yes",(CONCATENATE(IF(LEN(CRY)=4,"1-Jan-","1-Jul-"),LEFT(CRY,4))),(CONCATENATE(IF(LEN(PRCP_y4)=4,"1-Jan-","1-Jul-"),LEFT(PRCP_y4,4)))) -> 1-Jul-2017 | D118: dms_060101_StartDateTxt | E118: =IF(SUM(dms_SingleYear_Model)>1,(CONCATENATE(IF(LEN(CRY)=4,"1-Jan-","1-Jul-"),LEFT(CRY,4))),(CONCATENATE(IF(LEN(CRCP_y4)=4,"1-Jan-","1-Jul-"),LEFT(CRCP_y4,4))))
B119: Table 6.1.1 and 6.7.1 - Start Date as Date Value | C119: =DATEVALUE(dms_060701_StartDateTxt) -> 42917 | D119: dms_060101_StartDateVal | E119: =DATEVALUE(dms_060701_StartDateTxt)
B120: ARRs
B121: How many rows in table 6.8? | C121: insert dms_060801_StartCell NR if required | E121: dms_060801_StartCell is only found on worksheet 6.8 and is used to determine the starting date for the date range
B122: Is dms_060801_StartCell named range present? | C122: yes | E122: =IFERROR(IF((ROW(dms_060801_StartCell)-1)=1,"yes","yes"),"no")
B123: Table 6.8 - Number of offset rows | C123: =IFERROR(IF(dms_Model="ARR",(ROW(dms_060801_StartCell)-1),"not an ARR"),"6.8 error") -> 11 | D123: dms_0608_OffsetRows | E123: =IFERROR(IF(dms_Model="ARR",(ROW(dms_060801_StartCell)-1),"not an ARR"),"6.8 error")
B124: Table 6.8 - Last row | C124: =IFERROR(IF(dms_060801_StartCell<>"",IF(dms_Model="ARR",(LOOKUP(2,1/(dms_060801_01_Values<>""),(ROW(dms_060801_01_Values)))),"not an ARR"),0),"6.8 not present") -> 0 | D124: dms_0608_LastRow | E124: =IFERROR(IF(dms_060801_StartCell<>"",IF(dms_Model="ARR",(LOOKUP(2,1/(dms_060801_01_Values<>""),(ROW(dms_060801_01_Values)))),"not an ARR"),0),"6.8 not present")
B125: Table 6.8 - MaxRows | C125: =IFERROR(IF(dms_Model="ARR",(MAX(0,dms_0608_LastRow-dms_0608_OffsetRows)),"not an ARR"),"6.8 not present") -> 0 | D125: dms_060801_MaxRows | E125: =IFERROR(IF(dms_Model="ARR",(MAX(0,dms_0608_LastRow-dms_0608_OffsetRows)),"not an ARR"),"6.8 not present")
B126: TNSP RESET RINS
B127: Table 7.9.4 only appears in TNSPs Reset RIN
B128: Table 7.9.4 - first year | C128: =LEFT(PRCP_y3,4) -> 2012 | D128: dms_070904_Start_Year | E128: =LEFT(PRCP_y3,4)
B129: SUBSET FILES
B130: Is this Submission File a Subset File | C130: NO | D130: dms_Partial
B131: MISC
B132: Distribution Determination Reference | C132: =INDEX(dms_DeterminationRef_List,MATCH(dms_TradingName,dms_TradingName_List)) -> 2014-19 Distribution Determination | D132: dms_DeterminationRef
B133: Public lighting NSP? | C133: =INDEX(dms_Public_Lighting_List,MATCH(dms_TradingName,dms_TradingName_List)) -> YES | D133: dms_Public_Lighting | E133: =INDEX(dms_Public_Lighting_List,MATCH(dms_TradingName,dms_TradingName_List))
B134: CBD Feeder for this business | C134: =INDEX(dms_CBD_flag,MATCH(dms_TradingName,dms_TradingName_List)) -> NO | D134: dms_CBD_flag_NSP
B135: Urban Feeder for this business | C135: =INDEX(dms_Urban_flag,MATCH(dms_TradingName,dms_TradingName_List)) -> YES | D135: dms_Urban_flag_NSP
B136: Short rural Feeder for this business | C136: =INDEX(dms_ShortRural_flag,MATCH(dms_TradingName,dms_TradingName_List)) -> YES | D136: dms_ShortRural_flag_NSP
B137: Long rural Feeder for this business | C137: =INDEX(dms_LongRural_flag,MATCH(dms_TradingName,dms_TradingName_List)) -> YES | D137: dms_LongRural_flag_NSP
B138: Fifth Feeder Category (eg. TasNetworks (D)) | C138: =INDEX(dms_FeederType_5_flag,MATCH(dms_TradingName,dms_TradingName_List)) -> NO | D138: dms_FifthFeeder_flag_NSP | E138: =INDEX(dms_FeederType_5_flag,MATCH(dms_TradingName,dms_TradingName_List))
B140: DISCARD FILES
B141: discard this record? | C141: NO | D141: dms_DISCARD | E141: If record is to be discarded from DB set this flag to YES
B143: USES NAMED RANGES FLAG | C143: yes | D143: dms_Defined_Names_Used
B145: REGULATORY YEARS FOR MULTI RYE SUBMISSIONS
B146: Multiple RYE flag | C146: NO | D146: dms_Multi_RYE_flag
C147: Manually specify RYE | D147: Named ranges to apply
C148: 2013 | D148: dms_RYE_01
C149: 2014 | D149: dms_RYE_02
C150: 2015 | D150: dms_RYE_03
C151: 2016 | D151: dms_RYE_04
C152: 2017 | D152: dms_RYE_05
C153: 2018 | D153: dms_RYE_06
C154: 2019 | D154: dms_RYE_07
C155: 2020 | D155: dms_RYE_08
C156: 2021 | D156: dms_RYE_09

Sheet 2.11 Labour
B1: =IF(dms_DataQuality="backcast",INDEX(dms_Worksheet_List,MATCH(dms_Model,dms_Model_List))&" BACKCAST",INDEX(dms_Worksheet_List,MATCH(dms_Model,dms_Model_List))) -> ANNUAL REPORTING STATEMENT
B2: =INDEX(dms_TradingNameFull_List,MATCH(dms_TradingName,dms_TradingName_List)) -> Endeavour Energy
B3: =CONCATENATE("Annual Reporting RIN Response ",IF(SUM(dms_SingleYear_Model)>0,CONCATENATE(CRY),CONCATENATE(FRCP_y1," to ",dms_MultiYear_FinalYear_Result))) -> Annual Reporting RIN Response 2017-18
B4: 2.11 LABOUR
B6: Tables 2.11.1 and 2.11.2 deliberately omitted.
B8: 2.11.3 - LABOUR / NON-LABOUR EXPENDITURE SPLIT
B9: 2.11.3.1 - Opex
C10: =CRY -> 2017-18
C11: $0's, nominal
C12: Opex
B13: In-house labour expenditure | C13: 129800627.4
B14: Labour expenditure outsourced to related parties | C14: 0
B15: Labour expenditure outsourced to unrelated parties | C15: 76187547.06
B16: Controllable non-labour expenditure | C16: 47093702.06
B17: Uncontrollable non-labour expenditure | C17: 4241021.634
B18: Total | C18: =SUM(C13:C17) -> 257322898.2
B20: Reconciliation with Opex worksheets - SCS | C20: Opex
B21: Total including margins | C21: =dms_Total_Actual_Opex -> 257322898.2 | D21: =IF(ROUND(C18,0)=ROUND(dms_Total_Actual_Opex,0),"OK","Error") -> OK
B24: 2.11.3.2 - Capex
C25: =CRY -> 2017-18
C26: $0's, nominal
C27: Capex
B28: In-house labour expenditure | C28: 76317373.12
B29: Labour expenditure outsourced to related parties | C29: 0
B30: Labour expenditure outsourced to unrelated parties | C30: 102800267.5
B31: Controllable non-labour expenditure | C31: 171698739
B32: Uncontrollable non-labour expenditure | C32: 147777114.2
B33: Total | C33: =SUM(C28:C32) -> 498593493.9
B35: Reconciliation with Capex & Opex worksheets - SCS | C35: Capex
B36: Total including margins | C36: =dms_Total_Actual_Capex -> 498593494.4 | D36: =IF(ROUND(C33,0)=ROUND(dms_Total_Actual_Capex,0),"OK","Error") -> OK

Sheet 3.6 Quality of services
B1: =IF(dms_DataQuality="backcast",INDEX(dms_Worksheet_List,MATCH(dms_Model,dms_Model_List))&" BACKCAST",INDEX(dms_Worksheet_List,MATCH(dms_Model,dms_Model_List))) -> ANNUAL REPORTING STATEMENT
B2: =INDEX(dms_TradingNameFull_List,MATCH(dms_TradingName,dms_TradingName_List)) -> Endeavour Energy
B3: =CONCATENATE("Annual Reporting RIN Response ",IF(SUM(dms_SingleYear_Model)>0,CONCATENATE(CRY),CONCATENATE(FRCP_y1," to ",dms_MultiYear_FinalYear_Result))) -> Annual Reporting RIN Response 2017-18
B4: 3.6 QUALITY OF SERVICES
B6: 3.6.5 - QUALITY OF SUPPLY METRICS
D7: Volume
C8: Units | D8: =CRY -> 2017-18
B9: Over voltage events - due to high voltage injection | C9: number
B10: Customers receiving over-voltage - due to high voltage injection | C10: number
B11: Over voltage events - due to lightning | C11: number
B12: Customers receiving over-voltage - due to lightning | C12: number
B13: Over voltage events - due to voltage regulation or other cause | C13: number
B14: Customers receiving over-voltage - due to voltage regulation or other cause | C14: number
B15: Voltage variations - steady state (zone sub) | C15: number
B16: Voltage variations - one minute (zone sub) | C16: number
B17: Voltage variations - 10 seconds (zone sub) Min<0.7 | C17: number
B18: Voltage variations - 10 seconds (zone sub) Min<0.8 | C18: number
B19: Voltage variations - 10 seconds (zone sub) Min<0.9 | C19: number
B20: Voltage variations - steady state (feeder) | C20: number
B21: Voltage variations - % zone subs monitored | C21: (per cent)
B22: Voltage variations - % feeders monitored | C22: (per cent)
B24: 3.6.6 - COMPLAINTS - TECHNICAL QUALITY OF SUPPLY
D25: Volume
C26: Units | D26: =CRY -> 2017-18
B27: 3.6.6.1 - TECHNICAL QUALITY OF SUPPLY
B28: Number of complaints - technical quality of supply | C28: number | D28: 16
B29: 3.6.6.2 - PERCENTAGE OF COMPLAINTS BY CATEGORY
B30: Low voltage supply | C30: (per cent)
B31: Voltage dips | C31: (per cent)
B32: Voltage swell | C32: (per cent)
B33: Voltage spike (impulsive transient) | C33: (per cent)
B34: Waveform distortion | C34: (per cent)
B35: TV or radio interference | C35: (per cent)
B36: Solar related | C36: (per cent)
B37: Noise from appliances | C37: (per cent)
B38: Other | C38: (per cent)
B39: 3.6.6.3 - PERCENTAGE OF COMPLAINTS BY LIKELY CAUSE
B40: Network equipment faulty | C40: (per cent)
B41: Network interference by NSP equipment | C41: (per cent)
B42: Network interference by another customer | C42: (per cent)
B43: Network limitation | C43: (per cent)
B44: Customer internal problem | C44: (per cent)
B45: No problem identified | C45: (per cent)
B46: Environmental | C46: (per cent)
B47: Other | C47: (per cent)
B51: 3.6.7 - CUSTOMER SERVICE METRICS
D52: Volume
C53: Unit | D53: =CRY -> 2017-18
B54: 3.6.7.1 - TIMELY PROVISIONS OF SERVICES
B55: Number of connections made | C55: number | D55: 0
B56: Number of connections not made on or before agreed date | C56: number | D56: 0
B57: 3.6.7.2 - TIMELY REPAIR OF FAULTY STREET LIGHTS
B58: Street lights - average monthly number "out" | C58: number | D58: 1194
B59: Street lights - not repaired by "fix by" date | C59: number | D59: 126
B60: Street lights - average number of days to repair | C60: number | D60: 4.8
B61: Total number of street lights | C61: number | D61: 205292
B62: 3.6.7.3 - CALL CENTRE PERFORMANCE
B63: Calls to call centre fault line | C63: number | D63: =IF(SUM(dms_060101_Values)=0,"",SUM(dms_060102_Values)) -> 186189
B64: Calls to fault line answered within 30 seconds | C64: number | D64: =IF(SUM(dms_060102_Values)=0,"",SUM(dms_060102_Values)) -> 186189
B65: Calls to fault line - average waiting time before call answered | C65: number | D65: 20
B66: Call centre - number of overload events | C66: number | D66: 0
B67: Percentage of calls abandoned | C67: (per cent) | D67: 0.0415
B68: 3.6.7.4 - NUMBER OF CUSTOMER COMPLAINTS
B69: Complaint - reliability of supply | C69: number
B70: Complaint - technical quality of supply | C70: number | D70: =IF(ISBLANK(dms_030606_01_Values),"",dms_030606_01_Values) -> 16
B71: Complaint - administrative process or customer service | C71: number
B72: Complaint - connection or augmentation | C72: number
B73: Complaint - other | C73: number
B74: Total number of complaints | C74: number | D74: =IF(SUM(D69:D73)=0,"",(SUM(D69:D73))) -> 16

Sheet 3.6.8 Network-feeders
B1: =IF(dms_DataQuality="backcast",INDEX(dms_Worksheet_List,MATCH(dms_Model,dms_Model_List))&" BACKCAST",INDEX(dms_Worksheet_List,MATCH(dms_Model,dms_Model_List))) -> ANNUAL REPORTING STATEMENT
B2: =INDEX(dms_TradingNameFull_List,MATCH(dms_TradingName,dms_TradingName_List)) -> Endeavour Energy
B3: =CONCATENATE("Annual Reporting RIN Response ",IF(SUM(dms_SingleYear_Model)>0,CONCATENATE(CRY),CONCATENATE(FRCP_y1," to ",dms_MultiYear_FinalYear_Result))) -> Annual Reporting RIN Response 2017-18
B4: 3.6 QUALITY OF SERVICES
B6: Did the MAIFI parameter of the STPIS apply during the period? | F6: No | G6: ** IMPORTANT Please ensure this question is answered correctly. Your response will affect other tables throughout this workbook and will determine which cells are grey and which are input cells.
B10: 3.6.8 - NETWORK FEEDER RELIABILITY
B11: Feeder ID / name | C11: Description of the service area for the feeder | D11: Feeder classification (drop down) | E11: Number of distribution customers | F11: Length of high voltage distribution lines | H11: Maximum demand (MVA) | I11: Energy not supplied (MWh) | K11: Unplanned Outages | P11: Planned Outages | U11: Momentary feeder outages
F12: Overhead | G12: Underground | I12: Unplanned | J12: Planned | K12: Total number of unplanned outages | L12: Unplanned customer minutes off-supply (SAIDI) | N12: Unplanned interruptions (SAIFI) | P12: Total number of planned outages | Q12: Planned customer minutes off-supply (SAIDI) | S12: Planned interruptions (SAIFI) | U12: Total number of momentary feeder outages | V12: Momentary interruptions due to feeder outages (MAIFI)
L13: Including excluded events and MEDs | M13: After removing excluded events and MED | N13: Including excluded events and MEDs | O13: After removing excluded events and MED | Q13: Including MEDs | R13: After removing MED | S13: Including MEDs | T13: After removing MED | V13: Including excluded events and MEDs | W13: After removing excluded events and MED
B14: (unknown JAMBEROO) | C14: JAMBEROO | D14: Short rural | E14: 0 | F14: 0 | G14: 0 | H14: 0 | I14: 0 | J14: 0.02622438602 | K14: 0 | L14: 0 | M14: 0 | N14: 0 | O14: 0 | P14: 1 | Q14: 0.006539182072 | R14: 0.006539182072 | S14: 1.767346506e-05 | T14: 1.767346506e-05
B15: (unknown KATOOMBA) | C15: KATOOMBA | D15: Urban | E15: 0 | F15: 0 | G15: 0 | H15: 0 | I15: 0 | J15: 0.196470265 | K15: 0 | L15: 0 | M15: 0 | N15: 0 | O15: 0 | P15: 2 | Q15: 0.01892909919 | R15: 0.01892909919 | S15: 5.326369901e-05 | T15: 5.3263699014e-05
B16: (unknown NORTH ROCKS) | C16: NORTH ROCKS | D16: Urban | E16: 0 | F16: 0 | G16: 0 | H16: 0 | I16: 0 | J16: 0.01020624753 | K16: 0 | L16: 0 | M16: 0 | N16: 0 | O16: 0 | P16: 1 | Q16: 0.0009833298279 | R16: 0.0009833298279 | S16: 2.731471744e-06 | T16: 2.7314717443e-06
B17: 10241 | C17: KATOOMBA | D17: Short rural | E17: 1174 | F17: 10.17387596 | G17: 0.1988016821 | H17: 2.324412184 | I17: 2.33252447 | J17: 3.377559165 | K17: 3 | L17: 0.5816266657 | M17: 0.5816266657 | N17: 0.00469407232 | O17: 0.00469407232 | P17: 10 | Q17: 0.8422113039 | R17: 0.8422113039 | S17: 0.002502562652 | T17: 0.0025025626524
B18: 10242 | C18: KATOOMBA | D18: Urban | E18: 1352 | F18: 8.506643636 | G18: 0.9112467502 | H18: 1.54325727 | I18: 0.7619814302 | J18: 0.5749519442 | K18: 2 | L18: 0.07341376607 | M18: 0.07341376607 | N18: 0.0007361316351 | O18: 0.0007361316351 | P18: 4 | Q18: 0.05539424697 | R18: 0.05539424697 | S18: 0.0001406707948 | T18: 0.00014067079483
B19: 10244 | C19: KATOOMBA | D19: Short rural | E19: 933 | F19: 22.27811291 | G19: 3.120371475 | H19: 1.295574004 | I19: 1.68100868 | J19: 2.523919962 | K19: 6 | L19: 0.4191679385 | M19: 0.4191679384 | N19: 0.002132129047 | O19: 0.002132129047 | P19: 10 | Q19: 0.6293520908 | R19: 0.6293520908 | S19: 0.001505779223 | T19: 0.0015057792231
B20: 10245 | C20: KATOOMBA | D20: Short rural | E20: 905 | F20: 9.821544276 | G20: 0.5077132185 | H20: 1.295574004 | I20: 0.1853851461 | J20: 2.359400922 | K20: 5 | L20: 0.04622671521 | M20: 0.04622671521 | N20: 0.0004983917147 | O20: 0.0004983917147 | P20: 8 | Q20: 0.5883284437 | R20: 0.5883284437 | S20: 0.002170301509 | T20: 0.0021703015093
B21: 10247 | C21: KATOOMBA | D21: Urban | E21: 457 | F21: 0.02485708889 | G21: 2.608831274 | H21: 3.315145246 | I21: 0.6702674624 | J21: 0.2487772836 | K21: 1 | L21: 0.06457750378 | M21: 0.06457750378 | N21: 0.0006035280727 | O21: 0.0006035280727 | P21: 4 | Q21: 0.02396866456 | R21: 0.02396866456 | S21: 5.053222727e-05 | T21: 5.0532227269e-05
B22: 10248 | C22: KATOOMBA | D22: Short rural | E22: 1160 | F22: 6.229813386 | G22: 1.912368727 | H22: 1.638520064 | I22: 0.6130552683 | J22: 0.3155431528 | K22: 2 | L22: 0.1528684034 | M22: 0.1528684034 | N22: 0.0006786610583 | O22: 0.0006786610583 | P22: 1 | Q22: 0.07868226645 | R22: 0.07868226645 | S22: 0.0001873387296 | T22: 0.00018733872963
B23: 10250 | C23: KATOOMBA | D23: Short rural | E23: 1013 | F23: 6.804666479 | G23: 5.03396989 | H23: 2.495885214 | I23: 4.450448411 | J23: 0.265617592 | K23: 5 | L23: 1.109741614 | M23: 1.109741614 | N23: 0.007656145064 | O23: 0.007656145064 | P23: 2 | Q23: 0.06623307766 | R23: 0.06623307766 | S23: 0.0002120815807 | T23: 0.00021208158071
B24: 10251 | C24: KATOOMBA | D24: Short rural | E24: 1392 | F24: 8.617490473 | G24: 0.991500156 | H24: 1.714730299 | I24: 2.297028903 | J24: 1.875397984 | K24: 7 | L24: 0.5727756681 | M24: 0.5727756681 | N24: 0.004984246311 | O24: 0.004984246311 | P24: 6 | Q24: 0.4676398855 | R24: 0.4676398855 | S24: 0.001099289527 | T24: 0.0010992895267
B25: 10286 | C25: NORTH RICHMOND | D25: Short rural | E25: 666 | F25: 19.00343375 | G25: 8.68706 | H25: 2.876936391 | I25: 0.005273227891 | J25: 0.6327873469 | K25: 2 | L25: 0.0013149058 | M25: 0.0013149058 | N25: 2.120815807e-05 | O25: 2.120815807e-05 | P25: 7 | Q25: 0.1577886961 | R25: 0.1577886961 | S25: 0.0003393305291 | T25: 0.00033933052914
B26: 10287 | C26: NORTH RICHMOND | D26: Urban | E26: 954 | F26: 4.38476 | G26: 0.7451926796 | H26: 4.305878308 | I26: 0.1094053034 | J26: 1.785242797 | K26: 2 | L26: 0.01054074946 | M26: 0.01054074946 | N26: 0.0001379393231 | O26: 0.0001379393231 | P26: 2 | Q26: 0.1720007757 | R26: 0.1720007757 | S26: 0.000374211629 | T26: 0.00037421162897
B27: 10289 | C27: NORTH RICHMOND | D27: Short rural | E27: 89 | F27: 6.325798964 | G27: 0.20999 | H27: 0.495366531 | I27: 0.353731529 | J27: 0.1556452748 | K27: 4 | L27: 0.08820472942 | M27: 0.08820472942 | N27: 0.0009614364992 | O27: 0.0009614364992 | P27: 1 | Q27: 0.03881092927 | R27: 0.03881092927 | S27: 0.0001272489484 | T27: 0.00012724894843
B28: 10290 | C28: NORTH RICHMOND | D28: Short rural | E28: 352 | F28: 15.83409476 | G28: 0.5378109174 | H28: 3.543775952 | I28: 0.04524769739 | J28: 0.9662623096 | K28: 3 | L28: 0.01128274009 | M28: 0.01128274009 | N28: 0.000890742639 | O28: 0.000890742639 | P28: 4 | Q28: 0.2409423492 | R28: 0.2409423492 | S28: 0.0006503835142 | T28: 0.00065038351419
B29: 16647 | C29: NORTH PARRAMATTA | D29: Urban | E29: 246 | F29: 0 | G29: 1.183833259 | H29: 3.179054088 | I29: 2.592372697 | J29: 0 | K29: 1 | L29: 0.2497644106 | M29: 0.2497644106 | N29: 0.0003359710245 | O29: 0.0003359710245 | P29: 0 | Q29: 0 | R29: 0 | S29: 0 | T29: 0
B30: 16649 | C30: NORTH PARRAMATTA | D30: Urban | E30: 1824 | F30: 2.451155575 | G30: 3.783424999 | H30: 3.029356862 | I30: 0.07281874106 | J30: 1.826705678 | K30: 1 | L30: 0.007015785175 | M30: 0.007015785175 | N30: 8.33098882e-05 | O30: 8.33098882e-05 | P30: 2 | Q30: 0.1759955532 | R30: 0.1759955532 | S30: 0.0003714801572 | T30: 0.00037148015722
B31: 16651 | C31: NORTH PARRAMATTA | D31: Urban | E31: 1157 | F31: 0 | G31: 2.58464075 | H31: 3.91187139 | I31: 0.05770782458 | J31: 0.43376552 | K31: 1 | L31: 0.005559910735 | M31: 0.005559910736 | N31: 3.141192506e-05 | O31: 3.141192506e-05 | P31: 1 | Q31: 0.04179151769 | R31: 0.04179151769 | S31: 0.0002089575884 | T31: 0.00020895758844
B32: 16653 | C32: NORTH PARRAMATTA | D32: Urban | E32: 1589 | F32: 5.224816758 | G32: 2.34685 | H32: 3.730176027 | I32: 2.374951274 | J32: 0.3652986095 | K32: 4 | L32: 0.2288167538 | M32: 0.2288167538 | N32: 0.004385377885 | O32: 0.004385377885 | P32: 2 | Q32: 0.03519501343 | R32: 0.03519501343 | S32: 8.467562407e-05 | T32: 8.4675624073e-05
B33: 16660 | C33: NORTH PARRAMATTA | D33: Urban | E33: 1325 | F33: 6.159090093 | G33: 1.716004115 | H33: 5.402828115 | I33: 2.00552764 | J33: 0 | K33: 3 | L33: 0.1932243112 | M33: 0.1932243112 | N33: 0.001912030221 | O33: 0.001912030221 | P33: 0 | Q33: 0 | R33: 0 | S33: 0 | T33: 0
B34: 16662 | C34: NORTH PARRAMATTA | D34: Urban | E34: 386 | F34: 0 | G34: 2.208669973 | H34: 2.945617056 | I34: 0 | J34: 0.001275780941 | K34: 0 | L34: 0 | M34: 0 | N34: 0 | O34: 0 | P34: 1 | Q34: 0.0001229162285 | R34: 0.0001229162285 | S34: 4.097207616e-06 | T34: 4.0972076164e-06
B35: 16664 | C35: NORTH PARRAMATTA | D35: Urban | E35: 21 | F35: 0 | G35: 1.94738 | H35: 0.03931432017 | I35: 0 | J35: 0 | K35: 0 | L35: 0 | M35: 0 | N35: 0 | O35: 0 | P35: 0 | Q35: 0 | R35: 0 | S35: 0 | T35: 0
B36: 16666 | C36: NORTH PARRAMATTA | D36: Urban | E36: 1953 | F36: 1.775564783 | G36: 5.27445 | H36: 3.810511777 | I36: 0.886781157 | J36: 0.009780987217 | K36: 1 | L36: 0.08543770469 | M36: 0.08543770469 | N36: 0.002133279432 | O36: 0.002133279432 | P36: 1 | Q36: 0.0009423577518 | R36: 0.0009423577518 | S36: 1.365735872e-06 | T36: 1.3657358721e-06
B37: 17058 | C37: ARNDELL PARK | D37: Urban | E37: 967 | F37: 2.334633816 | G37: 2.110564863 | H37: 2.643031936 | I37: 0 | J37: 1.478630111 | K37: 0 | L37: 0 | M37: 0 | N37: 0 | O37: 0 | P37: 2 | Q37: 0.1424599088 | R37: 0.1424599088 | S37: 0.0002622212875 | T37: 0.00026222128745
B38: 17059 | C38: ARNDELL PARK | D38: Urban | E38: 55 | F38: 0.1358786155 | G38: 1.906159626 | H38: 2.800726156 | I38: 0 | J38: 0.004252603138 | K38: 0 | L38: 0 | M38: 0 | N38: 0 | O38: 0 | P38: 1 | Q38: 0.0004097207616 | R38: 0.0004097207616 | S38: 1.365735872e-06 | T38: 1.3657358721e-06
B39: 17061 | C39: ARNDELL PARK | D39: Urban | E39: 841 | F39: 2.121434871 | G39: 5.037887485 | H39: 2.057676359 | I39: 0.6958959774 | J39: 2.903890053 | K39: 6 | L39: 0.06704670543 | M39: 0.06704670544 | N39: 0.0002499296646 | O39: 0.0002499296646 | P39: 3 | Q39: 0.2797778221 | R39: 0.2797778221 | S39: 0.0007552519373 | T39: 0.0007552519373
B40: 17063 | C40: ARNDELL PARK | D40: Urban | E40: 1 | F40: 0 | G40: 2.0393 | H40: 0.8421129413 | I40: 0 | J40: 0 | K40: 0 | L40: 0 | M40: 0 | N40: 0 | O40: 0 | P40: 0 | Q40: 0 | R40: 0 | S40: 0 | T40: 0
B41: 17067 | C41: ARNDELL PARK | D41: Urban | E41: 1246 | F41: 2.216042344 | G41: 4.906167913 | H41: 3.296208272 | I41: 0.03764971311 | J41: 0 | K41: 3 | L41: 0.003627394476 | M41: 0.003627394476 | N41: 3.277766093e-05 | O41: 3.277766093e-05 | P41: 0 | Q41: 0 | R41: 0 | S41: 0 | T41: 0
B42: 17068 | C42: ARNDELL PARK | D42: Urban | E42: 30 | F42: 0 | G42: 1.00648 | H42: 1.365433387 | I42: 0 | J42: 0 | K42: 0 | L42: 0 | M42: 0 | N42: 0 | O42: 0 | P42: 0 | Q42: 0 | R42: 0 | S42: 0 | T42: 0
B43: 17069 | C43: ARNDELL PARK | D43: Urban | E43: 21 | F43: 0.75994 | G43: 2.555 | H43: 1.447994475 | I43: 0.09469129653 | J43: 0.02105038553 | K43: 3 | L43: 0.009123115626 | M43: 0.009123115626 | N43: 6.145811425e-05 | O43: 6.145811425e-05 | P43: 2 | Q43: 0.00202811777 | R43: 0.00202811777 | S43: 4.097207616e-06 | T43: 4.0972076164e-06
B44: 17070 | C44: ARNDELL PARK | D44: Short rural | E44: 3 | F44: 0.48695 | G44: 1.70035 | H44: 0.158771324 | I44: 0 | J44: 0.0138209602 | K44: 0 | L44: 0 | M44: 0 | N44: 0 | O44: 0 | P44: 1 | Q44: 0.003446325687 | R44: 0.003446325687 | S44: 1.060407904e-05 | T44: 1.0604079036e-05
B45: 1949 | C45: MARAYONG | D45: Urban | E45: 2 | F45: 0 | G45: 0.9642500359 | H45: 5.072858118 | I45: 0 | J45: 0 | K45: 0 | L45: 0 | M45: 0 | N45: 0 | O45: 0 | P45: 0 | Q45: 0 | R45: 0 | S45: 0 | T45: 0
B46: 1950 | C46: MARAYONG | D46: Urban | E46: 362 | F46: 3.586357887 | G46: 2.45691618 | H46: 3.535405528 | I46: 0.4486779817 | J46: 0.270607313 | K46: 2 | L46: 0.04322827182 | M46: 0.04322827183 | N46: 0.0005025908009 | O46: 0.0005025908009 | P46: 4 | Q46: 0.0260718978 | R46: 0.0260718978 | S46: 7.511547297e-05 | T46: 7.5115472968e-05
B47: 1951 | C47: MARAYONG | D47: Urban | E47: 1 | F47: 0 | G47: 2.97935 | H47: 2.925822717 | I47: 0 | J47: 0 | K47: 0 | L47: 0 | M47: 0 | N47: 0 | O47: 0 | P47: 0 | Q47: 0 | R47: 0 | S47: 0 | T47: 0
B48: 1952 | C48: MARAYONG | D48: Urban | E48: 357 | F48: 1.443182273 | G48: 3.572899731 | H48: 1.600414946 | I48: 0.1629314015 | J48: 0.6910480099 | K48: 1 | L48: 0.01569776811 | M48: 0.01569776811 | N48: 0.0005831692174 | O48: 0.0005831692174 | P48: 2 | Q48: 0.06657962377 | R48: 0.06657962377 | S48: 0.0001611568329 | T48: 0.00016115683291
B49: 1953 | C49: MARAYONG | D49: Urban | E49: 23 | F49: 1.515227172 | G49: 2.802170205 | H49: 1.323047794 | I49: 0.0224962706 | J49: 0 | K49: 1 | L49: 0.002167422829 | M49: 0.002167422829 | N49: 3.141192506e-05 | O49: 3.141192506e-05 | P49: 0 | Q49: 0 | R49: 0 | S49: 0 | T49: 0
B50: 1954 | C50: MARAYONG | D50: Urban | E50: 368 | F50: 0.467115947 | G50: 5.114304433 | H50: 4.933373064 | I50: 0.02883264927 | J50: 0.1718051668 | K50: 1 | L50: 0.002777906764 | M50: 0.002777906764 | N50: 2.45832457e-05 | O50: 2.45832457e-05 | P50: 2 | Q50: 0.01655271877 | R50: 0.01655271877 | S50: 3.960634029e-05 | T50: 3.9606340292e-05
B51: 1956 | C51: MARAYONG | D51: Urban | E51: 138 | F51: 0 | G51: 1.837865279 | H51: 1.225714621 | I51: 0 | J51: 0.0134665766 | K51: 0 | L51: 0 | M51: 0 | N51: 0 | O51: 0 | P51: 1 | Q51: 0.001297449079 | R51: 0.001297449079 | S51: 2.731471744e-06 | T51: 2.7314717443e-06
B52: 1957 | C52: MARAYONG | D52: Urban | E52: 1554 | F52: 10.1439948 | G52: 0.95368 | H52: 3.937909887 | I52: 3.027995187 | J52: 1.428236764 | K52: 5 | L52: 0.2917348396 | M52: 0.2917348396 | N52: 0.002268487284 | O52: 0.002268487284 | P52: 4 | Q52: 0.1376047178 | R52: 0.1376047178 | S52: 0.0003851375159 | T52: 0.00038513751594
B53: 1958 | C53: MARAYONG | D53: Urban | E53: 154 | F53: 2.281814837 | G53: 1.62198 | H53: 4.527281744 | I53: 0.3979160756 | J53: 0.02891770134 | K53: 6 | L53: 0.03833757167 | M53: 0.03833757167 | N53: 0.0005039565368 | O53: 0.0005039565368 | P53: 4 | Q53: 0.002786101179 | R53: 0.002786101179 | S53: 6.828679361e-06 | T53: 6.8286793607e-06
B54: 1959 | C54: MARAYONG | D54: Urban | E54: 890 | F54: 5.158505932 | G54: 1.822278626 | H54: 4.984060492 | I54: 0.07355585894 | J54: 0.02296405694 | K54: 2 | L54: 0.007086803441 | M54: 0.007086803441 | N54: 0.0001051616622 | O54: 0.0001051616622 | P54: 1 | Q54: 0.002212492113 | R54: 0.002212492113 | S54: 8.194415233e-06 | T54: 8.1944152329e-06
B55: 1960 | C55: MARAYONG | D55: Urban | E55: 801 | F55: 0.33995 | G55: 6.673411277 | H55: 4.037994249 | I55: 1.921127643 | J55: 0 | K55: 2 | L55: 0.1850927198 | M55: 0.1850927198 | N55: 0.002375014682 | O55: 0.002375014682 | P55: 0 | Q55: 0 | R55: 0 | S55: 0 | T55: 0
B56: 1962 | C56: MARAYONG | D56: Urban | E56: 1947 | F56: 7.642485573 | G56: 3.79448 | H56: 5.747547333 | I56: 3.293173344 | J56: 1.089091664 | K56: 3 | L56: 0.3172836606 | M56: 0.3172836606 | N56: 0.003074271448 | O56: 0.003074271448 | P56: 3 | Q56: 0.1049294871 | R56: 0.1049294871 | S56: 0.0002144205319 | T56: 0.00021442053193
B57: 1963 | C57: MARAYONG | D57: Urban | E57: 0 | F57: 0 | G57: 2.10258 | H57: 4.446016229 | I57: 0.007994893899 | J57: 0 | K57: 1 | L57: 0.0007702750319 | M57: 0.0007702750319 | N57: 1.365735872e-06 | O57: 1.365735872e-06 | P57: 0 | Q57: 0 | R57: 0 | S57: 0 | T57: 0
B58: 19815 | C58: WEST CASTLE HILL | D58: Urban | E58: 0 | F58: 0 | G58: 0 | H58: 0 | I58: 0 | J58: 0.006945918458 | K58: 0 | L58: 0 | M58: 0 | N58: 0 | O58: 0 | P58: 1 | Q58: 0.0006692105774 | R58: 0.0006692105774 | S58: 2.731471744e-06 | T58: 2.7314717443e-06
B59: 19816 | C59: WEST CASTLE HILL | D59: Urban | E59: 962 | F59: 1.796900909 | G59: 11.82693216 | H59: 4.801244839 | I59: 0.04948612518 | J59: 0.7488834125 | K59: 1 | L59: 0.00476778393 | M59: 0.00476778393 | N59: 2.594898157e-05 | O59: 2.594898157e-05 | P59: 2 | Q59: 0.07215182613 | R59: 0.07215182613 | S59: 0.0001024301904 | T59: 0.00010243019041
B60: 19856 | C60: SPRINGWOOD | D60: Urban | E60: 1118 | F60: 9.715505181 | G60: 3.962904254 | H60: 4.648824368 | I60: 4.105777098 | J60: -0.2104329786 | K60: 11 | L60: 0.3955746787 | M60: 0.3955746787 | N60: 0.003896538797 | O60: 0.003896538797 | P60: 7 | Q60: -0.02027434902 | R60: -0.02027434902 | S60: 0.0008699737506 | T60: 0.00086997375056
B61: 19857 | C61: SPRINGWOOD | D61: Urban | E61: 2455 | F61: 21.68478293 | G61: 3.485755139 | H61: 8.764177086 | I61: 10.43158047 | J61: 6.754466265 | K61: 14 | L61: 1.005039726 | M61: 1.005039726 | N61: 0.01644835945 | O61: 0.01644835945 | P61: 15 | Q61: 0.6507649487 | R61: 0.6507649487 | S61: 0.001662100556 | T61: 0.0016621005564
B62: 19868 | C62: LENNOX | D62: Urban | E62: 1543 | F62: 0.774034096 | G62: 3.555013144 | H62: 1.56247241 | I62: 2.421871662 | J62: 0 | K62: 1 | L62: 0.2333373395 | M62: 0.2333373395 | N62: 0.002123719281 | O62: 0.002123719281 | P62: 0 | Q62: 0 | R62: 0 | S62: 0 | T62: 0
B63: 19870 | C63: LENNOX | D63: Urban | E63: 1630 | F63: 0.3813022075 | G63: 3.296573304 | H63: 2.644220816 | I63: 0.0007229425334 | J63: 0.04366005888 | K63: 1 | L63: 6.965252948e-05 | M63: 6.965252948e-05 | N63: 1.365735872e-06 | O63: 1.365735872e-06 | P63: 2 | Q63: 0.004206466486 | R63: 0.004206466486 | S63: 3.824060442e-05 | T63: 3.824060442e-05
B64: 19871 | C64: LENNOX | D64: Urban | E64: 1460 | F64: 0.19869 | G64: 3.297587963 | H64: 2.089003847 | I64: 0 | J64: 0 | K64: 0 | L64: 0 | M64: 0 | N64: 0 | O64: 0 | P64: 0 | Q64: 0 | R64: 0 | S64: 0 | T64: 0
B65: 25449 | C65: KEMBLA GRANGE | D65: Short rural | E65: 418 | F65: 17.5883735 | G65: 6.09895 | H65: 1.39341969 | I65: 0.04580053579 | J65: 1.744417807 | K65: 2 | L65: 0.01142059312 | M65: 0.01142059312 | N65: 6.00897812e-05 | O65: 6.00897812e-05 | P65: 20 | Q65: 0.434979322 | R65: 0.434979322 | S65: 0.001131101764 | T65: 0.0011311017638
B66: 25450 | C66: KEMBLA GRANGE | D66: Short rural | E66: 1112 | F66: 16.53626623 | G66: 0.4452788793 | H66: 2.426449433 | I66: 7.275410149 | J66: 6.906298372 | K66: 10 | L66: 1.81415998 | M66: 1.81415998 | N66: 0.01436145771 | O66: 0.01436145771 | P66: 17 | Q66: 1.722120109 | R66: 1.722120109 | S66: 0.004361811177 | T66: 0.0043618111767
B67: 25451 | C67: KEMBLA GRANGE | D67: Short rural | E67: 29 | F67: 3.33214 | G67: 1.283175442 | H67: 1.16334353 | I67: 0.03229143316 | J67: 0.1776170577 | K67: 1 | L67: 0.008052030681 | M67: 0.008052030681 | N67: 6.00897812e-05 | O67: 6.00897812e-05 | P67: 3 | Q67: 0.04428970344 | R67: 0.04428970344 | S67: 0.0001343183345 | T67: 0.00013431833445
B68: 25737 | C68: PRESTONS | D68: Urban | E68: 494 | F68: 0 | G68: 5.57948 | H68: 2.560155846 | I68: 0 | J68: 0 | K68: 0 | L68: 0 | M68: 0 | N68: 0 | O68: 0 | P68: 0 | Q68: 0 | R68: 0 | S68: 0 | T68: 0
B69: 25738 | C69: PRESTONS | D69: Urban | E69: 962 | F69: 1.266518129 | G69: 6.760440684 | H69: 3.064244003 | I69: 0.04417037126 | J69: 0.0153093713 | K69: 3 | L69: 0.004255632978 | M69: 0.004255632978 | N69: 3.004618919e-05 | O69: 3.004618919e-05 | P69: 1 | Q69: 0.001474994742 | R69: 0.001474994742 | S69: 2.731471744e-06 | T69: 2.7314717443e-06
B70: 25739 | C70: PRESTONS | D70: Short rural | E70: 753 | F70: 0.4786831579 | G70: 10.9595 | H70: 2.805383236 | I70: 0.0001417534379 | J70: 0.09497480341 | K70: 1 | L70: 3.534693012e-05 | M70: 3.534693012e-05 | N70: 7.069386024e-06 | O70: 7.069386024e-06 | P70: 3 | Q70: 0.02368244318 | R70: 0.02368244318 | S70: 4.241631614e-05 | T70: 4.2416316143e-05
B71: 25740 | C71: PRESTONS | D71: Urban | E71: 578 | F71: 0 | G71: 5.165618833 | H71: 2.629253126 | I71: 0 | J71: 0 | K71: 0 | L71: 0 | M71: 0 | N71: 0 | O71: 0 | P71: 0 | Q71: 0 | R71: 0 | S71: 0 | T71: 0
B72: 25741 | C72: PRESTONS | D72: Urban | E72: 221 | F72: 1.3186 | G72: 3.48595 | H72: 0.8700668557 | I72: 0.04044225584 | J72: 0.116521326 | K72: 1 | L72: 0.003896444443 | M72: 0.003896444443 | N72: 5.462943489e-06 | O72: 5.462943489e-06 | P72: 3 | Q72: 0.01122634887 | R72: 0.01122634887 | S72: 2.731471744e-05 | T72: 2.7314717443e-05
B73: 25744 | C73: PRESTONS | D73: Short rural | E73: 766 | F73: 8.53961 | G73: 13.80201 | H73: 4.249970479 | I73: 3.287956817 | J73: 0.4408531919 | K73: 5 | L73: 0.8198685094 | M73: 0.8198685094 | N73: 0.01098582588 | O73: 0.01098582588 | P73: 7 | Q73: 0.1099289527 | R73: 0.1099289527 | S73: 0.0002262203528 | T73: 0.00022622035276
B74: 25746 | C74: PRESTONS | D74: Urban | E74: 704 | F74: 1.019666075 | G74: 4.101489652 | H74: 2.675588949 | I74: 0 | J74: 0.1575589463 | K74: 0 | L74: 0 | M74: 0 | N74: 0 | O74: 0 | P74: 1 | Q74: 0.01518015422 | R74: 0.01518015422 | S74: 2.594898157e-05 | T74: 2.5948981571e-05
B75: 25747 | C75: PRESTONS | D75: Short rural | E75: 605 | F75: 0.9906939219 | G75: 8.843502955 | H75: 3.836728098 | I75: 0 | J75: 0.3261746607 | K75: 0 | L75: 0 | M75: 0 | N75: 0 | O75: 0 | P75: 1 | Q75: 0.0813332862 | R75: 0.0813332862 | S75: 0.0002085468877 | T75: 0.0002085468877
B76: 25773 | C76: PARKLEA | D76: Urban | E76: 1585 | F76: 0 | G76: 8.23198 | H76: 7.670560206 | I76: 0.05012401565 | J76: 0.8225243235 | K76: 1 | L76: 0.004829242044 | M76: 0.004829242044 | N76: 1.775456634e-05 | O76: 1.775456634e-05 | P76: 4 | Q76: 0.07924682398 | R76: 0.07924682398 | S76: 0.0003578227985 | T76: 0.0003578227985
B77: 25774 | C77: PARKLEA | D77: Urban | E77: 1731 | F77: 0.22036 | G77: 11.96760855 | H77: 7.537131326 | I77: 0.01305549163 | J77: 0.1326812179 | K77: 1 | L77: 0.001257842738 | M77: 0.001257842738 | N77: 1.912030221e-05 | O77: 1.912030221e-05 | P77: 1 | Q77: 0.01278328776 | R77: 0.01278328776 | S77: 5.326369901e-05 | T77: 5.3263699014e-05
B78: 25775 | C78: PARKLEA | D78: Urban | E78: 1067 | F78: 0.4692913211 | G78: 9.756850977 | H78: 9.29724228 | I78: 0 | J78: 0.01786093318 | K78: 0 | L78: 0 | M78: 0 | N78: 0 | O78: 0 | P78: 2 | Q78: 0.001720827199 | R78: 0.001720827199 | S78: 4.097207616e-06 | T78: 4.0972076164e-06
B79: 25776 | C79: PARKLEA | D79: Urban | E79: 2 | F79: 0 | G79: 3.06903 | H79: 3.48225905 | I79: 0 | J79: 0 | K79: 0 | L79: 0 | M79: 0 | N79: 0 | O79: 0 | P79: 0 | Q79: 0 | R79: 0 | S79: 0 | T79: 0
B80: 25777 | C80: PARKLEA | D80: Urban | E80: 1295 | F80: 0.8859059553 | G80: 14.64234 | H80: 10.74564321 | I80: 0.02733006283 | J80: 0.1023459822 | K80: 1 | L80: 0.002633138761 | M80: 0.002633138761 | N80: 2.594898157e-05 | O80: 2.594898157e-05 | P80: 3 | Q80: 0.009860612997 | R80: 0.009860612997 | S80: 0.0001570596253 | T80: 0.0001570596253
B81: 25779 | C81: PARKLEA | D81: Urban | E81: 759 | F81: 0 | G81: 9.53368 | H81: 4.404341932 | I81: 0 | J81: 0.008930466589 | K81: 0 | L81: 0 | M81: 0 | N81: 0 | O81: 0 | P81: 1 | Q81: 0.0008604135995 | R81: 0.0008604135995 | S81: 1.365735872e-06 | T81: 1.3657358721e-06
B82: 25780 | C82: PARKLEA | D82: Urban | E82: 1667 | F82: 0.5388506843 | G82: 12.431062 | H82: 7.635655919 | I82: 0.09507403081 | J82: 0.449925412 | K82: 2 | L82: 0.009159990494 | M82: 0.009159990494 | N82: 1.775456634e-05 | O82: 1.775456634e-05 | P82: 2 | Q82: 0.04334845658 | R82: 0.04334845658 | S82: 0.0001379393231 | T82: 0.00013793932309
B83: 25781 | C83: PARKLEA | D83: Urban | E83: 1894 | F83: 1.38504517 | G83: 16.35671112 | H83: 7.872944108 | I83: 2.32674093 | J83: 0.2287900488 | K83: 6 | L83: 0.2241718861 | M83: 0.2241718861 | N83: 0.002719180121 | O83: 0.002719180121 | P83: 3 | Q83: 0.02204297698 | R83: 0.02204297698 | S83: 0.0001638883047 | T83: 0.00016388830466
B84: 25782 | C84: PARKLEA | D84: Urban | E84: 1066 | F84: 0 | G84: 12.87196 | H84: 9.373858971 | I84: 0 | J84: 0.4398609179 | K84: 0 | L84: 0 | M84: 0 | N84: 0 | O84: 0 | P84: 4 | Q84: 0.04237878411 | R84: 0.04237878411 | S84: 0.0001352078513 | T84: 0.00013520785134
B85: 25783 | C85: PARKLEA | D85: Urban | E85: 2653 | F85: 5.073594849 | G85: 19.21361864 | H85: 7.154896349 | I85: 0.08826986579 | J85: 1.614288151 | K85: 1 | L85: 0.008504437276 | M85: 0.008504437276 | N85: 6.145811425e-05 | O85: 6.145811425e-05 | P85: 5 | Q85: 0.1555300011 | R85: 0.1555300011 | S85: 0.0002731471744 | T85: 0.00027314717443
B86: 25784 | C86: PARKLEA | D86: Urban | E86: 1912 | F86: 0 | G86: 17.59851 | H86: 7.420292144 | I86: 0 | J86: 1.209582086 | K86: 0 | L86: 0 | M86: 0 | N86: 0 | O86: 0 | P86: 6 | Q86: 0.116538242 | R86: 0.116538242 | S86: 0.0004247438562 | T86: 0.00042474385624
B87: 27027 | C87: NARELLAN | D87: Urban | E87: 758 | F87: 0 | G87: 5.29982 | H87: 3.448513158 | I87: 0.04313119594 | J87: 0 | K87: 1 | L87: 0.004155512724 | M87: 0.004155512724 | N87: 0.001038878181 | O87: 0.001038878181 | P87: 0 | Q87: 0 | R87: 0 | S87: 0 | T87: 0
B88: 27029 | C88: NARELLAN | D88: Short rural | E88: 1451 | F88: 1.94418 | G88: 27.42807429 | H88: 6.890675463 | I88: 0.3290123755 | J88: 0.8048051438 | K88: 2 | L88: 0.08204088462 | M88: 0.08204088462 | N88: 0.005816502303 | O88: 0.005816502303 | P88: 5 | Q88: 0.2006821958 | R88: 0.2006821958 | S88: 0.0003393305291 | T88: 0.00033933052914
B89: 27030 | C89: NARELLAN | D89: Urban | E89: 1624 | F89: 0 | G89: 10.84317598 | H89: 7.265375787 | I89: 0.09178181932 | J89: 0.1008575711 | K89: 1 | L89: 0.008842799504 | M89: 0.008842799504 | N89: 0.002210699876 | O89: 0.002210699876 | P89: 2 | Q89: 0.00971721073 | R89: 0.00971721073 | S89: 4.91664914e-05 | T89: 4.9166491397e-05
B90: 27031 | C90: NARELLAN | D90: Short rural | E90: 595 | F90: 16.14521487 | G90: 11.07965 | H90: 3.200829892 | I90: 2.984579422 | J90: 0.2594796681 | K90: 9 | L90: 0.7442198356 | M90: 0.7442198356 | N90: 0.01249761302 | O90: 0.01249761302 | P90: 6 | Q90: 0.06470255558 | R90: 0.06470255558 | S90: 0.0001519917995 | T90: 0.00015199179951
B91: 27033 | C91: NARELLAN | D91: Urban | E91: 795 | F91: 0 | G91: 10.44699 | H91: 4.305878308 | I91: 0.05632226321 | J91: 0.0515982514 | K91: 2 | L91: 0.005426417616 | M91: 0.005426417616 | N91: 0.0011032604 | O91: 0.0011032604 | P91: 1 | Q91: 0.004971278575 | R91: 0.004971278575 | S91: 1.912030221e-05 | T91: 1.912030221e-05
B92: 27035 | C92: NARELLAN | D92: Urban | E92: 515 | F92: 0 | G92: 9.14099 | H92: 1.790940535 | I92: 0.03072670951 | J92: 0 | K92: 1 | L92: 0.002960391651 | M92: 0.002960391651 | N92: 0.0007400979126 | O92: 0.0007400979126 | P92: 0 | Q92: 0 | R92: 0 | S92: 0 | T92: 0
B93: 27036 | C93: NARELLAN | D93: Short rural | E93: 0 | F93: 0 | G93: 0 | H93: 0 | I93: 0 | J93: 0.4550285357 | K93: 0 | L93: 0 | M93: 0 | N93: 0 | O93: 0 | P93: 3 | Q93: 0.1134636457 | R93: 0.1134636457 | S93: 0.0002544978969 | T93: 0.00025449789686
B94: 27038 | C94: NARELLAN | D94: Short rural | E94: 592 | F94: 0.66056 | G94: 18.90657 | H94: 4.744087162 | I94: 0.06107436173 | J94: 0.07158548615 | K94: 3 | L94: 0.01522919816 | M94: 0.01522919816 | N94: 0.002415514167 | O94: 0.002415514167 | P94: 2 | Q94: 0.01785019971 | R94: 0.01785019971 | S94: 3.534693012e-05 | T94: 3.5346930119e-05
B95: 27039 | C95: NARELLAN | D95: Urban | E95: 1164 | F95: 0 | G95: 7.428592882 | H95: 3.41040804 | I95: 0.1513424933 | J95: 0.1858387571 | K95: 2 | L95: 0.01458122464 | M95: 0.01458122464 | N95: 0.001664989144 | O95: 0.001664989144 | P95: 1 | Q95: 0.01790479728 | R95: 0.01790479728 | S95: 3.141192506e-05 | T95: 3.1411925059e-05
B96: 27040 | C96: NARELLAN | D96: Urban | E96: 1264 | F96: 0 | G96: 15.25777876 | H96: 5.468084399 | I96: 0.1605351343 | J96: 1.078460156 | K96: 7 | L96: 0.01546689765 | M96: 0.01546689765 | N96: 0.001769295547 | O96: 0.001769295547 | P96: 7 | Q96: 0.1039051852 | R96: 0.1039051852 | S96: 0.0002403695135 | T96: 0.0002403695135
B97: 27041 | C97: NARELLAN | D97: Short rural | E97: 39 | F97: 0 | G97: 7.35283 | H97: 1.467047034 | I97: 0.002162249928 | J97: 0 | K97: 1 | L97: 0.0005391678553 | M97: 0.0005391678553 | N97: 0.0001347919638 | O97: 0.0001347919638 | P97: 0 | Q97: 0 | R97: 0 | S97: 0 | T97: 0
B98: 27042 | C98: NARELLAN | D98: Urban | E98: 6 | F98: 0 | G98: 4.10587 | H98: 1.981466124 | I98: 0 | J98: 0 | K98: 0 | L98: 0 | M98: 0 | N98: 0 | O98: 0 | P98: 0 | Q98: 0 | R98: 0 | S98: 0 | T98: 0
B99: 27142 | C99: BOSSLEY PARK | D99: Urban | E99: 649 | F99: 0.04518 | G99: 4.462385626 | H99: 3.137321363 | I99: 0.0008930466589 | J99: 0.004394356576 | K99: 1 | L99: 8.604135995e-05 | M99: 8.604135995e-05 | N99: 1.365735872e-06 | O99: 1.365735872e-06 | P99: 1 | Q99: 0.0004233781204 | R99: 0.0004233781204 | S99: 1.365735872e-06 | T99: 1.3657358721e-06
B100: 27187 | C100: WEST CASTLE HILL | D100: Urban | E100: 609 | F100: 0.9364388143 | G100: 6.931763737 | H100: 4.305878308 | I100: 0.1985966155 | J100: 0.07938192524 | K100: 5 | L100: 0.01913396429 | M100: 0.01913396429 | N100: 0.0008686080147 | O100: 0.0008686080147 | P100: 1 | Q100: 0.007648120884 | R100: 0.007648120884 | S100: 1.912030221e-05 | T100: 1.912030221e-05
B101: 27188 | C101: WEST CASTLE HILL | D101: Urban | E101: 368 | F101: 0.4934205264 | G101: 1.499374147 | H101: 3.062381298 | I101: 0.2188632808 | J101: 0.1634417139 | K101: 2 | L101: 0.02108657385 | M101: 0.02108657385 | N101: 0.0005462943489 | O101: 0.0005462943489 | P101: 2 | Q101: 0.01574693461 | R101: 0.01574693461 | S101: 2.321750983e-05 | T101: 2.3217509826e-05
B102: 27189 | C102: WEST CASTLE HILL | D102: Urban | E102: 75 | F102: 0 | G102: 2.642355285 | H102: 3.235170225 | I102: 0.01761543532 | J102: 0.01630164536 | K102: 1 | L102: 0.001697174493 | M102: 0.001697174493 | N102: 0.0001024301904 | O102: 0.0001024301904 | P102: 1 | Q102: 0.001570596253 | R102: 0.001570596253 | S102: 3.141192506e-05 | T102: 3.1411925059e-05
B103: 27190 | C103: WEST CASTLE HILL | D103: Urban | E103: 0 | F103: 0 | G103: 0 | H103: 0 | I103: 0 | J103: 0.04401444248 | K103: 0 | L103: 0 | M103: 0 | N103: 0 | O103: 0 | P103: 1 | Q103: 0.004240609883 | R103: 0.004240609883 | S103: 1.229162285e-05 | T103: 1.2291622849e-05
B104: 27191 | C104: WEST CASTLE HILL | D104: Urban | E104: 1041 | F104: 3.112442822 | G104: 7.361077376 | H104: 4.591666691 | I104: 0.448322374 | J104: 0.007229425334 | K104: 4 | L104: 0.04319401049 | M104: 0.04319401049 | N104: 0.00144904576 | O104: 0.00144904576 | P104: 1 | Q104: 0.0006965252948 | R104: 0.0006965252948 | S104: 4.097207616e-06 | T104: 4.0972076164e-06
B105: 27194 | C105: WEST CASTLE HILL | D105: Urban | E105: 796 | F105: 0 | G105: 11.56103095 | H105: 4.683287906 | I105: 0.2759615533 | J105: 0 | K105: 3 | L105: 0.02658775676 | M105: 0.02658775676 | N105: 0.002164691357 | O105: 0.002164691357 | P105: 0 | Q105: 0 | R105: 0 | S105: 0 | T105: 0
B106: 27195 | C106: WEST CASTLE HILL | D106: Urban | E106: 0 | F106: 0 | G106: 0 | H106: 0 | I106: 0 | J106: 0.1234530691 | K106: 0 | L106: 0 | M106: 0 | N106: 0 | O106: 0 | P106: 2 | Q106: 0.01189419371 | R106: 0.01189419371 | S106: 3.141192506e-05 | T106: 3.1411925059e-05
B107: 27199 | C107: WEST CASTLE HILL | D107: Short rural | E107: 26 | F107: 0 | G107: 2.08175 | H107: 0.1905255888 | I107: 0.01555851704 | J107: 0 | K107: 2 | L107: 0.003879594193 | M107: 0.003879594193 | N107: 0.0002615672829 | O107: 0.0002615672829 | P107: 0 | Q107: 0 | R107: 0 | S107: 0 | T107: 0
B108: 27200 | C108: WEST CASTLE HILL | D108: Urban | E108: 608 | F108: 0.3653310244 | G108: 4.257379378 | H108: 3.917121005 | I108: 0.112523879 | J108: 0.2296405694 | K108: 2 | L108: 0.01084121135 | M108: 0.01084121135 | N108: 0.001674392179 | O108: 0.001674392179 | P108: 1 | Q108: 0.02212492113 | R108: 0.02212492113 | S108: 6.145811425e-05 | T108: 6.1458114247e-05
B109: 27201 | C109: WEST CASTLE HILL | D109: Urban | E109: 559 | F109: 1.245534586 | G109: 3.69386 | H109: 3.867669453 | I109: 0.2194966175 | J109: 0.3040611243 | K109: 4 | L109: 0.02114759323 | M109: 0.02114759323 | N109: 0.001544647271 | O109: 0.001544647271 | P109: 1 | Q109: 0.02929503446 | R109: 0.02929503446 | S109: 8.877283169e-05 | T109: 8.8772831689e-05
B110: 27334 | C110: BOW BOWING | D110: Short rural | E110: 1611 | F110: 6.20959169 | G110: 6.707984682 | H110: 3.06746198 | I110: 0.2543765444 | J110: 1.139697641 | K110: 4 | L110: 0.0634300661 | M110: 0.0634300661 | N110: 0.0003534693012 | O110: 0.0003534693012 | P110: 2 | Q110: 0.2841893182 | R110: 0.2841893182 | S110: 0.0009826446573 | T110: 0.00098264465731
B111: 27335 | C111: BOW BOWING | D111: Urban | E111: 509 | F111: 4.166965793 | G111: 1.425717488 | H111: 4.172510395 | I111: 0.18698696 | J111: 0.7197530811 | K111: 4 | L111: 0.01801542189 | M111: 0.01801542189 | N111: 8.877283169e-05 | O111: 8.877283169e-05 | P111: 2 | Q111: 0.06934523891 | R111: 0.06934523891 | S111: 0.000128379172 | T111: 0.00012837917198
B112: 27336 | C112: BOW BOWING | D112: Urban | E112: 8 | F112: 0.27839 | G112: 1.710707588 | H112: 3.257987569 | I112: 0.01155290519 | J112: 0.01856970037 | K112: 2 | L112: 0.001113074736 | M112: 0.001113074736 | N112: 2.185177395e-05 | O112: 2.185177395e-05 | P112: 2 | Q112: 0.001789113993 | R112: 0.001789113993 | S112: 8.194415233e-06 | T112: 8.1944152329e-06
B113: 27337 | C113: BOW BOWING | D113: Urban | E113: 3 | F113: 0 | G113: 0.2602423991 | H113: 1.428941916 | I113: 0 | J113: 0 | K113: 0 | L113: 0 | M113: 0 | N113: 0 | O113: 0 | P113: 0 | Q113: 0 | R113: 0 | S113: 0 | T113: 0
B114: 27339 | C114: BOW BOWING | D114: Urban | E114: 32 | F114: 0 | G114: 3.635772683 | H114: 3.677143864 | I114: 0.002367282413 | J114: 0.0493301964 | K114: 1 | L114: 0.0002280778906 | M114: 0.0002280778906 | N114: 1.365735872e-06 | O114: 1.365735872e-06 | P114: 2 | Q114: 0.004752760835 | R114: 0.004752760835 | S114: 5.462943489e-06 | T114: 5.4629434886e-06
B115: 27340 | C115: BOW BOWING | D115: Urban | E115: 640 | F115: 0.2760108287 | G115: 8.74818831 | H115: 3.353250363 | I115: 0.008164998024 | J115: 0.03820255152 | K115: 2 | L115: 0.0007866638623 | M115: 0.0007866638624 | N115: 2.868045332e-05 | O115: 2.868045332e-05 | P115: 4 | Q115: 0.003680658175 | R115: 0.003680658175 | S115: 4.370354791e-05 | T115: 4.3703547909e-05
B116: 27446 | C116: NORTH RICHMOND | D116: Urban | E116: 385 | F116: 1.62698 | G116: 3.00315 | H116: 2.781673597 | I116: 0 | J116: 0.4692038795 | K116: 0 | L116: 0 | M116: 0 | N116: 0 | O116: 0 | P116: 3 | Q116: 0.04520585737 | R116: 0.04520585737 | S116: 0.0001652540405 | T116: 0.00016525404053
B117: 27447 | C117: NORTH RICHMOND | D117: Urban | E117: 230 | F117: 0.9555 | G117: 0.6954 | H117: 0.7621023553 | I117: 0.2467076834 | J117: 0.8981497827 | K117: 1 | L117: 0.02376926712 | M117: 0.02376926712 | N117: 5.189796314e-05 | O117: 5.189796314e-05 | P117: 1 | Q117: 0.08653302486 | R117: 0.08653302486 | S117: 0.0001802771351 | T117: 0.00018027713512
B118: 27454 | C118: NORTH RICHMOND | D118: Short rural | E118: 690 | F118: 28.4225759 | G118: 5.92322 | H118: 3.962932248 | I118: 2.086624782 | J118: 0.6945918458 | K118: 2 | L118: 0.5203103461 | M118: 0.520310346 | N118: 0.002947933972 | O118: 0.002947933972 | P118: 5 | Q118: 0.1731999576 | R118: 0.1731999576 | S118: 0.0004453713195 | T118: 0.0004453713195
B119: 27500 | C119: QUARRIES | D119: Urban | E119: 2 | F119: 0 | G119: 2.26776 | H119: 0 | I119: 0 | J119: 0 | K119: 0 | L119: 0 | M119: 0 | N119: 0 | O119: 0 | P119: 0 | Q119: 0 | R119: 0 | S119: 0 | T119: 0
B120: 2806 | C120: DUNDAS | D120: Urban | E120: 863 | F120: 4.44837782 | G120: 3.468858528 | H120: 3.334197805 | I120: 0.4908638048 | J120: 0.3145508788 | K120: 3 | L120: 0.04729270178 | M120: 0.04729270178 | N120: 0.0003018276277 | O120: 0.0003018276277 | P120: 2 | Q120: 0.030305679 | R120: 0.030305679 | S120: 9.287003931e-05 | T120: 9.2870039306e-05
B121: 2807 | C121: DUNDAS | D121: Urban | E121: 1317 | F121: 7.493689833 | G121: 2.646340519 | H121: 3.225575356 | I121: 0 | J121: 0.3586361979 | K121: 0 | L121: 0 | M121: 0 | N121: 0 | O121: 0 | P121: 1 | Q121: 0.03455311757 | R121: 0.03455311757 | S121: 7.511547297e-05 | T121: 7.5115472968e-05
B122: 2809 | C122: DUNDAS | D122: Urban | E122: 629 | F122: 3.368234415 | G122: 1.69200889 | H122: 2.452587639 | I122: 0.6748314166 | J122: 0.1684030843 | K122: 4 | L122: 0.06501722193 | M122: 0.06501722193 | N122: 0.000992889979 | O122: 0.000992889979 | P122: 1 | Q122: 0.01622494216 | R122: 0.01622494216 | S122: 4.506928378e-05 | T122: 4.5069283781e-05
B123: 2810 | C123: DUNDAS | D123: Urban | E123: 1508 | F123: 7.306647674 | G123: 1.655918959 | H123: 3.85546883 | I123: 2.569082608 | J123: 0.7157131081 | K123: 10 | L123: 0.2475205065 | M123: 0.2475205065 | N123: 0.001551475951 | O123: 0.001551475951 | P123: 1 | Q123: 0.06895600418 | R123: 0.06895600418 | S123: 0.0001352078513 | T123: 0.00013520785134
B124: 2812 | C124: DUNDAS | D124: Short rural | E124: 1769 | F124: 4.877229569 | G124: 1.54513 | H124: 3.99354844 | I124: 2.415733738 | J124: 0 | K124: 5 | L124: 0.6023753137 | M124: 0.6023753137 | N124: 0.007133010498 | O124: 0.007133010498 | P124: 0 | Q124: 0 | R124: 0 | S124: 0 | T124: 0
B125: 2813 | C125: DUNDAS | D125: Urban | E125: 854 | F125: 6.205728849 | G125: 0.3343130948 | H125: 3.052057351 | I125: 3.367973535 | J125: 0.2449499407 | K125: 2 | L125: 0.3244903503 | M125: 0.3244903503 | N125: 0.002335408341 | O125: 0.002335408341 | P125: 1 | Q125: 0.02359991587 | R125: 0.02359991587 | S125: 4.91664914e-05 | T125: 4.9166491397e-05
B126: 2815 | C126: DUNDAS | D126: Urban | E126: 1765 | F126: 5.094422315 | G126: 0.82238 | H126: 4.498192297 | I126: 7.12772541 | J126: 0 | K126: 8 | L126: 0.6867269269 | M126: 0.6867269269 | N126: 0.0055739208 | O126: 0.0055739208 | P126: 0 | Q126: 0 | R126: 0 | S126: 0 | T126: 0
B127: 2816 | C127: DUNDAS | D127: Urban | E127: 729 | F127: 5.507179186 | G127: 0.19943 | H127: 2.07503197 | I127: 1.864500243 | J127: 0 | K127: 6 | L127: 0.1796369035 | M127: 0.1796369035 | N127: 0.001789113993 | O127: 0.001789113993 | P127: 0 | Q127: 0 | R127: 0 | S127: 0 | T127: 0
B128: 3 | C128: INNER HARBOUR | D128: Urban | E128: 0 | F128: 0 | G128: 0 | H128: 0 | I128: 0 | J128: 0.02891770134 | K128: 0 | L128: 0 | M128: 0 | N128: 0 | O128: 0 | P128: 1 | Q128: 0.002786101179 | R128: 0.002786101179 | S128: 5.462943489e-06 | T128: 5.4629434886e-06
B129: 35001 | C129: QUARRIES | D129: Urban | E129: 920 | F129: 3.026323928 | G129: 3.88683 | H129: 3.137270556 | I129: 0.1391451747 | J129: 0 | K129: 4 | L129: 0.01340606332 | M129: 0.01340606332 | N129: 0.0001447680024 | O129: 0.0001447680024 | P129: 0 | Q129: 0 | R129: 0 | S129: 0 | T129: 0
B130: 35004 | C130: QUARRIES | D130: Urban | E130: 700 | F130: 0 | G130: 7.75855 | H130: 2.927387567 | I130: 0 | J130: 0.1148202847 | K130: 0 | L130: 0 | M130: 0 | N130: 0 | O130: 0 | P130: 1 | Q130: 0.01106246056 | R130: 0.01106246056 | S130: 2.048603808e-05 | T130: 2.0486038082e-05
B131: 35005 | C131: QUARRIES | D131: Urban | E131: 673 | F131: 3.091744424 | G131: 2.874037819 | H131: 2.331067878 | I131: 0.6063503307 | J131: 0.2285774187 | K131: 2 | L131: 0.05841935193 | M131: 0.05841935193 | N131: 0.0009450892235 | O131: 0.0009450892235 | P131: 1 | Q131: 0.02202249094 | R131: 0.02202249094 | S131: 5.87266425e-05 | T131: 5.8726642502e-05
B132: 35006 | C132: QUARRIES | D132: Urban | E132: 7 | F132: 0 | G132: 1.02713 | H132: 0.7805452323 | I132: 0 | J132: 0 | K132: 0 | L132: 0 | M132: 0 | N132: 0 | O132: 0 | P132: 0 | Q132: 0 | R132: 0 | S132: 0 | T132: 0
B133: 35009 | C133: QUARRIES | D133: Urban | E133: 10 | F133: 0.34895 | G133: 2.76411 | H133: 1.711041724 | I133: 0 | J133: 0 | K133: 0 | L133: 0 | M133: 0 | N133: 0 | O133: 0 | P133: 0 | Q133: 0 | R133: 0 | S133: 0 | T133: 0
B134: 35010 | C134: QUARRIES | D134: Urban | E134: 650 | F134: 2.515025294 | G134: 5.51001 | H134: 2.381874701 | I134: 0.02092280744 | J134: 0.4422707263 | K134: 1 | L134: 0.002015826147 | M134: 0.002015826147 | N134: 2.45832457e-05 | O134: 2.45832457e-05 | P134: 2 | Q134: 0.04261095921 | R134: 0.04261095921 | S134: 0.0001010644545 | T134: 0.00010106445454
B135: 35011 | C135: QUARRIES | D135: Urban | E135: 69 | F135: 0 | G135: 1.68756 | H135: 1.70832864 | I135: 0 | J135: 0 | K135: 0 | L135: 0 | M135: 0 | N135: 0 | O135: 0 | P135: 0 | Q135: 0 | R135: 0 | S135: 0 | T135: 0
B136: 35012 | C136: QUARRIES | D136: Urban | E136: 2 | F136: 0 | G136: 4.01864 | H136: 1.945023659 | I136: 0 | J136: 0 | K136: 0 | L136: 0 | M136: 0 | N136: 0 | O136: 0 | P136: 0 | Q136: 0 | R136: 0 | S136: 0 | T136: 0
B137: 35013 | C137: QUARRIES | D137: Short rural | E137: 18 | F137: 0 | G137: 5.57376 | H137: 0.660488708 | I137: 0 | J137: 0.1122687228 | K137: 0 | L137: 0 | M137: 0 | N137: 0 | O137: 0 | P137: 1 | Q137: 0.02799476865 | R137: 0.02799476865 | S137: 4.241631614e-05 | T137: 4.2416316143e-05
B138: 35014 | C138: QUARRIES | D138: Urban | E138: 20 | F138: 0 | G138: 3.1653 | H138: 2.666695215 | I138: 0 | J138: 0 | K138: 0 | L138: 0 | M138: 0 | N138: 0 | O138: 0 | P138: 0 | Q138: 0 | R138: 0 | S138: 0 | T138: 0
B139: 35015 | C139: QUARRIES | D139: Urban | E139: 16 | F139: 0 | G139: 2.10781 | H139: 1.759541918 | I139: 0 | J139: 0 | K139: 0 | L139: 0 | M139: 0 | N139: 0 | O139: 0 | P139: 0 | Q139: 0 | R139: 0 | S139: 0 | T139: 0
B140: 35304 | C140: BAULKHAM HILLS 11KV | D140: Urban | E140: 1069 | F140: 6.141184201 | G140: 1.343713768 | H140: 4.223876094 | I140: 1.342646038 | J140: 0 | K140: 4 | L140: 0.1293584046 | M140: 0.1293584046 | N140: 0.00162112848 | O140: 0.00162112848 | P140: 0 | Q140: 0 | R140: 0 | S140: 0 | T140: 0
B141: 35305 | C141: BAULKHAM HILLS 11KV | D141: Urban | E141: 1109 | F141: 6.100782028 | G141: 0.28898 | H141: 3.429460599 | I141: 0.8096376866 | J141: 0.5579415317 | K141: 2 | L141: 0.0780052497 | M141: 0.0780052497 | N141: 0.001537818592 | O141: 0.001537818592 | P141: 1 | Q141: 0.05375536393 | R141: 0.05375536393 | S141: 0.0001119903415 | T141: 0.00011199034152
B142: 35306 | C142: BAULKHAM HILLS 11KV | D142: Urban | E142: 491 | F142: 2.440870931 | G142: 1.973559567 | H142: 2.438117855 | I142: 0.517258295 | J142: 0.01417534379 | K142: 1 | L142: 0.04983570198 | M142: 0.04983570197 | N142: 0.0006705763132 | O142: 0.0006705763132 | P142: 1 | Q142: 0.001365735872 | R142: 0.001365735872 | S142: 6.828679361e-06 | T142: 6.8286793607e-06
B143: 35307 | C143: BAULKHAM HILLS 11KV | D143: Urban | E143: 520 | F143: 3.956009639 | G143: 0.6755500631 | H143: 2.438117855 | I143: 0.05511373666 | J143: 0.002905945477 | K143: 1 | L143: 0.005309981071 | M143: 0.005309981071 | N143: 6.555532186e-05 | O143: 6.555532186e-05 | P143: 1 | Q143: 0.0002799758538 | R143: 0.0002799758538 | S143: 1.365735872e-06 | T143: 1.3657358721e-06
B144: 35312 | C144: BAULKHAM HILLS 11KV | D144: Urban | E144: 104 | F144: 1.160181167 | G144: 0.86783 | H144: 1.328811828 | I144: 0 | J144: 0 | K144: 0 | L144: 0 | M144: 0 | N144: 0 | O144: 0 | P144: 0 | Q144: 0 | R144: 0 | S144: 0 | T144: 0
B145: 35314 | C145: BAULKHAM HILLS 11KV | D145: Urban | E145: 426 | F145: 3.094130118 | G145: 1.43116 | H145: 2.629253126 | I145: 0.4846846044 | J145: 0.01662767827 | K145: 4 | L145: 0.04669736132 | M145: 0.04669736132 | N145: 0.0007293029557 | O145: 0.0007293029557 | P145: 3 | Q145: 0.001602008178 | R145: 0.001602008178 | S145: 4.097207616e-06 | T145: 4.0972076164e-06
B146: 35315 | C146: BAULKHAM HILLS 11KV | D146: Urban | E146: 1346 | F146: 3.550432785 | G146: 1.832435156 | H146: 3.620341836 | I146: 0.214118568 | J146: 0 | K146: 1 | L146: 0.02062944035 | M146: 0.02062944035 | N146: 4.370354791e-05 | O146: 4.370354791e-05 | P146: 0 | Q146: 0 | R146: 0 | S146: 0 | T146: 0
B147: 35325 | C147: BAULKHAM HILLS 11KV | D147: Urban | E147: 833 | F147: 6.211529949 | G147: 2.565958888 | H147: 3.75171812 | I147: 0.3769932682 | J147: 0.08420154213 | K147: 1 | L147: 0.03632174552 | M147: 0.03632174552 | N147: 0.0001037959263 | O147: 0.0001037959263 | P147: 1 | Q147: 0.008112471081 | R147: 0.008112471081 | S147: 9.013856756e-05 | T147: 9.0138567562e-05
B148: 35326 | C148: BAULKHAM HILLS 11KV | D148: Urban | E148: 484 | F148: 4.214018538 | G148: 3.151076702 | H148: 3.345395629 | I148: 0.03987524209 | J148: 0 | K148: 4 | L148: 0.003841815008 | M148: 0.003841815008 | N148: 6.282385012e-05 | O148: 6.282385012e-05 | P148: 0 | Q148: 0 | R148: 0 | S148: 0 | T148: 0
B149: 35327 | C149: BAULKHAM HILLS 11KV | D149: Urban | E149: 1395 | F149: 6.454085186 | G149: 0.7631363259 | H149: 3.93122879 | I149: 0.191154511 | J149: 0.3368061685 | K149: 3 | L149: 0.01841694824 | M149: 0.01841694824 | N149: 0.0002936332125 | O149: 0.0002936332125 | P149: 1 | Q149: 0.03244988432 | R149: 0.03244988432 | S149: 7.37497371e-05 | T149: 7.3749737096e-05
B150: 35333 | C150: BAULKHAM HILLS 11KV | D150: Urban | E150: 1014 | F150: 4.151781405 | G150: 1.01387 | H150: 4.077115503 | I150: 0.3044438586 | J150: 0.9002760842 | K150: 1 | L150: 0.02933190933 | M150: 0.02933190933 | N150: 0.001350712778 | O150: 0.001350712778 | P150: 3 | Q150: 0.08673788524 | R150: 0.08673788524 | S150: 0.000181642871 | T150: 0.000181642871
B151: 35335 | C151: BAULKHAM HILLS 11KV | D151: Urban | E151: 629 | F151: 2.846155036 | G151: 1.340202539 | H151: 3.270943309 | I151: 0.8496701069 | J151: 0.2863419446 | K151: 1 | L151: 0.08186220818 | M151: 0.08186220818 | N151: 0.0009027514115 | O151: 0.0009027514115 | P151: 2 | Q151: 0.02758786462 | R151: 0.02758786462 | S151: 8.604135995e-05 | T151: 8.6041359945e-05
B152: 35335 / 55879 | C152: BAULKHAM HILLS /JASPER RD | D152: Urban | E152: 0 | F152: 0 | G152: 0 | H152: 0 | I152: 0 | J152: 1.499042606 | K152: 0 | L152: 0 | M152: 0 | N152: 0 | O152: 0 | P152: 1 | Q152: 0.1444265685 | R152: 0.1444265685 | S152: 0.00032094793 | T152: 0.00032094792995
B153: 35382 | C153: NORTH PARRAMATTA | D153: Urban | E153: 791 | F153: 0.463108549 | G153: 2.06327 | H153: 2.760197553 | I153: 0 | J153: 1.461194438 | K153: 0 | L153: 0 | M153: 0 | N153: 0 | O153: 0 | P153: 2 | Q153: 0.1407800537 | R153: 0.1407800537 | S153: 0.000256758344 | T153: 0.00025675834396
B154: 35384 | C154: NORTH PARRAMATTA | D154: Urban | E154: 4 | F154: 0 | G154: 1.25026 | H154: 0.5829625757 | I154: 0 | J154: 0 | K154: 0 | L154: 0 | M154: 0 | N154: 0 | O154: 0 | P154: 0 | Q154: 0 | R154: 0 | S154: 0 | T154: 0
B155: 35388 | C155: NORTH PARRAMATTA | D155: Urban | E155: 1569 | F155: 1.876790877 | G155: 4.589466703 | H155: 3.140623806 | I155: 0.2943651892 | J155: 0.3648733492 | K155: 1 | L155: 0.02836087112 | M155: 0.02836087112 | N155: 9.560151105e-05 | O155: 9.560151105e-05 | P155: 1 | Q155: 0.03515404135 | R155: 0.03515404135 | S155: 0.0001953002297 | T155: 0.00019530022972
B156: 35401 | C156: NORTH PARRAMATTA | D156: Urban | E156: 1 | F156: 0 | G156: 1.44803 | H156: 0.5037496569 | I156: 0 | J156: 0 | K156: 0 | L156: 0 | M156: 0 | N156: 0 | O156: 0 | P156: 0 | Q156: 0 | R156: 0 | S156: 0 | T156: 0
B157: 35403 | C157: NORTH PARRAMATTA | D157: Urban | E157: 1588 | F157: 0.3870271925 | G157: 6.496032693 | H157: 3.715248982 | I157: 0.81413252 | J157: 0.3904740201 | K157: 2 | L157: 0.07843830835 | M157: 0.07843830834 | N157: 0.002294436265 | O157: 0.002294436265 | P157: 4 | Q157: 0.03762056033 | R157: 0.03762056033 | S157: 0.0001188190209 | T157: 0.00011881902088
B158: 35405 | C158: NORTH PARRAMATTA | D158: Urban | E158: 349 | F158: 0 | G158: 1.45396 | H158: 3.140936268 | I158: 0 | J158: 0.2768444643 | K158: 0 | L158: 0 | M158: 0 | N158: 0 | O158: 0 | P158: 2 | Q158: 0.02667282158 | R158: 0.02667282158 | S158: 8.057841646e-05 | T158: 8.0578416457e-05
B159: 35418 | C159: WISEMANS | D159: Short rural | E159: 358 | F159: 44.41506068 | G159: 0.46059 | H159: 1.143153533 | I159: 0.692167862 | J159: 0.8678003716 | K159: 4 | L159: 0.1725955251 | M159: 0.1725955251 | N159: 0.00139620374 | O159: 0.00139620374 | P159: 8 | Q159: 0.2163903715 | R159: 0.2163903715 | S159: 0.000579689654 | T159: 0.00057968965395
B160: 35440 | C160: HOMEPRIDE | D160: Urban | E160: 5 | F160: 0 | G160: 3.0399 | H160: 3.127032981 | I160: 0 | J160: 0 | K160: 0 | L160: 0 | M160: 0 | N160: 0 | O160: 0 | P160: 0 | Q160: 0 | R160: 0 | S160: 0 | T160: 0
B161: 35441 | C161: HOMEPRIDE | D161: Urban | E161: 12 | F161: 0 | G161: 1.58451 | H161: 2.934432568 | I161: 0 | J161: 0 | K161: 0 | L161: 0 | M161: 0 | N161: 0 | O161: 0 | P161: 0 | Q161: 0 | R161: 0 | S161: 0 | T161: 0
B162: 35442 | C162: HOMEPRIDE | D162: Urban | E162: 707 | F162: 0 | G162: 5.590181188 | H162: 4.008658389 | I162: 0 | J162: 0 | K162: 0 | L162: 0 | M162: 0 | N162: 0 | O162: 0 | P162: 0 | Q162: 0 | R162: 0 | S162: 0 | T162: 0
B163: 35443 | C163: HOMEPRIDE | D163: Urban | E163: 560 | F163: 0 | G163: 3.543434137 | H163: 3.566723489 | I163: 0 | J163: 0 | K163: 0 | L163: 0 | M163: 0 | N163: 0 | O163: 0 | P163: 0 | Q163: 0 | R163: 0 | S163: 0 | T163: 0
B164: 35444 | C164: HOMEPRIDE | D164: Urban | E164: 41 | F164: 1.053039525 | G164: 2.21792301 | H164: 3.099216245 | I164: 0 | J164: 0 | K164: 0 | L164: 0 | M164: 0 | N164: 0 | O164: 0 | P164: 0 | Q164: 0 | R164: 0 | S164: 0 | T164: 0
B165: 35570 | C165: LIVERPOOL 11KV | D165: Urban | E165: 600 | F165: 0 | G165: 0 | H165: 0 | I165: 0.4770853707 | J165: 0 | K165: 1 | L165: 0.04596520651 | M165: 0.04596520651 | N165: 0.0008208072592 | O165: 0.0008208072592 | P165: 0 | Q165: 0 | R165: 0 | S165: 0 | T165: 0
B166: 35571 | C166: LIVERPOOL 11KV | D166: Urban | E166: 1907 | F166: 0 | G166: 0 | H166: 0 | I166: 0.04893328677 | J166: 0 | K166: 2 | L166: 0.004714520231 | M166: 0.004714520231 | N166: 3.824060442e-05 | O166: 3.824060442e-05 | P166: 0 | Q166: 0 | R166: 0 | S166: 0 | T166: 0
B167: 35572 | C167: LIVERPOOL 11KV | D167: Urban | E167: 1570 | F167: 0 | G167: 0 | H167: 0 | I167: 0 | J167: 0 | K167: 0 | L167: 0 | M167: 0 | N167: 0 | O167: 0 | P167: 0 | Q167: 0 | R167: 0 | S167: 0 | T167: 0
B168: 35590 | C168: KEMBLA GRANGE | D168: Urban | E168: 3 | F168: 0 | G168: 0.59578 | H168: 0 | I168: 0 | J168: 0 | K168: 0 | L168: 0 | M168: 0 | N168: 0 | O168: 0 | P168: 0 | Q168: 0 | R168: 0 | S168: 0 | T168: 0
B169: 35693 | C169: SPRINGWOOD | D169: Short rural | E169: 947 | F169: 18.22016661 | G169: 1.48094 | H169: 1.676625182 | I169: 2.330149788 | J169: 7.841658432 | K169: 7 | L169: 0.5810345267 | M169: 0.5810345267 | N169: 0.004242900389 | O169: 0.004242900389 | P169: 9 | Q169: 1.955356827 | R169: 1.955356827 | S169: 0.004648121311 | T169: 0.0046481213107
B170: 35694 | C170: SPRINGWOOD | D170: Urban | E170: 241 | F170: 0.0719698495 | G170: 0.9521 | H170: 1.085995856 | I170: 0 | J170: 0 | K170: 0 | L170: 0 | M170: 0 | N170: 0 | O170: 0 | P170: 0 | Q170: 0 | R170: 0 | S170: 0 | T170: 0
B171: 35695 | C171: SPRINGWOOD | D171: Short rural | E171: 550 | F171: 14.32608278 | G171: 1.448125464 | H171: 2.72451592 | I171: 3.03635864 | J171: 1.267700995 | K171: 8 | L171: 0.7571312432 | M171: 0.7571312432 | N171: 0.00678307589 | O171: 0.00678307589 | P171: 6 | Q171: 0.3161075961 | R171: 0.3161075961 | S171: 0.0007882365417 | T171: 0.00078823654166
B172: 35696 | C172: SPRINGWOOD | D172: Urban | E172: 1387 | F172: 13.30956957 | G172: 1.863027697 | H172: 3.58188107 | I172: 2.478629739 | J172: 2.394215567 | K172: 9 | L172: 0.2388057459 | M172: 0.2388057459 | N172: 0.003847277952 | O172: 0.003847277952 | P172: 7 | Q172: 0.2306727888 | R172: 0.2306727888 | S172: 0.0007170113329 | T172: 0.00071701133288
B173: 35701 | C173: SPRINGWOOD | D173: Short rural | E173: 1069 | F173: 10.38332756 | G173: 2.547027436 | H173: 2.476832655 | I173: 2.203805574 | J173: 4.701678029 | K173: 4 | L173: 0.5495299638 | M173: 0.5495299638 | N173: 0.004537277053 | O173: 0.004537277053 | P173: 4 | Q173: 1.172386978 | R173: 1.172386978 | S173: 0.002516701424 | T173: 0.0025167014245
B174: 35702 | C174: SPRINGWOOD | D174: Short rural | E174: 866 | F174: 7.262711546 | G174: 1.429026727 | H174: 2.800726156 | I174: 0.6432345753 | J174: 3.140405664 | K174: 6 | L174: 0.1603937648 | M174: 0.1603937648 | N174: 0.001085150755 | O174: 0.001085150755 | P174: 8 | Q174: 0.7830758899 | R174: 0.7830758899 | S174: 0.001845109752 | T174: 0.0018451097522
B175: 35703 | C175: SPRINGWOOD | D175: Urban | E175: 189 | F175: 0.2090090695 | G175: 0.68098 | H175: 1.02883818 | I175: 0 | J175: 0.007654685648 | K175: 0 | L175: 0 | M175: 0 | N175: 0 | O175: 0 | P175: 1 | Q175: 0.000737497371 | R175: 0.000737497371 | S175: 1.365735872e-06 | T175: 1.3657358721e-06
B176: 35761 | C176: WERRINGTON | D176: Urban | E176: 166 | F176: 1.757230079 | G176: 2.48033 | H176: 2.476832655 | I176: 0.2510028125 | J176: 0.03614712667 | K176: 2 | L176: 0.02418308509 | M176: 0.02418308509 | N176: 0.0002321750983 | O176: 0.0002321750983 | P176: 2 | Q176: 0.003482626474 | R176: 0.003482626474 | S176: 6.828679361e-06 | T176: 6.8286793607e-06
B177: 35762 | C177: WERRINGTON | D177: Urban | E177: 877 | F177: 2.382890898 | G177: 3.905519837 | H177: 3.658091306 | I177: 4.698455698 | J177: 1.356580401 | K177: 4 | L177: 0.4526768158 | M177: 0.4526768158 | N177: 0.002948792711 | O177: 0.002948792711 | P177: 3 | Q177: 0.130700923 | R177: 0.130700923 | S177: 0.0002649527592 | T177: 0.0002649527592
B178: 35763 | C178: WERRINGTON | D178: Urban | E178: 238 | F178: 4.596115864 | G178: 1.01978 | H178: 4.420193661 | I178: 0.004762915514 | J178: 0.0179318099 | K178: 1 | L178: 0.000458887253 | M178: 0.000458887253 | N178: 5.462943489e-06 | O178: 5.462943489e-06 | P178: 2 | Q178: 0.001727655878 | R178: 0.001727655878 | S178: 1.092588698e-05 | T178: 1.0925886977e-05
B179: 35764 | C179: WERRINGTON | D179: Urban | E179: 132 | F179: 1.851610181 | G179: 2.259101879 | H179: 1.962413565 | I179: 0 | J179: 0 | K179: 0 | L179: 0 | M179: 0 | N179: 0 | O179: 0 | P179: 0 | Q179: 0 | R179: 0 | S179: 0 | T179: 0
B180: 35765 | C180: WERRINGTON | D180: Urban | E180: 1118 | F180: 6.600953308 | G180: 0.2475 | H180: 3.257987569 | I180: 0.04743070033 | J180: 0.0355092362 | K180: 1 | L180: 0.004569752228 | M180: 0.004569752228 | N180: 8.194415233e-06 | O180: 8.194415233e-06 | P180: 2 | Q180: 0.00342116836 | R180: 0.00342116836 | S180: 9.560151105e-06 | T180: 9.560151105e-06
B181: 35766 | C181: WERRINGTON | D181: Urban | E181: 383 | F181: 2.266871341 | G181: 0.1855740884 | H181: 1.257468886 | I181: 0.1354060023 | J181: 0.651427924 | K181: 2 | L181: 0.01304580949 | M181: 0.01304580949 | N181: 0.0002275880182 | O181: 0.0002275880182 | P181: 1 | Q181: 0.062762392 | R181: 0.062762392 | S181: 0.0001379393231 | T181: 0.00013793932309
B182: 35767 | C182: WERRINGTON | D182: Urban | E182: 568 | F182: 2.801643095 | G182: 2.597739133 | H182: 4.191562954 | I182: 2.463251786 | J182: 0.5001770057 | K182: 5 | L182: 0.2373241436 | M182: 0.2373241436 | N182: 0.001483804566 | O182: 0.001483804566 | P182: 5 | Q182: 0.04818999025 | R182: 0.04818999025 | S182: 0.0001119903415 | T182: 0.00011199034152
B183: 35768 | C183: WERRINGTON | D183: Short rural | E183: 607 | F183: 0 | G183: 7.36925 | H183: 2.057676359 | I183: 0 | J183: 0 | K183: 0 | L183: 0 | M183: 0 | N183: 0 | O183: 0 | P183: 0 | Q183: 0 | R183: 0 | S183: 0 | T183: 0
B184: 35769 | C184: WERRINGTON | D184: Urban | E184: 86 | F184: 3.811246805 | G184: 1.218813321 | H184: 1.924308447 | I184: 0.08228787071 | J184: 0.2223402674 | K184: 2 | L184: 0.007928096738 | M184: 0.007928096738 | N184: 0.0002157862678 | O184: 0.0002157862678 | P184: 4 | Q184: 0.02142156715 | R184: 0.02142156715 | S184: 5.87266425e-05 | T184: 5.8726642502e-05
B185: 35771 | C185: WERRINGTON | D185: Urban | E185: 135 | F185: 3.413904732 | G185: 0.9870554017 | H185: 4.26777319 | I185: 0.1825642527 | J185: 0 | K185: 1 | L185: 0.0175893123 | M185: 0.0175893123 | N185: 0.0001953002297 | O185: 0.0001953002297 | P185: 0 | Q185: 0 | R185: 0 | S185: 0 | T185: 0
B186: 35772 | C186: WERRINGTON | D186: Urban | E186: 1017 | F186: 0 | G186: 10.23025 | H186: 3.524723393 | I186: 0.09153019487 | J186: 0 | K186: 1 | L186: 0.008818556526 | M186: 0.008818556526 | N186: 4.506928378e-05 | O186: 4.506928378e-05 | P186: 0 | Q186: 0 | R186: 0 | S186: 0 | T186: 0
B187: 35773 | C187: WERRINGTON | D187: Urban | E187: 382 | F187: 3.510477976 | G187: 1.57245 | H187: 3.143672216 | I187: 1.321214886 | J187: 0.1176553535 | K187: 5 | L187: 0.1272936016 | M187: 0.1272936016 | N187: 0.0008696568977 | O187: 0.0008696568977 | P187: 3 | Q187: 0.01133560774 | R187: 0.01133560774 | S187: 2.185177395e-05 | T187: 2.1851773954e-05
B188: 35815 | C188: TAHMOOR | D188: Short rural | E188: 513 | F188: 16.72368692 | G188: 0.4018791451 | H188: 2.191044272 | I188: 0 | J188: 0.05485858048 | K188: 0 | L188: 0 | M188: 0 | N188: 0 | O188: 0 | P188: 2 | Q188: 0.01367926196 | R188: 0.01367926196 | S188: 3.181223711e-05 | T188: 3.1812237107e-05
B189: 35816 | C189: TAHMOOR | D189: Short rural | E189: 1090 | F189: 34.02043657 | G189: 0.07116 | H189: 2.400622419 | I189: 0.8106028594 | J189: 2.028151488 | K189: 13 | L189: 0.2021278852 | M189: 0.2021278852 | N189: 0.004386554028 | O189: 0.004386554028 | P189: 13 | Q189: 0.5057297374 | R189: 0.5057297374 | S189: 0.001470432293 | T189: 0.001470432293
B190: 35818 | C190: TAHMOOR | D190: Short rural | E190: 1436 | F190: 24.3430131 | G190: 2.7969 | H190: 4.286825749 | I190: 4.520559661 | J190: 1.004181354 | K190: 9 | L190: 1.127224206 | M190: 1.127224206 | N190: 0.01464069846 | O190: 0.01464069846 | P190: 7 | Q190: 0.250397653 | R190: 0.250397653 | S190: 0.0006715916723 | T190: 0.00067159167226
B191: 35824 | C191: TAHMOOR | D191: Short rural | E191: 1245 | F191: 13.44990376 | G191: 2.1553 | H191: 2.55304289 | I191: 2.817023546 | J191: 1.8832653 | K191: 8 | L191: 0.7024389382 | M191: 0.7024389382 | N191: 0.005425753773 | O191: 0.005425753773 | P191: 3 | Q191: 0.4696016401 | R191: 0.4696016401 | S191: 0.001007387508 | T191: 0.0010073875084
B192: 35825 | C192: TAHMOOR | D192: Short rural | E192: 1137 | F192: 27.84188943 | G192: 1.25493 | H192: 2.953146627 | I192: 0.3904173187 | J192: 2.672831949 | K192: 10 | L192: 0.09735251493 | M192: 0.09735251493 | N192: 0.0007670283836 | O192: 0.0007670283836 | P192: 10 | Q192: 0.6664840409 | R192: 0.6664840409 | S192: 0.001254816019 | T192: 0.0012548160192
B193: 35827 | C193: TAHMOOR | D193: Short rural | E193: 154 | F193: 8.442512984 | G193: 0.33097 | H193: 1.867150771 | I193: 0.001998723475 | J193: 0.3569918581 | K193: 2 | L193: 0.0004983917147 | M193: 0.0004983917147 | N193: 2.120815807e-05 | O193: 2.120815807e-05 | P193: 2 | Q193: 0.08901770881 | R193: 0.08901770881 | S193: 0.0001979428087 | T193: 0.00019794280867
B194: 35980 | C194: MALDON | D194: Short rural | E194: 454 | F194: 30.77284003 | G194: 0.06226 | H194: 1.447994475 | I194: 0.00463533742 | J194: 0.5350625268 | K194: 1 | L194: 0.001155844615 | M194: 0.001155844615 | N194: 3.181223711e-05 | O194: 3.181223711e-05 | P194: 5 | Q194: 0.1334205224 | R194: 0.1334205224 | S194: 0.0003817468453 | T194: 0.00038174684529
B195: 35981 | C195: MALDON | D195: Short rural | E195: 448 | F195: 12.31201939 | G195: 1.33747 | H195: 1.975115271 | I195: 0.3283293129 | J195: 1.123254242 | K195: 4 | L195: 0.08187055954 | M195: 0.08187055954 | N195: 0.0003463999152 | O195: 0.0003463999152 | P195: 7 | Q195: 0.2800890743 | R195: 0.2800890743 | S195: 0.0007493549185 | T195: 0.00074935491853
B196: 35982 | C196: MALDON | D196: Short rural | E196: 455 | F196: 38.35091123 | G196: 1.404355686 | H196: 1.905255888 | I196: 0.2223119167 | J196: 0.115245545 | K196: 7 | L196: 0.05543459051 | M196: 0.05543459051 | N196: 0.001025060973 | O196: 0.001025060973 | P196: 3 | Q196: 0.02873705419 | R196: 0.02873705419 | S196: 7.776324626e-05 | T196: 7.7763246262e-05
B197: 35983 | C197: MALDON | D197: Short rural | E197: 1081 | F197: 24.0266388 | G197: 7.221204947 | H197: 3.372302922 | I197: 0.01752072493 | J197: 0.8194057479 | K197: 1 | L197: 0.004368880563 | M197: 0.004368880563 | N197: 4.241631614e-05 | O197: 4.241631614e-05 | P197: 6 | Q197: 0.2043229296 | R197: 0.2043229296 | S197: 0.0005726202679 | T197: 0.00057262026793
B198: 35988 | C198: MALDON | D198: Short rural | E198: 708 | F198: 52.91222115 | G198: 3.41827 | H198: 3.715248982 | I198: 1.847047296 | J198: 0.005103123765 | K198: 5 | L198: 0.4605704995 | M198: 0.4605704995 | N198: 0.004238096921 | O198: 0.004238096921 | P198: 1 | Q198: 0.001272489484 | R198: 0.001272489484 | S198: 1.060407904e-05 | T198: 1.0604079036e-05
B199: 35989 | C199: MALDON | D199: Short rural | E199: 300 | F199: 35.31845298 | G199: 0.58478 | H199: 1.41624021 | I199: 0.07184064234 | J199: 0.9445031569 | K199: 6 | L199: 0.01791382418 | M199: 0.01791382418 | N199: 7.422855325e-05 | O199: 7.422855325e-05 | P199: 7 | Q199: 0.2355165954 | R199: 0.2355165954 | S199: 0.0005302039518 | T199: 0.00053020395179
B200: 35990 | C200: MALDON | D200: Short rural | E200: 1168 | F200: 43.98926807 | G200: 3.271858972 | H200: 3.162724775 | I200: 0.09059462218 | J200: 1.693372394 | K200: 4 | L200: 0.02259022304 | M200: 0.02259022304 | N200: 0.0001378530275 | O200: 0.0001378530275 | P200: 12 | Q200: 0.4222508925 | R200: 0.4222508925 | S200: 0.001116962992 | T200: 0.0011169629918
B201: 41361 | C201: PARKLEA | D201: Urban | E201: 1615 | F201: 0 | G201: 10.29468545 | H201: 6.875010449 | I201: 0 | J201: 0.02381457757 | K201: 0 | L201: 0 | M201: 0 | N201: 0 | O201: 0 | P201: 1 | Q201: 0.002294436265 | R201: 0.002294436265 | S201: 9.560151105e-06 | T201: 9.560151105e-06
B202: 41362 | C202: PARKLEA | D202: Urban | E202: 455 | F202: 0.53347 | G202: 7.46583 | H202: 2.113986832 | I202: 0 | J202: 0 | K202: 0 | L202: 0 | M202: 0 | N202: 0 | O202: 0 | P202: 0 | Q202: 0 | R202: 0 | S202: 0 | T202: 0
B203: 41363 | C203: PARKLEA | D203: Urban | E203: 585 | F203: 0 | G203: 5.09875 | H203: 2.914872576 | I203: 0 | J203: 0 | K203: 0 | L203: 0 | M203: 0 | N203: 0 | O203: 0 | P203: 0 | Q203: 0 | R203: 0 | S203: 0 | T203: 0
B204: 41367 | C204: PARKLEA | D204: Urban | E204: 676 | F204: 0 | G204: 8.34088 | H204: 3.700008205 | I204: 0 | J204: 0.4916009227 | K204: 0 | L204: 0 | M204: 0 | N204: 0 | O204: 0 | P204: 3 | Q204: 0.04736372005 | R204: 0.04736372005 | S204: 0.0001529624177 | T204: 0.00015296241768
... 1344 more rows

Sheet 3.6.9 Network-reliability
B1: =IF(dms_DataQuality="backcast",INDEX(dms_Worksheet_List,MATCH(dms_Model,dms_Model_List))&" BACKCAST",INDEX(dms_Worksheet_List,MATCH(dms_Model,dms_Model_List))) -> ANNUAL REPORTING STATEMENT
B2: =INDEX(dms_TradingNameFull_List,MATCH(dms_TradingName,dms_TradingName_List)) -> Endeavour Energy
B3: =CONCATENATE("Annual Reporting RIN Response ",IF(SUM(dms_SingleYear_Model)>0,CONCATENATE(CRY),CONCATENATE(FRCP_y1," to ",dms_MultiYear_FinalYear_Result))) -> Annual Reporting RIN Response 2017-18
B4: 3.6 QUALITY OF SERVICES
B7: 3.6.9 - NETWORK FEEDER RELIABILITY - PLANNED OUTAGES
C8: =CRY -> 2017-18
B9: 3.6.9.1 - PLANNED MINUTES OFF SUPPLY (SAIDI)
B10: =INDEX(dms_FeederName_1,MATCH(dms_TradingName,dms_TradingName_List)) -> CBD
B11: =INDEX(dms_FeederName_2,MATCH(dms_TradingName,dms_TradingName_List)) -> Urban | C11: 52.68517466
B12: =INDEX(dms_FeederName_3,MATCH(dms_TradingName,dms_TradingName_List)) -> Short rural | C12: 135.7130974
B13: =INDEX(dms_FeederName_4,MATCH(dms_TradingName,dms_TradingName_List)) -> Long rural | C13: 646.6253968
B14: =IF((INDEX(dms_FeederName_5,MATCH(dms_TradingName,dms_TradingName_List))=0),"",(INDEX(dms_FeederName_5,MATCH(dms_TradingName,dms_TradingName_List)))) -> 
C16: =CRY -> 2017-18
B17: 3.6.9.2 - PLANNED INTERRUPTIONS TO SUPPLY (SAIFI)
B18: =INDEX(dms_FeederName_1,MATCH(dms_TradingName,dms_TradingName_List)) -> CBD
B19: =INDEX(dms_FeederName_2,MATCH(dms_TradingName,dms_TradingName_List)) -> Urban | C19: 0.1393159848
B20: =INDEX(dms_FeederName_3,MATCH(dms_TradingName,dms_TradingName_List)) -> Short rural | C20: 0.3549114559
B21: =INDEX(dms_FeederName_4,MATCH(dms_TradingName,dms_TradingName_List)) -> Long rural | C21: 1.701587302
B22: =IF((INDEX(dms_FeederName_5,MATCH(dms_TradingName,dms_TradingName_List))=0),"",(INDEX(dms_FeederName_5,MATCH(dms_TradingName,dms_TradingName_List)))) -> 

Sheet 4.1 Public lighting
B1: =IF(dms_DataQuality="backcast",INDEX(dms_Worksheet_List,MATCH(dms_Model,dms_Model_List))&" BACKCAST",INDEX(dms_Worksheet_List,MATCH(dms_Model,dms_Model_List))) -> ANNUAL REPORTING STATEMENT
B2: =INDEX(dms_TradingNameFull_List,MATCH(dms_TradingName,dms_TradingName_List)) -> Endeavour Energy
B3: =CONCATENATE("Annual Reporting RIN Response ",IF(SUM(dms_SingleYear_Model)>0,CONCATENATE(CRY),CONCATENATE(FRCP_y1," to ",dms_MultiYear_FinalYear_Result))) -> Annual Reporting RIN Response 2017-18
B4: 4.1 PUBLIC LIGHTING
B6: Tables 4.1.1 - 4.1.3 deliberately omitted.
B8: 4.1.4 - PUBLIC LIGHTING METRICS BY TARIFF
C9: Number of Lights | D9: Public Lighting Revenue
B10: Tariff categories | C10: 0's | D10: $0's, nominal
B51: To enter further tariff categories - please insert new rows above this row.
B52: Total | C52: =SUM(C11:C50) -> 0 | D52: =SUM(D11:D50) -> 0

Sheet 6.2 STPIS Reliability
B1: =IF(dms_DataQuality="backcast",INDEX(dms_Worksheet_List,MATCH(dms_Model,dms_Model_List))&" BACKCAST",INDEX(dms_Worksheet_List,MATCH(dms_Model,dms_Model_List))) -> ANNUAL REPORTING STATEMENT
B2: =INDEX(dms_TradingNameFull_List,MATCH(dms_TradingName,dms_TradingName_List)) -> Endeavour Energy
B3: =CONCATENATE("Annual Reporting RIN Response ",IF(SUM(dms_SingleYear_Model)>0,CONCATENATE(CRY),CONCATENATE(FRCP_y1," to ",dms_MultiYear_FinalYear_Result))) -> Annual Reporting RIN Response 2017-18
B4: 6.2 RELIABILITY AND CUSTOMER SERVICE PERFORMANCE
B6: Did the MAIFI parameter of the STPIS apply during the period? NB:This flag is set from the response on worksheet 3.6.8 Network feeders | D6: =dms_MAIFI_Flag -> No
B9: 6.2.1 - UNPLANNED MINUTES OFF SUPPLY (SAIDI)
D10: =CRY -> 2017-18
B11: Total sustained minutes off supply | C11: =INDEX(dms_FeederName_1,MATCH(dms_TradingName,dms_TradingName_List)) -> CBD
C12: =INDEX(dms_FeederName_2,MATCH(dms_TradingName,dms_TradingName_List)) -> Urban | D12: 48.6347734
C13: =INDEX(dms_FeederName_3,MATCH(dms_TradingName,dms_TradingName_List)) -> Short rural | D13: 126.8838822
C14: =INDEX(dms_FeederName_4,MATCH(dms_TradingName,dms_TradingName_List)) -> Long rural | D14: 493.0539683
C15: =IF((INDEX(dms_FeederName_5,MATCH(dms_TradingName,dms_TradingName_List))=0),"",(INDEX(dms_FeederName_5,MATCH(dms_TradingName,dms_TradingName_List)))) -> 
C16: Whole Network | D16: 70.57368152
B17: Total of excluded events* *see 3.3 of STPIS | C17: =INDEX(dms_FeederName_1,MATCH(dms_TradingName,dms_TradingName_List)) -> CBD
C18: =INDEX(dms_FeederName_2,MATCH(dms_TradingName,dms_TradingName_List)) -> Urban | D18: 0
C19: =INDEX(dms_FeederName_3,MATCH(dms_TradingName,dms_TradingName_List)) -> Short rural | D19: 0
C20: =INDEX(dms_FeederName_4,MATCH(dms_TradingName,dms_TradingName_List)) -> Long rural | D20: 0
C21: =IF((INDEX(dms_FeederName_5,MATCH(dms_TradingName,dms_TradingName_List))=0),"",(INDEX(dms_FeederName_5,MATCH(dms_TradingName,dms_TradingName_List)))) -> 
C22: Whole Network | D22: 0
B23: Total sustained minutes off supply after removing excluded events | C23: =INDEX(dms_FeederName_1,MATCH(dms_TradingName,dms_TradingName_List)) -> CBD
C24: =INDEX(dms_FeederName_2,MATCH(dms_TradingName,dms_TradingName_List)) -> Urban | D24: 48.6347734
C25: =INDEX(dms_FeederName_3,MATCH(dms_TradingName,dms_TradingName_List)) -> Short rural | D25: 126.8838822
C26: =INDEX(dms_FeederName_4,MATCH(dms_TradingName,dms_TradingName_List)) -> Long rural | D26: 493.0539683
C27: =IF((INDEX(dms_FeederName_5,MATCH(dms_TradingName,dms_TradingName_List))=0),"",(INDEX(dms_FeederName_5,MATCH(dms_TradingName,dms_TradingName_List)))) -> 
C28: Whole Network | D28: 70.57368152
B31: 6.2.2 - UNPLANNED INTERRUPTIONS TO SUPPLY (SAIFI)
D32: =CRY -> 2017-18
B33: Total sustained interruptions | C33: =INDEX(dms_FeederName_1,MATCH(dms_TradingName,dms_TradingName_List)) -> CBD
C34: =INDEX(dms_FeederName_2,MATCH(dms_TradingName,dms_TradingName_List)) -> Urban | D34: 0.5584772396
C35: =INDEX(dms_FeederName_3,MATCH(dms_TradingName,dms_TradingName_List)) -> Short rural | D35: 1.233316653
C36: =INDEX(dms_FeederName_4,MATCH(dms_TradingName,dms_TradingName_List)) -> Long rural | D36: 3.434920635
C37: =IF((INDEX(dms_FeederName_5,MATCH(dms_TradingName,dms_TradingName_List))=0),"",(INDEX(dms_FeederName_5,MATCH(dms_TradingName,dms_TradingName_List)))) -> 
C38: Whole Network | D38: 0.7473870701
B39: Total of excluded events* *see 3.3 of STPIS | C39: =INDEX(dms_FeederName_1,MATCH(dms_TradingName,dms_TradingName_List)) -> CBD
C40: =INDEX(dms_FeederName_2,MATCH(dms_TradingName,dms_TradingName_List)) -> Urban | D40: 0
C41: =INDEX(dms_FeederName_3,MATCH(dms_TradingName,dms_TradingName_List)) -> Short rural | D41: 0
C42: =INDEX(dms_FeederName_4,MATCH(dms_TradingName,dms_TradingName_List)) -> Long rural | D42: 0
C43: =IF((INDEX(dms_FeederName_5,MATCH(dms_TradingName,dms_TradingName_List))=0),"",(INDEX(dms_FeederName_5,MATCH(dms_TradingName,dms_TradingName_List)))) -> 
C44: Whole Network | D44: 0
B45: Total sustained interruptions after removing excluded events | C45: =INDEX(dms_FeederName_1,MATCH(dms_TradingName,dms_TradingName_List)) -> CBD
C46: =INDEX(dms_FeederName_2,MATCH(dms_TradingName,dms_TradingName_List)) -> Urban | D46: 0.5584772396
C47: =INDEX(dms_FeederName_3,MATCH(dms_TradingName,dms_TradingName_List)) -> Short rural | D47: 1.233316653
C48: =INDEX(dms_FeederName_4,MATCH(dms_TradingName,dms_TradingName_List)) -> Long rural | D48: 3.434920635
C49: =IF((INDEX(dms_FeederName_5,MATCH(dms_TradingName,dms_TradingName_List))=0),"",(INDEX(dms_FeederName_5,MATCH(dms_TradingName,dms_TradingName_List)))) -> 
C50: Whole Network | D50: 0.7473870701
B53: 6.2.3 - UNPLANNED MOMENTARY INTERRUPTIONS TO SUPPLY (MAIFI)
D54: =CRY -> 2017-18
B55: Total momentary interruptions | C55: =INDEX(dms_FeederName_1,MATCH(dms_TradingName,dms_TradingName_List)) -> CBD
C56: =INDEX(dms_FeederName_2,MATCH(dms_TradingName,dms_TradingName_List)) -> Urban
C57: =INDEX(dms_FeederName_3,MATCH(dms_TradingName,dms_TradingName_List)) -> Short rural
C58: =INDEX(dms_FeederName_4,MATCH(dms_TradingName,dms_TradingName_List)) -> Long rural
C59: =IF((INDEX(dms_FeederName_5,MATCH(dms_TradingName,dms_TradingName_List))=0),"",(INDEX(dms_FeederName_5,MATCH(dms_TradingName,dms_TradingName_List)))) -> 
C60: Whole Network
B61: Total of excluded events* *see 3.3 of STPIS | C61: =INDEX(dms_FeederName_1,MATCH(dms_TradingName,dms_TradingName_List)) -> CBD
C62: =INDEX(dms_FeederName_2,MATCH(dms_TradingName,dms_TradingName_List)) -> Urban
C63: =INDEX(dms_FeederName_3,MATCH(dms_TradingName,dms_TradingName_List)) -> Short rural
C64: =INDEX(dms_FeederName_4,MATCH(dms_TradingName,dms_TradingName_List)) -> Long rural
C65: =IF((INDEX(dms_FeederName_5,MATCH(dms_TradingName,dms_TradingName_List))=0),"",(INDEX(dms_FeederName_5,MATCH(dms_TradingName,dms_TradingName_List)))) -> 
C66: Whole Network
B67: Total momentary interruptions after removing excluded events | C67: =INDEX(dms_FeederName_1,MATCH(dms_TradingName,dms_TradingName_List)) -> CBD
C68: =INDEX(dms_FeederName_2,MATCH(dms_TradingName,dms_TradingName_List)) -> Urban
C69: =INDEX(dms_FeederName_3,MATCH(dms_TradingName,dms_TradingName_List)) -> Short rural
C70: =INDEX(dms_FeederName_4,MATCH(dms_TradingName,dms_TradingName_List)) -> Long rural
C71: =IF((INDEX(dms_FeederName_5,MATCH(dms_TradingName,dms_TradingName_List))=0),"",(INDEX(dms_FeederName_5,MATCH(dms_TradingName,dms_TradingName_List)))) -> 
C72: Whole Network
B75: 6.2.4 - DISTRIBUTION CUSTOMER NUMBERS
D76: =CRY -> 2017-18
B77: Customer numbers at the start of the period | C77: =INDEX(dms_FeederName_1,MATCH(dms_TradingName,dms_TradingName_List)) -> CBD
C78: =INDEX(dms_FeederName_2,MATCH(dms_TradingName,dms_TradingName_List)) -> Urban | D78: 727843
C79: =INDEX(dms_FeederName_3,MATCH(dms_TradingName,dms_TradingName_List)) -> Short rural | D79: 278538
C80: =INDEX(dms_FeederName_4,MATCH(dms_TradingName,dms_TradingName_List)) -> Long rural | D80: 314
C81: =IF((INDEX(dms_FeederName_5,MATCH(dms_TradingName,dms_TradingName_List))=0),"",(INDEX(dms_FeederName_5,MATCH(dms_TradingName,dms_TradingName_List)))) -> 
C82: Whole Network | D82: 1006695
B83: Customer numbers at the end of the period | C83: =INDEX(dms_FeederName_1,MATCH(dms_TradingName,dms_TradingName_List)) -> CBD
C84: =INDEX(dms_FeederName_2,MATCH(dms_TradingName,dms_TradingName_List)) -> Urban | D84: 736569
C85: =INDEX(dms_FeederName_3,MATCH(dms_TradingName,dms_TradingName_List)) -> Short rural | D85: 287282
C86: =INDEX(dms_FeederName_4,MATCH(dms_TradingName,dms_TradingName_List)) -> Long rural | D86: 315
C87: =IF((INDEX(dms_FeederName_5,MATCH(dms_TradingName,dms_TradingName_List))=0),"",(INDEX(dms_FeederName_5,MATCH(dms_TradingName,dms_TradingName_List)))) -> 
C88: Whole Network | D88: 1024166
B89: Average customer numbers | C89: =INDEX(dms_FeederName_1,MATCH(dms_TradingName,dms_TradingName_List)) -> CBD | D89: =IFERROR(ROUND(AVERAGE(D77,D83),0),"") -> 
C90: =INDEX(dms_FeederName_2,MATCH(dms_TradingName,dms_TradingName_List)) -> Urban | D90: =IFERROR(ROUND(AVERAGE(D78,D84),0),"") -> 732206
C91: =INDEX(dms_FeederName_3,MATCH(dms_TradingName,dms_TradingName_List)) -> Short rural | D91: =IFERROR(ROUND(AVERAGE(D79,D85),0),"") -> 282910
C92: =INDEX(dms_FeederName_4,MATCH(dms_TradingName,dms_TradingName_List)) -> Long rural | D92: =IFERROR(ROUND(AVERAGE(D80,D86),0),"") -> 315
C93: =IF((INDEX(dms_FeederName_5,MATCH(dms_TradingName,dms_TradingName_List))=0),"",(INDEX(dms_FeederName_5,MATCH(dms_TradingName,dms_TradingName_List)))) -> 
C94: Whole Network | D94: =IFERROR(ROUND(AVERAGE(D82,D88),0),"") -> 1015431

Sheet 6.6 STPIS Customer Service
B1: =IF(dms_DataQuality="backcast",INDEX(dms_Worksheet_List,MATCH(dms_Model,dms_Model_List))&" BACKCAST",INDEX(dms_Worksheet_List,MATCH(dms_Model,dms_Model_List))) -> ANNUAL REPORTING STATEMENT
B2: =INDEX(dms_TradingNameFull_List,MATCH(dms_TradingName,dms_TradingName_List)) -> Endeavour Energy
B3: =CONCATENATE("Annual Reporting RIN Response ",IF(SUM(dms_SingleYear_Model)>0,CONCATENATE(CRY),CONCATENATE(FRCP_y1," to ",dms_MultiYear_FinalYear_Result))) -> Annual Reporting RIN Response 2017-18
B4: 6.6 STPIS CUSTOMER SERVICE
B7: 6.6.1 - TELEPHONE ANSWERING
C8: Number of calls after removing excluded events | D8: Total number of calls
C9: =CRY -> 2017-18 | D9: =CRY -> 2017-18
B10: Number of calls received | C10: 186189 | D10: 222684
B11: Number of calls answered within 30 seconds | C11: 155649
B12: Percentage of calls answered within 30 seconds | C12: =IFERROR(C11/C10,"") -> 0.8359731241

Sheet 6.7 STPIS Daily Performance
B1: =IF(dms_DataQuality="backcast",INDEX(dms_Worksheet_List,MATCH(dms_Model,dms_Model_List))&" BACKCAST",INDEX(dms_Worksheet_List,MATCH(dms_Model,dms_Model_List))) -> ANNUAL REPORTING STATEMENT | I1: 1-Jul-2016
B2: =INDEX(dms_TradingNameFull_List,MATCH(dms_TradingName,dms_TradingName_List)) -> Endeavour Energy
B3: =CONCATENATE("Annual Reporting RIN Response ",IF(SUM(dms_SingleYear_Model)>0,CONCATENATE(CRY),CONCATENATE(FRCP_y1," to ",dms_MultiYear_FinalYear_Result))) -> Annual Reporting RIN Response 2017-18
B4: 6.7 STPIS DAILY PERFORMANCE
B7: Did the MAIFI parameter of the STPIS apply during the period? This flag is set from the response on worksheet 3.6.8 Network feeders | G7: =dms_MAIFI_Flag -> No
B9: The excluded events to be removed from the data refer only to events listed in clause 3.3(a) of the STPIS, with respect to reliability data, and in clause 5.4 of the STPIS with respect to customer service parameters. *Customer service information must be reported as per the definitions in the STPIS, that is excluding: • calls to payment lines and automated interactive services • calls abandoned by the customer within 30 seconds of the call being queued for response by a human operator (where the time in which a telephone call is abandoned is not measured, then an estimate of the number of calls abandoned within 30 seconds will be determined by taking 20 per cent of all calls abadoned).
B11: 6.7.1 - DAILY PERFORMANCE DATA - UNPLANNED
B12: Date | C12: Customer service* | E12: MAIFI
C13: Number of calls received (after removing excluded events) | D13: Number of calls answered in 30 seconds (after removing excluded events) | E13: =INDEX(dms_FeederName_1,MATCH(dms_TradingName,dms_TradingName_List)) -> CBD | G13: =INDEX(dms_FeederName_2,MATCH(dms_TradingName,dms_TradingName_List)) -> Urban | I13: =INDEX(dms_FeederName_3,MATCH(dms_TradingName,dms_TradingName_List)) -> Short rural | K13: =INDEX(dms_FeederName_4,MATCH(dms_TradingName,dms_TradingName_List)) -> Long rural | M13: =IF((INDEX(dms_FeederName_5,MATCH(dms_TradingName,dms_TradingName_List))=0),"Network",(INDEX(dms_FeederName_5,MATCH(dms_TradingName,dms_TradingName_List)))) ->  | O13: Network
E14: All events | F14: After removing excluded events | G14: All events | H14: After removing excluded events | I14: All events | J14: After removing excluded events | K14: All events | L14: After removing excluded events | M14: All events | N14: After removing excluded events | O14: All events | P14: After removing excluded events
B15: =dms_060701_StartDateTxt -> 1-Jul-2017 | C15: 158 | D15: 156
B16: =B15+1 -> 2017-07-02 | C16: 174 | D16: 173
B17: 2017-07-03 | C17: 709 | D17: 697
B18: 2017-07-04 | C18: 876 | D18: 859
B19: 2017-07-05 | C19: 738 | D19: 725
B20: 2017-07-06 | C20: 677 | D20: 671
B21: 2017-07-07 | C21: 651 | D21: 644
B22: 2017-07-08 | C22: 266 | D22: 254
B23: 2017-07-09 | C23: 124 | D23: 121
B24: 2017-07-10 | C24: 670 | D24: 660
B25: 2017-07-11 | C25: 628 | D25: 618
B26: 2017-07-12 | C26: 618 | D26: 612
B27: 2017-07-13 | C27: 648 | D27: 643
B28: 2017-07-14 | C28: 706 | D28: 700
B29: 2017-07-15 | C29: 291 | D29: 282
B30: 2017-07-16 | C30: 105 | D30: 104
B31: 2017-07-17 | C31: 666 | D31: 658
B32: 2017-07-18 | C32: 651 | D32: 644
B33: 2017-07-19 | C33: 761 | D33: 747
B34: 2017-07-20 | C34: 605 | D34: 596
B35: 2017-07-21 | C35: 657 | D35: 648
B36: 2017-07-22 | C36: 201 | D36: 199
B37: 2017-07-23 | C37: 237 | D37: 226
B38: 2017-07-24 | C38: 679 | D38: 671
B39: 2017-07-25 | C39: 706 | D39: 698
B40: 2017-07-26 | C40: 918 | D40: 887
B41: 2017-07-27 | C41: 610 | D41: 595
B42: 2017-07-28 | C42: 691 | D42: 665
B43: 2017-07-29 | C43: 175 | D43: 170
B44: 2017-07-30 | C44: 123 | D44: 121
B45: 2017-07-31 | C45: 743 | D45: 721
B46: 2017-08-01 | C46: 771 | D46: 753
B47: 2017-08-02 | C47: 701 | D47: 682
B48: 2017-08-03 | C48: 704 | D48: 695
B49: 2017-08-04 | C49: 619 | D49: 610
B50: 2017-08-05 | C50: 264 | D50: 261
B51: 2017-08-06 | C51: 126 | D51: 125
B52: 2017-08-07 | C52: 651 | D52: 643
B53: 2017-08-08 | C53: 862 | D53: 831
B54: 2017-08-09 | C54: 646 | D54: 638
B55: 2017-08-10 | C55: 598 | D55: 596
B56: 2017-08-11 | C56: 636 | D56: 623
B57: 2017-08-12 | C57: 236 | D57: 232
B58: 2017-08-13 | C58: 139 | D58: 136
B59: 2017-08-14 | C59: 605 | D59: 595
B60: 2017-08-15 | C60: 633 | D60: 618
B61: 2017-08-16 | C61: 946 | D61: 933
B62: 2017-08-17 | C62: 692 | D62: 680
B63: 2017-08-18 | C63: 1211 | D63: 1166
B64: 2017-08-19 | C64: 378 | D64: 367
B65: 2017-08-20 | C65: 113 | D65: 109
B66: 2017-08-21 | C66: 677 | D66: 669
B67: 2017-08-22 | C67: 797 | D67: 777
B68: 2017-08-23 | C68: 662 | D68: 656
B69: 2017-08-24 | C69: 616 | D69: 608
B70: 2017-08-25 | C70: 542 | D70: 533
B71: 2017-08-26 | C71: 191 | D71: 189
B72: 2017-08-27 | C72: 281 | D72: 267
B73: 2017-08-28 | C73: 667 | D73: 648
B74: 2017-08-29 | C74: 610 | D74: 595
B75: 2017-08-30 | C75: 594 | D75: 587
B76: 2017-08-31 | C76: 640 | D76: 632
B77: 2017-09-01 | C77: 570 | D77: 561
B78: 2017-09-02 | C78: 155 | D78: 153
B79: 2017-09-03 | C79: 103 | D79: 101
B80: =B79+1 -> 2017-09-04 | C80: 689 | D80: 677
B81: 2017-09-05 | C81: 592 | D81: 588
B82: 2017-09-06 | C82: 731 | D82: 715
B83: 2017-09-07 | C83: 713 | D83: 708
B84: 2017-09-08 | C84: 605 | D84: 596
B85: 2017-09-09 | C85: 191 | D85: 191
B86: 2017-09-10 | C86: 70 | D86: 70
B87: 2017-09-11 | C87: 641 | D87: 631
B88: 2017-09-12 | C88: 641 | D88: 636
B89: 2017-09-13 | C89: 863 | D89: 843
B90: 2017-09-14 | C90: 708 | D90: 689
B91: 2017-09-15 | C91: 587 | D91: 581
B92: 2017-09-16 | C92: 219 | D92: 213
B93: 2017-09-17 | C93: 133 | D93: 133
B94: 2017-09-18 | C94: 598 | D94: 589
B95: 2017-09-19 | C95: 555 | D95: 551
B96: 2017-09-20 | C96: 548 | D96: 541
B97: 2017-09-21 | C97: 703 | D97: 693
B98: 2017-09-22 | C98: 537 | D98: 532
B99: 2017-09-23 | C99: 263 | D99: 256
B100: 2017-09-24 | C100: 357 | D100: 341
B101: 2017-09-25 | C101: 630 | D101: 618
B102: 2017-09-26 | C102: 676 | D102: 660
B103: 2017-09-27 | C103: 543 | D103: 535
B104: 2017-09-28 | C104: 651 | D104: 641
B105: 2017-09-29 | C105: 528 | D105: 522
B106: 2017-09-30 | C106: 156 | D106: 151
B107: 2017-10-01 | C107: 91 | D107: 90
B108: 2017-10-02 | C108: 125 | D108: 125
B109: 2017-10-03 | C109: 576 | D109: 567
B110: 2017-10-04 | C110: 627 | D110: 622
B111: 2017-10-05 | C111: 667 | D111: 654
B112: 2017-10-06 | C112: 514 | D112: 505
B113: 2017-10-07 | C113: 139 | D113: 138
B114: 2017-10-08 | C114: 106 | D114: 103
B115: 2017-10-09 | C115: 660 | D115: 652
B116: 2017-10-10 | C116: 598 | D116: 593
B117: 2017-10-11 | C117: 756 | D117: 734
B118: 2017-10-12 | C118: 742 | D118: 735
B119: 2017-10-13 | C119: 532 | D119: 530
B120: 2017-10-14 | C120: 152 | D120: 151
B121: 2017-10-15 | C121: 127 | D121: 124
B122: 2017-10-16 | C122: 696 | D122: 690
B123: 2017-10-17 | C123: 639 | D123: 630
B124: 2017-10-18 | C124: 625 | D124: 619
B125: 2017-10-19 | C125: 582 | D125: 576
B126: 2017-10-20 | C126: 797 | D126: 785
B127: 2017-10-21 | C127: 163 | D127: 163
B128: 2017-10-22 | C128: 135 | D128: 132
B129: 2017-10-23 | C129: 623 | D129: 613
B130: 2017-10-24 | C130: 617 | D130: 606
B131: 2017-10-25 | C131: 574 | D131: 570
B132: 2017-10-26 | C132: 552 | D132: 545
B133: 2017-10-27 | C133: 686 | D133: 667
B134: 2017-10-28 | C134: 175 | D134: 167
B135: 2017-10-29 | C135: 107 | D135: 106
B136: 2017-10-30 | C136: 808 | D136: 792
B137: 2017-10-31 | C137: 628 | D137: 619
B138: 2017-11-01 | C138: 603 | D138: 601
B139: 2017-11-02 | C139: 574 | D139: 570
B140: 2017-11-03 | C140: 553 | D140: 547
B141: 2017-11-04 | C141: 198 | D141: 195
B142: 2017-11-05 | C142: 174 | D142: 170
B143: 2017-11-06 | C143: 769 | D143: 753
B144: =B143+1 -> 2017-11-07 | C144: 559 | D144: 552
B145: 2017-11-08 | C145: 572 | D145: 562
B146: 2017-11-09 | C146: 635 | D146: 623
B147: 2017-11-10 | C147: 559 | D147: 551
B148: 2017-11-11 | C148: 231 | D148: 227
B149: 2017-11-12 | C149: 120 | D149: 120
B150: 2017-11-13 | C150: 647 | D150: 633
B151: 2017-11-14 | C151: 577 | D151: 569
B152: 2017-11-15 | C152: 631 | D152: 622
B153: 2017-11-16 | C153: 575 | D153: 567
B154: 2017-11-17 | C154: 720 | D154: 710
B155: 2017-11-18 | C155: 227 | D155: 227
B156: 2017-11-19 | C156: 119 | D156: 119
B157: 2017-11-20 | C157: 613 | D157: 601
B158: 2017-11-21 | C158: 618 | D158: 608
B159: 2017-11-22 | C159: 662 | D159: 650
B160: 2017-11-23 | C160: 641 | D160: 630
B161: 2017-11-24 | C161: 601 | D161: 576
B162: 2017-11-25 | C162: 264 | D162: 253
B163: 2017-11-26 | C163: 190 | D163: 187
B164: 2017-11-27 | C164: 631 | D164: 628
B165: 2017-11-28 | C165: 565 | D165: 563
B166: 2017-11-29 | C166: 547 | D166: 542
B167: 2017-11-30 | C167: 708 | D167: 701
B168: 2017-12-01 | C168: 527 | D168: 523
B169: 2017-12-02 | C169: 435 | D169: 419
B170: 2017-12-03 | C170: 127 | D170: 126
B171: 2017-12-04 | C171: 570 | D171: 561
B172: 2017-12-05 | C172: 565 | D172: 560
B173: 2017-12-06 | C173: 635 | D173: 626
B174: 2017-12-07 | C174: 785 | D174: 768
B175: 2017-12-08 | C175: 578 | D175: 566
B176: 2017-12-09 | C176: 198 | D176: 197
B177: 2017-12-10 | C177: 96 | D177: 96
B178: 2017-12-11 | C178: 638 | D178: 631
B179: 2017-12-12 | C179: 528 | D179: 520
B180: 2017-12-13 | C180: 646 | D180: 640
B181: 2017-12-14 | C181: 1033 | D181: 1009
B182: 2017-12-15 | C182: 668 | D182: 656
B183: 2017-12-16 | C183: 362 | D183: 351
B184: 2017-12-17 | C184: 404 | D184: 392
B185: 2017-12-18 | C185: 701 | D185: 696
B186: 2017-12-19 | C186: 871 | D186: 854
B187: 2017-12-20 | C187: 1075 | D187: 1038
B188: 2017-12-21 | C188: 558 | D188: 554
B189: 2017-12-22 | C189: 414 | D189: 404
B190: 2017-12-23 | C190: 289 | D190: 279
B191: 2017-12-24 | C191: 210 | D191: 205
B192: 2017-12-25 | C192: 81 | D192: 81
B193: 2017-12-26 | C193: 96 | D193: 96
B194: 2017-12-27 | C194: 299 | D194: 294
B195: 2017-12-28 | C195: 281 | D195: 280
B196: 2017-12-29 | C196: 286 | D196: 285
B197: 2017-12-30 | C197: 232 | D197: 230
B198: 2017-12-31 | C198: 131 | D198: 128
B199: 2018-01-01 | C199: 127 | D199: 126
B200: 2018-01-02 | C200: 417 | D200: 412
B201: 2018-01-03 | C201: 459 | D201: 456
B202: 2018-01-04 | C202: 526 | D202: 520
B203: 2018-01-05 | C203: 405 | D203: 402
B204: 2018-01-06 | C204: 219 | D204: 213
... 176 more rows

Sheet 6.8 STPIS Exclusions
B1: =IF(dms_DataQuality="backcast",INDEX(dms_Worksheet_List,MATCH(dms_Model,dms_Model_List))&" BACKCAST",INDEX(dms_Worksheet_List,MATCH(dms_Model,dms_Model_List))) -> ANNUAL REPORTING STATEMENT
B2: =INDEX(dms_TradingNameFull_List,MATCH(dms_TradingName,dms_TradingName_List)) -> Endeavour Energy
B3: =CONCATENATE("Annual Reporting RIN Response ",IF(SUM(dms_SingleYear_Model)>0,CONCATENATE(CRY),CONCATENATE(FRCP_y1," to ",dms_MultiYear_FinalYear_Result))) -> Annual Reporting RIN Response 2017-18
B4: 6.8 STPIS EXCLUSIONS
B7: This information is collected to inform the application of the STPIS to Australian Distribution Co. in future regulatory periods. The information is also collected to monitor network performance, and may be used in performance reports.
B9: 6.8.1 - STPIS EXCLUSIONS
B10: Date of event | C10: Outage ID | D10: Feeder ID / name | E10: Feeder classification (drop down) | F10: Cause of event (drop down) | G10: Unplanned | J10: Event category | K10: Effect on unplanned MAIFI | L10: Please provide separate explanation to confirm the outage was not due to inadequate transmission connection planning
B11: DD/MM/YYYY | G11: Number of interruptions | H11: Duration of interruption (mins) | I11: Total unplanned minutes off supply | J11: Use exclusion categories listed in section 3.3(a) of the STPIS (drop down) | K11: by feeder classification
B403: To enter further events - please insert new lines above this line.

Sheet 6.9 STPIS - GSL
B1: =IF(dms_DataQuality="backcast",INDEX(dms_Worksheet_List,MATCH(dms_Model,dms_Model_List))&" BACKCAST",INDEX(dms_Worksheet_List,MATCH(dms_Model,dms_Model_List))) -> ANNUAL REPORTING STATEMENT
B2: =INDEX(dms_TradingNameFull_List,MATCH(dms_TradingName,dms_TradingName_List)) -> Endeavour Energy
B3: =CONCATENATE("Annual Reporting RIN Response ",IF(SUM(dms_SingleYear_Model)>0,CONCATENATE(CRY),CONCATENATE(FRCP_y1," to ",dms_MultiYear_FinalYear_Result))) -> Annual Reporting RIN Response 2017-18
B4: 6.9 STPIS - GUARANTEED SERVICE LEVEL
B6: Did the AER's GSL Scheme apply at any time during the regulatory year? | D6: No | E6: **IMPORTANT Please ensure this flag is set. Conditional formatting on this worksheet is dependant on this response.
B8: Instructions: Table 6.9.1 collects information relating to jurisdiction GSL scheme parameters. These parameters can be found in the jurisdictonal scheme relevant to NSP. Please identify each parameter in the relevant sub-tables and provide the volume and value of GSL payments. For GSL parameters that do not fit within the provided sub-tables provided, please enter a heading and identify the relevant parameter(s).
B10: 6.9.1 - GUARANTEED SERVICE LEVELS - JURISDICTIONAL GSL SCHEME
D11: =CRY -> 2017-18 | E11: =CRY -> 2017-18
D12: Volume | E12: Value of GSL payments
D13: 0's | E13: $0's
B14: Appointments
B15: Nil
B19: To enter further GSL parameters relating to appointments - please copy a row from above and "insert copied cells" above this row.
B21: Connections
B22: Nil
B27: To enter further GSL parameters relating to connections - please copy a row from above and "insert copied cells" above this row.
B29: Reliability of supply
B30: Nil
B41: To enter further GSL parameters relating to reliability of supply - please copy a row from above and "insert copied cells" above this row.
B43: Street lights
B44: Street lights "out" during period | D44: 14323 | E44: 0
B45: Street lights not repaired by "fix by" date | D45: 1512 | E45: 0
B46: Street lights not repaired in 2 business days | D46: 1512 | E46: 0
B47: Street lights - number os business days to repair | D47: 4.8 | E47: 0
B48: Street lights -GSL payments | D48: 327 | E48: 4905
B51: To enter further GSL parameters relating to street lights - please copy a row from above and "insert copied cells" above this row.
B53: Planned interruptions
B54: Nil
B57: To enter further GSL parameters relating to planned interruptions - please copy a row from above and "insert copied cells" above this row.
B59: <NSP defined parameter category>
B63: To enter further GSL parameters - please identify the parameter and if insufficient rows please copy a row from above and "insert copied cells" above this row.
B65: <NSP defined parameter category>
B69: To enter further GSL parameters - please identify the parameter and if insufficient rows please copy a row from above and "insert copied cells" above this row.
B71: <NSP defined parameter category>
B75: To enter further GSL parameters - please identify the parameter and if insufficient rows please copy a row from above and "insert copied cells" above this row.
B77: <NSP defined parameter category>
B81: To enter further GSL parameters - please identify the parameter and if insufficient rows please copy a row from above and "insert copied cells" above this row.
B84: 6.9.2 - GUARANTEED SERVICE LEVELS - AER GSL SCHEME
B86: Complete Table 6.9.2 if the AER's GSL scheme applied at any time during the regulatory year. Do not complete Table 6.9.2 if the AER's GSL scheme did not apply during the regulatory year.
D88: =CRY -> 2017-18 | E88: =CRY -> 2017-18
D89: Volume | E89: Value of GSL payments
D90: 0's | E90: $0's
B91: New connections
B92: Number of connections made
B93: Number of connections not made on or before the day agreed
B94: Connections - GSL payments – 1-6 day delay
B95: Connections - GSL payments – 7+ day delay
B96: Reliability of supply
B97: Frequency of interruptions – CBD feeders – 9 interruptions
B98: Frequency of interruptions – Urban feeders – 9 interruptions
B99: Frequency of interruptions – Rural (short and long) feeders – 15 interruptions
B100: Interruptions – CBD feeders – 12 hours duration
B101: Interruptions – Urban feeders – 12 hours duration
B102: Interruptions – Rural (short and long) feeders – 18 hours duration
B103: Total duration of interruptions Level 1 – 20 hours
B104: Total duration of interruptions Level 2 – 30 hours
B105: Total duration of interruptions Level 3 – 60 hours
B106: Street lights
B107: Streetlight repair 5 days – GSL payments
B108: Planned interruptions
B109: Notice of planned interruptions – 4 business days notice not given
B110: Total | E110: =SUM(E109,E107,E97:E105,E94:E95) -> 0

Sheet 7.8 Avoided TUOS Payments
B1: =IF(dms_DataQuality="backcast",INDEX(dms_Worksheet_List,MATCH(dms_Model,dms_Model_List))&" BACKCAST",INDEX(dms_Worksheet_List,MATCH(dms_Model,dms_Model_List))) -> ANNUAL REPORTING STATEMENT
B2: =INDEX(dms_TradingNameFull_List,MATCH(dms_TradingName,dms_TradingName_List)) -> Endeavour Energy
B3: =CONCATENATE("Annual Reporting RIN Response ",IF(SUM(dms_SingleYear_Model)>0,CONCATENATE(CRY),CONCATENATE(FRCP_y1," to ",dms_MultiYear_FinalYear_Result))) -> Annual Reporting RIN Response 2017-18
B4: 7.8 - AVOIDED TUOS PAYMENTS
B6: 7.8.1 - AVOIDED TUOS PAYMENTS
C7: Avoided TUOS Payment
C8: $0's, nominal
B9: Embedded generators | C9: 1268223.33
B10: Market network service providers | C10: 0
B11: Other | C11: 0

Sheet 7.10 Juris Scheme
B1: =IF(dms_DataQuality="backcast",INDEX(dms_Worksheet_List,MATCH(dms_Model,dms_Model_List))&" BACKCAST",INDEX(dms_Worksheet_List,MATCH(dms_Model,dms_Model_List))) -> ANNUAL REPORTING STATEMENT
B2: =INDEX(dms_TradingNameFull_List,MATCH(dms_TradingName,dms_TradingName_List)) -> Endeavour Energy
B3: =CONCATENATE("Annual Reporting RIN Response ",IF(SUM(dms_SingleYear_Model)>0,CONCATENATE(CRY),CONCATENATE(FRCP_y1," to ",dms_MultiYear_FinalYear_Result))) -> Annual Reporting RIN Response 2017-18
B4: 7.10 - JURISDICTIONAL SCHEMES
B6: Instructions Business must list each relevant jurisdictional scheme individually and report information for each scheme separately from other schemes.
B8: 7.10.1 - JURISDICTIONAL SCHEME PAYMENTS
B9: Jurisdictional Scheme Name | C9: Description | D9: Date DNSP Became Subject to Scheme | E9: Description of Cost Recovery Method | F9: Total Scheme Payments
F10: $0's, nominal
B11: Solar Bonus Scheme (established under the Electricity Supply Act 1995 (NSW)) - [Rule 6.18.7A(e)(2)] | C11: The NSW Government’s Solar Bonus Scheme (SBS) credits participating customers with a feed in tariff for all the electricity that their eligible solar photovoltaic (PV) system or wind turbine generates and provides to the network. | D11: The SBS commenced 1 January 2010. | E11: Not applicable. The SBS closed 31 December 2016 | F11: 0
B12: Climate Change Fund (established under the Energy and Utilities Administration Act 1987 (NSW)) - [Rule 6.18.7A(e)(3)]. | C12: The NSW Government's Climate Change Fund (CCF) was established to address the impacts of climate change, encourage energy and water saving activities and increase public awareness and acceptance of climate change. | D12: The CCF commenced 1 July 2007 | E12: Costs are recovered in accordance with 6.18.7A of the Rules. The NSW Government requires Endeavour Energy to recover no more than 25% of CCF payments from Residential customers. | F12: 88185379
E17: Total | F17: =SUM(F11:F16) -> 88185379

Sheet 7.11 DMIS-DMIA
B1: =IF(dms_DataQuality="backcast",INDEX(dms_Worksheet_List,MATCH(dms_Model,dms_Model_List))&" BACKCAST",INDEX(dms_Worksheet_List,MATCH(dms_Model,dms_Model_List))) -> ANNUAL REPORTING STATEMENT
B2: =INDEX(dms_TradingNameFull_List,MATCH(dms_TradingName,dms_TradingName_List)) -> Endeavour Energy
B3: =CONCATENATE("Annual Reporting RIN Response ",IF(SUM(dms_SingleYear_Model)>0,CONCATENATE(CRY),CONCATENATE(FRCP_y1," to ",dms_MultiYear_FinalYear_Result))) -> Annual Reporting RIN Response 2017-18
B4: 7.11 - DEMAND MANAGEMENT INCENTIVE SCHEME
B6: 7.11.1 - DMIA - PROJECTS SUBMITTED FOR APPROVAL
C7: =CONCATENATE("Total amount of the DMIA spent in ", CRY) -> Total amount of the DMIA spent in 2017-18
C8: Operating expenditure | D8: Capital expenditure | E8: Total
B9: Name of project | C9: $0's, nominal
B10: Residential Battery Energy Storage Trial | C10: 464551 | D10: 0 | E10: =SUM(C10:D10) -> 464551
B11: Air Conditioner Control Trial using 3G DRED | C11: 228864 | D11: 69218 | E11: 298082
B12: Grid Connected Battery Energy Storage System | C12: 0 | D12: 114816 | E12: 114816
E13: 0
E14: 0
E15: 0
E16: =SUM(C16:D16) -> 0
E17: 0
E18: 0
E19: 0
E20: 0
E21: 0
E22: 0
E23: 0
E24: 0
E25: 0
E26: 0
E27: 0
E28: 0
E29: 0
E30: 0
E31: 0
E32: 0
E33: 0
E34: 0
E35: 0
E36: 0
E37: 0
E38: 0
E39: 0
E40: 0
E41: 0
E42: 0
E43: 0
E44: 0
B45: To enter additional projects - please copy an existing row and insert above this row.
B46: Total | C46: =SUM(C10:C45) -> 693415 | D46: =SUM(D10:D45) -> 184034 | E46: =SUM(E10:E45) -> 877449

Sheet 7.12 Safety and Bushfire
B1: =IF(dms_DataQuality="backcast",INDEX(dms_Worksheet_List,MATCH(dms_Model,dms_Model_List))&" BACKCAST",INDEX(dms_Worksheet_List,MATCH(dms_Model,dms_Model_List))) -> ANNUAL REPORTING STATEMENT
B2: =INDEX(dms_TradingNameFull_List,MATCH(dms_TradingName,dms_TradingName_List)) -> Endeavour Energy
B3: =CONCATENATE("Annual Reporting RIN Response ",IF(SUM(dms_SingleYear_Model)>0,CONCATENATE(CRY),CONCATENATE(FRCP_y1," to ",dms_MultiYear_FinalYear_Result))) -> Annual Reporting RIN Response 2017-18
B4: 7.12 SAFETY AND BUSHFIRE RELATED EXPENDITURE
B6: These templates collect information from Victorian businesses only. Bushfire and safety related expenditure information is used by the AER to monitor the expenditures throughout the regulatory control period.
B8: CPI applied to convert expected expenditure in real $ to nominal based on lagged September CPI index
B10: Instructions
B11: For "Exclusive of Margins & Overheads" reported expenditure is to EXCLUDE any overheads, profit margins or management fees paid directly or indirectly to related party contractors (not including actual incurred expense of the related party contractor) for the reporting period.
B12: For "Value of Margins & Overheads" reported expenditure is to COMPRISE ONLY the sum of overheads, profit margins or management fees paid directly or indirectly to related party contractors (not including actual incurred expenses of the related party contractor) for the reporting period.
B14: Australian Distribution Co. is to specify each activity in this table in accordance with the definition in Appendix F of the RIN.
B15: All activities must be reported but the Reason for Difference is only required if there is a 10 per cent difference between the expected value and the actual value. Use median unit costs. Where unit costs are not recorded at the asset category level - provide the best estimates of the unit cost using the cost allocation method identified in this table. (As a transitional measure, the unit cost may be based on a statistically significant annual sample of actual work orders at a 5% or better confidence interval.) Provide basis of allocation where applicable.
B17: 7.12.1 - SAFETY AND BUSHFIRE RELATED ASSET GROUP DEFINITIONS AND ALLOCATION BASIS
B18: Activity | C18: Definitions | G18: Basis for allocation of cost to activity
B19: Planned non-preferred services replacements
B20: Planned replacement of non-preferred services due to height
B21: Removal of public lighting switchwire
B22: Replacement of existing SWER lines with 22kV overhead bare conductor
B23: Installation of GFN and associated equipment at zone substations
B24: Replacement of crossarms/insulator sets – pole top fire mitigation
B25: Replacement of crossarms – based on age and condition
B26: Replacement of poles – based on age and condition
B27: Stake poles – based on age and condition
B28: Replacement of undersized poles
B29: Stake undersized poles
B30: Replacement of overhead conductor – mainly steel
B31: Service line clearance – overhead services requiring relocation
B32: Service line clearance – overhead services requiring undergrounding
B33: Replacement of 22kV distribution feeders with ABC/underground cabling
B34: Replacement of SWER with covered carbon core conductor or equivalent
B35: Replacement of SWER with ABC
B36: Replacement of SWER with underground
B37: Replacement of surge diverters (neptune configuration)
B38: Replacement of surge diverters (single phase or three phase)
B46: To enter further activities - please copy row from above and "insert copied cells" into a row above this row.
B49: 7.12.2 - BUSHFIRE RELATED
B51: 7.12.2.1 - NUMBER OF ACTIVITIES
B52: Activity | C52: Units | D52: Number of Activities
B53: Planned non-preferred services replacements | C53: number of services
B54: Planned replacement of non-preferred services due to height | C54: number of services
B55: Removal of public lighting switchwire | C55: number of spans removed
B56: Replacement of existing SWER lines with 22kV overhead bare conductor | C56: kms of SWER
B57: Installation of GFN and associated equipment at zone substations | C57: number of zone substations
B58: Replacement of crossarms/insulator sets – pole top fire mitigation | C58: number of crossarms/sets
B59: Replacement of crossarms – based on age and condition | C59: number of crossarms
B60: Replacement of poles – based on age and condition | C60: number of poles
B61: Stake poles – based on age and condition | C61: number of poles
B62: Replacement of undersized poles | C62: number of poles
B63: Stake undersized poles | C63: number of poles
B64: Replacement of overhead conductor – mainly steel | C64: kms
B65: Service line clearance – overhead services requiring relocation | C65: number of services
B66: Service line clearance – overhead services requiring undergrounding | C66: number of services
B67: Replacement of 22kV distribution feeders with ABC/underground cabling | C67: number of feeders
B68: Replacement of SWER with covered carbon core conductor or equivalent | C68: kms
B69: Replacement of SWER with ABC | C69: kms
B70: Replacement of SWER with underground | C70: kms
B71: Replacement of surge diverters (neptune configuration) | C71: number of units
B72: Replacement of surge diverters (single phase or three phase) | C72: number of units
B73: =IF(ISBLANK(B39),"",B39) -> 
B80: To enter further activities - please copy row from above and "insert copied cells" into a row above this row.
B83: 7.12.2.2 - EXPENDITURE
B84: Activity | C84: Units | D84: Exclusive of Margins & Overheads | E84: Value of Margins & Overheads
D85: Actual Expenditure
D86: $0's, Nominal
B87: Planned non-preferred services replacements | C87: number of services
B88: Planned replacement of non-preferred services due to height | C88: number of services
B89: Removal of public lighting switchwire | C89: number of spans removed
B90: Replacement of existing SWER lines with 22kV overhead bare conductor | C90: kms of SWER
B91: Installation of GFN and associated equipment at zone substations | C91: number of zone substations
B92: Replacement of crossarms/insulator sets – pole top fire mitigation | C92: number of crossarms/sets
B93: Replacement of crossarms – based on age and condition | C93: number of crossarms
B94: Replacement of poles – based on age and condition | C94: number of poles
B95: Stake poles – based on age and condition | C95: number of poles
B96: Replacement of undersized poles | C96: number of poles
B97: Stake undersized poles | C97: number of poles
B98: Replacement of overhead conductor – mainly steel | C98: kms
B99: Service line clearance – overhead services requiring relocation | C99: number of services
B100: Service line clearance – overhead services requiring undergrounding | C100: number of services
B101: Replacement of 22kV distribution feeders with ABC/underground cabling | C101: number of feeders
B102: Replacement of SWER with covered carbon core conductor or equivalent | C102: kms
B103: Replacement of SWER with ABC | C103: kms
B104: Replacement of SWER with underground | C104: kms
B105: Replacement of surge diverters (neptune configuration) | C105: number of units
B106: Replacement of surge diverters (single phase or three phase) | C106: number of units
B107: =IF(ISBLANK(B39),"",B39) ->  | C107: =IF(ISBLANK(C73),"",C73) -> 
B114: To enter further activities - please copy row from above and "insert copied cells" into a row above this row.
B117: 7.12.2.3 - UNIT COSTS
B118: Activity | D118: Actual
D119: $0's, Per Unit
B120: Planned non-preferred services replacements
B121: Planned replacement of non-preferred services due to height
B122: Removal of public lighting switchwire
B123: Replacement of existing SWER lines with 22kV overhead bare conductor
B124: Installation of GFN and associated equipment at zone substations
B125: Replacement of crossarms/insulator sets – pole top fire mitigation
B126: Replacement of crossarms – based on age and condition
B127: Replacement of poles – based on age and condition
B128: Stake poles – based on age and condition
B129: Replacement of undersized poles
B130: Stake undersized poles
B131: Replacement of overhead conductor – mainly steel
B132: Service line clearance – overhead services requiring relocation
B133: Service line clearance – overhead services requiring undergrounding
B134: Replacement of 22kV distribution feeders with ABC/underground cabling
B135: Replacement of SWER with covered carbon core conductor or equivalent
B136: Replacement of SWER with ABC
B137: Replacement of SWER with underground
B138: Replacement of surge diverters (neptune configuration)
B139: Replacement of surge diverters (single phase or three phase)
B140: =IF(ISBLANK(B39),"",B39) -> 
B147: To enter further activities - please copy row from above and "insert copied cells" into a row above this row.
B150: 7.12.2.4 - CONTINGENT PROJECT APPLICATIONS - VOLUMES APPROVED
B151: Activity | C151: Units | D151: Volume approved under contingent project applications | E151: Actual volumes | F151: Difference
F152: =E152-D152 -> 0
F153: 0
F154: 0
F155: 0
F156: 0
F157: 0
F158: 0
F159: 0
B160: To enter further activities - please copy row from above and "insert copied cells" into a row above this row.
B162: 7.12.2.5 - CONTINGENT PROJECT APPLICATIONS - EXPENDITURE APPROVED
B163: Activity | C163: Exclusive of Margins & Overheads | D163: Value of Margins & Overheads
C164: Actual Expenditure
C165: $0's, Nominal
B166: =IF(ISBLANK(B152),"",B152) -> 
B167: =IF(ISBLANK(B153),"",B153) -> 
B174: To enter further activities - please copy row from above and "insert copied cells" into a row above this row.
B178: 7.12.3 - SAFETY RELATED
B180: 7.12.3.1 - NUMBER OF ACTIVITIES
B181: Activity | C181: Units | D181: Number of Activities
B182: Planned non-preferred services replacements | C182: number of services
B183: Planned replacement of non-preferred services due to height | C183: number of services
B184: Removal of public lighting switchwire | C184: number of spans removed
B185: Replacement of existing SWER lines with 22kV overhead bare conductor | C185: kms of SWER
B186: Installation of GFN and associated equipment at zone substations | C186: number of zone substations
B187: Replacement of crossarms/insulator sets – pole top fire mitigation | C187: number of crossarms/sets
B188: Replacement of crossarms – based on age and condition | C188: number of crossarms
B189: Replacement of poles – based on age and condition | C189: number of poles
B190: Stake poles – based on age and condition | C190: number of poles
B191: Replacement of undersized poles | C191: number of poles
B192: Stake undersized poles | C192: number of poles
B193: Replacement of overhead conductor – mainly steel | C193: kms
B194: Service line clearance – overhead services requiring relocation | C194: number of services
B195: Service line clearance – overhead services requiring undergrounding | C195: number of services
B196: Replacement of 22kV distribution feeders with ABC/underground cabling | C196: number of feeders
B197: Replacement of SWER with covered carbon core conductor or equivalent | C197: kms
B198: Replacement of SWER with ABC | C198: kms
B199: Replacement of SWER with underground | C199: kms
B200: Replacement of surge diverters (neptune configuration) | C200: number of units
B201: Replacement of surge diverters (single phase or three phase) | C201: number of units
B202: =IF(ISBLANK(B39),"",B39) ->  | C202: =IF(ISBLANK(C73),"",C73) -> 
B209: To enter further activities - please copy row from above and "insert copied cells" into a row above this row.
B212: 7.12.3.2 - EXPENDITURE
B213: Activity | C213: Units | D213: Exclusive of Margins & Overheads | E213: Value of Margins & Overheads
D214: Actual Expenditure
D215: $0's, Nominal
B216: Planned non-preferred services replacements | C216: number of services
B217: Planned replacement of non-preferred services due to height | C217: number of services
B218: Removal of public lighting switchwire | C218: number of spans removed
B219: Replacement of existing SWER lines with 22kV overhead bare conductor | C219: kms of SWER
B220: Installation of GFN and associated equipment at zone substations | C220: number of zone substations
B221: Replacement of crossarms/insulator sets – pole top fire mitigation | C221: number of crossarms/sets
B222: Replacement of crossarms – based on age and condition | C222: number of crossarms
B223: Replacement of poles – based on age and condition | C223: number of poles
B224: Stake poles – based on age and condition | C224: number of poles
B225: Replacement of undersized poles | C225: number of poles
B226: Stake undersized poles | C226: number of poles
B227: Replacement of overhead conductor – mainly steel | C227: kms
B228: Service line clearance – overhead services requiring relocation | C228: number of services
B229: Service line clearance – overhead services requiring undergrounding | C229: number of services
B230: Replacement of 22kV distribution feeders with ABC/underground cabling | C230: number of feeders
B231: Replacement of SWER with covered carbon core conductor or equivalent | C231: kms
B232: Replacement of SWER with ABC | C232: kms
B233: Replacement of SWER with underground | C233: kms
B234: Replacement of surge diverters (neptune configuration) | C234: number of units
B235: Replacement of surge diverters (single phase or three phase) | C235: number of units
B236: =IF(ISBLANK(B39),"",B39) ->  | C236: =IF(ISBLANK(C73),"",C73) -> 
B243: To enter further activities - please copy row from above and "insert copied cells" into a row above this row.
B246: 7.12.3.3 - UNIT COSTS
B247: Activity | C247: Units | D247: Actual
D248: $0's, Per Unit
B249: Planned non-preferred services replacements | C249: number of services
B250: Planned replacement of non-preferred services due to height | C250: number of services
B251: Removal of public lighting switchwire | C251: number of spans removed
B252: Replacement of existing SWER lines with 22kV overhead bare conductor | C252: kms of SWER
B253: Installation of GFN and associated equipment at zone substations | C253: number of zone substations
B254: Replacement of crossarms/insulator sets – pole top fire mitigation | C254: number of crossarms/sets
B255: Replacement of crossarms – based on age and condition | C255: number of crossarms
B256: Replacement of poles – based on age and condition | C256: number of poles
B257: Stake poles – based on age and condition | C257: number of poles
B258: Replacement of undersized poles | C258: number of poles
B259: Stake undersized poles | C259: number of poles
B260: Replacement of overhead conductor – mainly steel | C260: kms
B261: Service line clearance – overhead services requiring relocation | C261: number of services
B262: Service line clearance – overhead services requiring undergrounding | C262: number of services
B263: Replacement of 22kV distribution feeders with ABC/underground cabling | C263: number of feeders
B264: Replacement of SWER with covered carbon core conductor or equivalent | C264: kms
B265: Replacement of SWER with ABC | C265: kms
B266: Replacement of SWER with underground | C266: kms
... 64 more rows

Sheet 8.1 Income
B1: =IF(dms_DataQuality="backcast",INDEX(dms_Worksheet_List,MATCH(dms_Model,dms_Model_List))&" BACKCAST",INDEX(dms_Worksheet_List,MATCH(dms_Model,dms_Model_List))) -> ANNUAL REPORTING STATEMENT
B2: =INDEX(dms_TradingNameFull_List,MATCH(dms_TradingName,dms_TradingName_List)) -> Endeavour Energy
B3: =CONCATENATE("Annual Reporting RIN Response ",IF(SUM(dms_SingleYear_Model)>0,CONCATENATE(CRY),CONCATENATE(FRCP_y1," to ",dms_MultiYear_FinalYear_Result))) -> Annual Reporting RIN Response 2017-18
B4: 8.1 - INCOME
B6: 8.1.1 - INCOME STATEMENT
C7: Audited Statutory Accounts | D7: Adjustments | E7: Distribution business | F7: Standard Control Services | G7: Alternative Control Services | L7: Negotiated Services
G8: Public Lighting | I8: Other
G9: =IF(dms_Jurisdiction="Vic","Energy efficient","") ->  | H9: =IF(dms_Jurisdiction="Vic","Non-energy efficient","") ->  | I9: Connection services | J9: Metering services | K9: Ancillary network services
C10: $0's, nominal
B11: 8.1.1.1 - REVENUE
B12: Distribution revenue | C12: 884817155.1 | D12: 43543248.03 | E12: 841273907.1 | F12: 841273907.1 | G12: 0 | I12: 0 | J12: 0 | K12: 0
B13: Cross boundary revenue | C13: 0 | D13: 0 | E13: 0 | F13: 0 | G13: 0 | I13: 0 | J13: 0 | K13: 0
B14: Contributions | C14: 177632277.4 | D14: 10915712.59 | E14: 166716564.8 | F14: 147795218.4 | G14: 17511496 | I14: 0 | J14: 1409850.42 | K14: 0
B15: Interest income | C15: 2173201.3 | D15: 58034.77 | E15: 2115166.53 | F15: 2115166.53 | G15: 0 | I15: 0 | J15: 0 | K15: 0
B16: Jurisdictional scheme amounts | C16: 89269244.63 | D16: 3953302.43 | E16: 85315942.2 | F16: 85315942.2 | G16: 0 | I16: 0 | J16: 0 | K16: 0
B17: Profit from sale of fixed assets | C17: 1603390.95 | D17: 1405263.27 | E17: 198127.68 | F17: 198127.68 | G17: 0 | I17: 0 | J17: 0 | K17: 0
B18: TUOS revenue | C18: 204818970.5 | D18: 10534098.93 | E18: 194284871.6 | F18: 194284871.6 | G18: 0 | I18: 0 | J18: 0 | K18: 0
B19: Pass through revenue (F-factor) | C19: 0 | D19: 0 | E19: 0 | F19: 0 | G19: 0 | I19: 0 | J19: 0 | K19: 0
B20: Other Revenue | C20: 153961691.1 | D20: 70875989.89 | E20: 83085701.22 | F20: 7635113.52 | G20: 22790358.33 | I20: 0 | J20: 17381720.7 | K20: 35278508.67
B21: Total revenue | C21: =SUM(C12:C20) -> 1514275931 | D21: 141285649.9 | E21: 1372990281 | F21: 1278618347 | G21: 40301854.33 | H21: 0 | I21: 0 | J21: 18791571.12 | K21: 35278508.67 | L21: 0
B23: 8.1.1.2 - EXPENDITURE
B24: TUOS expenditure | C24: 201914351.7 | D24: 9371024.95 | E24: 192543326.8 | F24: 192543326.8 | G24: 0 | I24: 0 | J24: 0 | K24: 0
B25: Avoided TUOS expenditure | C25: 1445873.33 | D25: 177650 | E25: 1268223.33 | F25: 1268223.33 | G25: 0 | I25: 0 | J25: 0 | K25: 0
B26: Cross boundary expenditure | C26: 0 | D26: 0 | E26: 0 | F26: 0 | G26: 0 | I26: 0 | J26: 0 | K26: 0
B27: Depreciation | C27: 263096478.2 | D27: 12118398.15 | E27: 250978080.1 | F27: 228140461.8 | G27: 15072828.08 | I27: 0 | J27: 7764790.222 | K27: 0
B28: Finance charges | C28: 206536163.2 | D28: 7388841.11 | E28: 199147322.1 | F28: 199147322.1 | G28: 0 | I28: 0 | J28: 0 | K28: 0
B29: Impairment losses | C29: 0 | D29: 0 | E29: 0 | F29: 0 | G29: 0 | I29: 0 | J29: 0 | K29: 0
B30: Jurisdictional scheme amounts | C30: 92312733.84 | D30: 4127354.82 | E30: 88185379.02 | F30: 88185379.02 | G30: 0 | I30: 0 | J30: 0 | K30: 0
B31: Loss from sale of fixed assets | C31: 9296774.36 | D31: 440386.85 | E31: 8856387.51 | F31: 1479253.09 | G31: 0 | I31: 0 | J31: 7377134.42 | K31: 0
B32: Maintenance expenditure | C32: 211634165.2 | D32: 1531902.414 | E32: 210102262.7 | F32: 210102262.7 | G32: 0 | I32: 0 | J32: 0 | K32: 0
B33: Operating expenditure excluding maintenance expenditure | C33: 18349333.58 | D33: 1786557.922 | E33: 16562775.66 | F33: 16562775.66 | G33: 0 | I33: 0 | J33: 0 | K33: 0
B34: Other | C34: 612624920.2 | D34: 518859453.3 | E34: 93765466.91 | F34: 30657129.34 | G34: 14335117.78 | I34: 0 | J34: 17572224.32 | K34: 31200995.47
B35: Total expenditure | C35: =SUM(dms_080101_02_audited_Values) -> 1617210794 | D35: =SUM(D24:D34) -> 555801569.5 | E35: =SUM(dms_080101_02_dnsp_Values) -> 1061409224 | F35: =SUM(dms_080101_02_SCS_Values) -> 968086133.8 | G35: =SUM(G24:G34) -> 29407945.86 | H35: =SUM(H24:H34) -> 0 | I35: =SUM(dms_080101_02_connection_Values) -> 0 | J35: =SUM(dms_080101_02_metering_Values) -> 32714148.97 | K35: =SUM(dms_080101_02_ancillary_Values) -> 31200995.47 | L35: =SUM(dms_080101_02_negotiated_Values) -> 0
B37: 8.1.1.3 - PROFIT
B38: Profit before tax (PBT) | C38: =C21-SUM(C24:C34) -> -102934862.7 | D38: -414515919.6 | E38: 311581056.9 | F38: 310532213.1 | G38: 10893908.47 | H38: 0 | I38: 0 | J38: -13922577.85 | K38: 4077513.203 | L38: 0
B39: Income tax expenses (/ benefit) | C39: 4542.2 | D39: -253.2390134 | E39: 4288.960987 | F39: 4274.523491 | G39: 149.9563192 | I39: 0 | J39: -191.6464172 | K39: 56.12759397
B40: Profit after tax | C40: =C38-C39 -> -102939404.9 | D40: -414515666.4 | E40: 311576768 | F40: 310527938.6 | G40: 10893758.51 | H40: 0 | I40: 0 | J40: -13922386.2 | K40: 4077457.076 | L40: =L38-L39 -> 0

Sheet 8.2 Capex
B1: =IF(dms_DataQuality="backcast",INDEX(dms_Worksheet_List,MATCH(dms_Model,dms_Model_List))&" BACKCAST",INDEX(dms_Worksheet_List,MATCH(dms_Model,dms_Model_List))) -> ANNUAL REPORTING STATEMENT
B2: =INDEX(dms_TradingNameFull_List,MATCH(dms_TradingName,dms_TradingName_List)) -> Endeavour Energy
B3: =CONCATENATE("Annual Reporting RIN Response ",IF(SUM(dms_SingleYear_Model)>0,CONCATENATE(CRY),CONCATENATE(FRCP_y1," to ",dms_MultiYear_FinalYear_Result))) -> Annual Reporting RIN Response 2017-18
B4: 8.2 - CAPEX
B6: Instructions
B7: Reported expenditure must EXCLUDE capital contributions (except tables 8.2.1 and 8.2.5 which should include all capital contributions).
B8: Forecast expenditure is to be taken from Australian Distribution Co.'s distribution determination.
B9: If allocating based on assumptions then provide method in Basis of Preparation. All adjustments must be explained in Basis of Preparation with supporting documentation attached.
B11: For tables 8.2.1 and 8.2.3: Reported expenditure must INCLUDE any profit margins or management fees paid directly or indirectly to related party contractors (not including actual incurred expenses of the related party contractor) for the regulatory reporting period. 'Related Party Margin Expenditure' must COMPRISE ONLY profit margins or management fees paid directly or indirectly to related party contractors (not including actual incurred expenses of the related party contractor) for the regulatory reporting period.
B13: 8.2.1 - CAPEX BY PURPOSE - STANDARD CONTROL SERVICES
B15: Each line item in this table must INCLUDE the capital contributions. Total capital contributions should also be identified in the last item in the table.
C17: EXPENDITURE
C18: CPI adjusted Forecast | D18: Actual | E18: Difference | F18: Related Party Margin | G18: Voltage level
G19: Subtransmission | H19: HV | I19: LV | J19: Other
B20: Description | C20: $0's, nominal | E20: (%) | F20: $0's, nominal
B21: Augmentation | C21: 58695731.09 | D21: =SUM(G21:J21) -> 35669539 | E21: =IF(C21=0,1,(D21-C21)/C21*1) -> -0.39229756 | G21: 30319228 | H21: 4715573 | I21: 634738 | J21: 0
B22: Connections | C22: 16830319.77 | D22: =SUM(G22:J22) -> 21420016 | E22: =IF(C22=0,1,(D22-C22)/C22*1) -> 0.2727040419 | G22: 0 | H22: 18515351 | I22: 2904665 | J22: 0
B23: Replacement | C23: 110052805.3 | D23: 143673734.9 | E23: 0.3054981608 | G23: 48014028.59 | H23: 42581298.13 | I23: 51176809.63 | J23: 1901598.511
B24: Reliability improvement | C24: 5519033.431 | D24: 3461471 | E24: -0.3728120978 | G24: 0 | H24: 3461471 | I24: 0 | J24: 0
B25: Other System Assets | C25: 89404136.72 | D25: 177481548.4 | E25: 0.9851603615 | G25: 31247051.78 | H25: 53246182.83 | I25: 69205996.92 | J25: 23782316.83
B26: Non-Network | C26: 31256765.39 | D26: =SUM(G26:J26) -> 63830171.16 | E26: 1.042123373 | J26: 63830171.16
B27: Capitalised overheads | C27: 76591453.5 | D27: 53057014 | E27: -0.3072723969 | J27: 53057014
D28: 0 | E28: 1
D29: 0 | E29: 1
D30: =SUM(G30:J30) -> 0 | E30: 1
D31: 0 | E31: 1
D32: 0 | E32: 1
D33: 0 | E33: 1
D34: 0 | E34: 1
D35: 0 | E35: 1
B36: Capital contributions included in the above | C36: 85600921.6 | D36: 147795218.4 | E36: 0.726561065 | G36: 31247051.78 | H36: 47271402.83 | I36: 68754849.92 | J36: 521913.8287
B37: Total | C37: =SUM(C21:C35) -> 388350245.2 | D37: 498593494.4 | E37: =IF(C37=0,1,(D37-C37)/C37*1) -> 0.2838758327 | G37: =SUM(G21:G35) -> 109580308.4 | H37: =SUM(H21:H35) -> 122519876 | I37: 123922209.6 | J37: 142571100.5
B40: 8.2.2 - CAPEX BY PURPOSE - MATERIAL DIFFERENCE EXPLANATION
B42: Where the difference between forecast and actual expenditure shown in table 8.2.1 is a Material Difference please explain the main factors driving the difference.
B44: Description | C44: Reason for material difference
B45: Augmentation | C45: Below the forecast due to lower than expected major projects and HV developments.
B46: Connections | C46: Above the forecast due to higher than expected industrial & commercial and URD.
B47: Replacement | C47: Above the forecast due to higher than expected distribution refurbishment and transmission mains/subs expenditure.
B48: Reliability improvement | C48: Below the forecast due to lower than expected HV reliability developments
B49: Other System Assets | C49: Above the forecast due to capital contributions and direct capital overheads being reported in the actuals within other system assets whereas the forecast for direct capital overheads was within capitalised overheads.
B50: Non-Network | C50: Investement in information technology with development of an ADMS, SAP enterprise system and security improvements.
B51: Capitalised overheads | C51: Below the forecast due to direct capital overheads being reported in the actuals within other system assets. The remainder of the variance is due to lower indirect capitalised overheads as a result of a lower eligible operating overhead pool.
B62: 8.2.3 - CAPEX OTHER
C63: EXPENDITURE
C64: CPI adjusted Forecast | D64: Actual | E64: Difference | F64: Related Party Margin | G64: Voltage level
G65: Subtransmission | H65: HV | I65: LV | J65: Other
C66: $0's, nominal | E66: (%) | F66: $0's, nominal
B67: Public lighting
B68: =IF(dms_Jurisdiction="Vic","Energy Efficient", "Total") -> Total | C68: 0 | D68: =SUM(G68:J68) -> 8218966.45 | E68: =IF(C68=0,1,((D68-C68)/C68)*1) -> 1 | F68: 0 | G68: 0 | H68: 0 | I68: 0 | J68: 8218966.45
B69: =IF(dms_Jurisdiction="Vic","Non-energy efficient", "") ->  | D69: =SUM(G69:J69) -> 0 | E69: =IF(C69=0,1,((D69-C69)/C69)*1) -> 1
B70: Alternative Control Services
B71: Connection services | C71: 0 | D71: =SUM(G71:J71) -> 0 | E71: =IF(C71=0,1,((D71-C71)/C71)*1) -> 1 | F71: 0 | G71: 0 | H71: 0 | I71: 0 | J71: 0
B72: Metering services | C72: 0 | D72: 1309989.756 | E72: =IF(C72=0,1,((D72-C72)/C72)*1) -> 1 | F72: 0 | G72: 0 | H72: 0 | I72: 0 | J72: 1309989.756
B73: Ancillary network services | C73: 0 | D73: 0 | E73: =IF(C73=0,1,((D73-C73)/C73)*1) -> 1 | F73: 0 | G73: 0 | H73: 0 | I73: 0 | J73: 0
B74: Negotiated Services
B75: Negotiated services | C75: 0 | D75: =SUM(G75:J75) -> 0 | E75: =IF(C75=0,1,((D75-C75)/C75)*1) -> 1 | F75: 0 | G75: 0 | H75: 0 | I75: 0 | J75: 0
B76: Total | C76: =SUM(C68:C69,C71:C73,C75) -> 0 | D76: =SUM(D68:D69,D71:D73,D75) -> 9528956.206 | E76: =IF(C76=0,1,((D76-C76)/C76)*1) -> 1 | G76: =SUM(G68:G69,G71:G73,G75) -> 0 | H76: =SUM(H68:H69,H71:H73,H75) -> 0 | I76: =SUM(I68:I69,I71:I73,I75) -> 0 | J76: =SUM(J68:J69,J71:J73,J75) -> 9528956.206
B80: 8.2.4 - CAPEX BY ASSET CLASS
B82: Australian Distribution Co. to enter in Table 8.2.4 each Asset Class specified in its current determination as listed in the AER's final decision in its Roll Forward Model and Post-tax Revenue Model and enter information against that Asset Class.
C84: CPI adjusted Forecast | D84: Actual | E84: Difference | F84: Movements in provisions allocated to as-incurred capex
B85: Asset class | C85: $0's, nominal | E85: (%) | F85: $0's, nominal
B86: Sub-transmission lines and cables | C86: 31443176.08 | D86: 21546750.88 | E86: =IF(C86=0,1,((D86-C86)/C86)*1) -> -0.3147399987 | F86: -502992.8252
B87: Distribution lines and cables | C87: 103129409 | D87: 54723910.66 | E87: =IF(C87=0,1,((D87-C87)/C87)*1) -> -0.4693665834 | F87: -1277488.87
B88: Substations | C88: 108813745.9 | D88: 111235620.8 | E88: 0.02225706827 | F88: -2596712.585
B89: Transformers | C89: 4258772.86 | D89: 16811274.4 | E89: 2.947445649 | F89: -392446.6594
B90: Low Voltage lines and cables | C90: 16887042.63 | D90: 72612275.83 | E90: 3.299881123 | F90: -1695079.41
B91: Customer metering and Load control | C91: 485782.0273 | D91: 681086.869 | E91: 0.4020421314 | F91: -15899.46486
B92: Communication | C92: 4508096.965 | D92: 8106209.08 | E92: 0.7981443487 | F92: -189233.4036
B93: Land | C93: 204524.926 | D93: 0 | E93: -1 | F93: 0
B94: Easements | C94: 0 | D94: 91990.31806 | E94: 1 | F94: -2147.445349
B95: Equity raising costs | C95: 0 | D95: 0 | E95: 1 | F95: 0
B96: Emergency Spares (Major Plant, Excludes Inventory) | C96: 1762007.803 | D96: 1158986.486 | E96: -0.3422353273 | F96: -27055.6749
B97: Information & Communication Technology | C97: 20975051.15 | D97: 48526203.63 | E97: 1.313520157 | F97: -1132808.023
B98: Furniture, fittings, plant and equipment | C98: 3461950.589 | D98: 3504942.18 | E98: 0.01241831455 | F98: -81820.26046
B99: Motor Vehicles | C99: 3307704.18 | D99: 5420970.51 | E99: 0.6388921786 | F99: -126548.5124
B100: Buildings | C100: 3512059.467 | D100: 6361253.36 | E100: 0.8112601508 | F100: -148498.7141
B101: Land (non-system) | C101: 0 | D101: 16801.48 | E101: 1 | F101: -392.2180165
B102: Other non system assets | C102: 0 | D102: 0 | E102: 1 | F102: 0
E103: 1
E104: 1
E105: 1
E106: 1
E107: 1
E108: 1
E109: 1
E110: 1
E111: 1
E112: 1
E113: 1
E114: 1
E115: 1
E116: =IF(C116=0,1,((D116-C116)/C116)*1) -> 1
E117: 1
E118: 1
E119: 1
E120: 1
E121: 1
E122: 1
E123: 1
E124: 1
E125: 1
E126: 1
E127: 1
E128: 1
E129: 1
E130: 1
E131: 1
E132: 1
E133: 1
E134: 1
E135: 1
B136: Total | C136: =SUM(C86:C135) -> 302749323.6 | D136: =SUM(D86:D135) -> 350798276.5 | E136: 0.1587087046 | F136: =SUM(F86:F135) -> -8189124.065
B139: 8.2.5 - CAPITAL CONTRIBUTIONS BY ASSET CLASS
C140: CPI Adjusted Forecast | D140: Actual | E140: Difference
B141: Asset class | C141: $0's, nominal | E141: (%)
B142: =IF(ISBLANK(B86),"",B86) -> Sub-transmission lines and cables | D142: 14022598.25 | E142: =IF(C142=0,1,((D142-C142)/C142)*1) -> 1
B143: Distribution lines and cables | D143: 46038300.36 | E143: =IF(C143=0,1,((D143-C143)/C143)*1) -> 1
B144: Substations | D144: 17224453.53 | E144: 1
B145: Transformers | D145: 1233102.471 | E145: 1
B146: Low Voltage lines and cables | D146: 68754849.92 | E146: 1
B147: Customer metering and Load control | D147: 0 | E147: 1
B148: Communication | D148: 0 | E148: 1
B149: Land | D149: 529746.6607 | E149: 1
B150: Easements | D150: 0 | E150: 1
B151: Equity raising costs | D151: 0 | E151: 1
B152: Emergency Spares (Major Plant, Excludes Inventory) | D152: 0 | E152: 1
B153: Information & Communication Technology | D153: 0 | E153: 1
B154: Furniture, fittings, plant and equipment | D154: 0 | E154: 1
B155: Motor Vehicles | D155: 0 | E155: 1
B156: Buildings | D156: 0 | E156: 1
B157: Land (non-system) | D157: 0 | E157: 1
B158: Other non system assets | D158: -7832.832 | E158: 1
E159: 1
E160: 1
E161: 1
E162: 1
E163: 1
E164: 1
E165: 1
E166: 1
E167: 1
E168: 1
E169: 1
E170: 1
E171: =IF(C171=0,1,((D171-C171)/C171)*1) -> 1
E172: 1
E173: 1
B174: =IF(ISBLANK(B118),"",B118) ->  | E174: 1
E175: 1
E176: 1
E177: 1
E178: 1
E179: 1
E180: 1
E181: =IF(C181=0,1,((D181-C181)/C181)*1) -> 1
E182: 1
E183: 1
E184: 1
E185: 1
E186: 1
E187: 1
E188: 1
E189: 1
E190: 1
E191: 1
B192: Total | C192: =SUM(C142:C191) -> 0 | D192: =SUM(D142:D191) -> 147795218.4 | E192: 1
B195: 8.2.6 - DISPOSALS BY ASSET CLASS
C196: CPI Adjusted Forecast | D196: Actual | E196: Difference
B197: Asset class | C197: $0's, nominal | E197: (%)
B198: =IF(ISBLANK(B86),"",B86) -> Sub-transmission lines and cables | C198: 0 | D198: 0 | E198: =IF(C198=0,1,((D198-C198)/C198)*1) -> 1
B199: Distribution lines and cables | C199: 0 | D199: 0 | E199: =IF(C199=0,1,((D199-C199)/C199)*1) -> 1
B200: Substations | C200: 0 | D200: 0 | E200: 1
B201: Transformers | C201: 0 | D201: 474599.99 | E201: 1
B202: Low Voltage lines and cables | C202: 0 | D202: 0 | E202: 1
B203: Customer metering and Load control | C203: 0 | D203: 0 | E203: 1
B204: Communication | C204: 0 | D204: 0 | E204: 1
B205: Land | C205: 0 | D205: 3072377.56 | E205: 1
B206: Easements | C206: 0 | D206: 0 | E206: 1
B207: Equity raising costs | C207: 0 | D207: 0 | E207: 1
B208: Emergency Spares (Major Plant, Excludes Inventory) | C208: 0 | D208: 0 | E208: 1
B209: Information & Communication Technology | C209: 0 | D209: 0 | E209: 1
B210: Furniture, fittings, plant and equipment | C210: 0 | D210: 0 | E210: 1
B211: Motor Vehicles | C211: 0 | D211: 171454.353 | E211: 1
B212: Buildings | C212: 0 | D212: 0 | E212: 1
B213: Land (non-system) | C213: 0 | D213: 0 | E213: 1
B214: Other non system assets | C214: 0 | D214: 154.719458 | E214: 1
E215: 1
E216: 1
E217: 1
E218: 1
E219: 1
E220: 1
E221: 1
E222: 1
E223: 1
E224: 1
E225: 1
E226: 1
E227: 1
E228: =IF(C228=0,1,((D228-C228)/C228)*1) -> 1
... 20 more rows

Sheet 8.4 Opex
B1: =IF(dms_DataQuality="backcast",INDEX(dms_Worksheet_List,MATCH(dms_Model,dms_Model_List))&" BACKCAST",INDEX(dms_Worksheet_List,MATCH(dms_Model,dms_Model_List))) -> ANNUAL REPORTING STATEMENT
B2: =INDEX(dms_TradingNameFull_List,MATCH(dms_TradingName,dms_TradingName_List)) -> Endeavour Energy
B3: =CONCATENATE("Annual Reporting RIN Response ",IF(SUM(dms_SingleYear_Model)>0,CONCATENATE(CRY),CONCATENATE(FRCP_y1," to ",dms_MultiYear_FinalYear_Result))) -> Annual Reporting RIN Response 2017-18
B4: 8.4 OPEX
B6: Instructions
B7: Forecast expenditure is to be taken from Australian Distribution Co.'s distribution determination.
B8: If allocating based on assumptions then provide method in Basis of Preparation. All adjustments must be explained in Basis of Preparation with supporting documentation attached.
B10: 8.4.1 - OPERATING & MAINTENANCE EXPENDITURE - BY PURPOSE
B12: Australian Distribution Co. is to list the operating expenditure categories identified in Australian Distribution Co.'s regulatory proposal at table 3.2.1.1 current opex categories and cost allocations.
B13: Australian Distribution Co. must specify any expenditure category where the expense is more than 5 per cent of the total standard control services operating expenditure.
B14: Reported operating expenditure must INCLUDE any profit margins or management fees paid directly or indirectly to related party contractors (not including actual incurred expenditure of the related party contractor) for the regulatory reporting period.
C16: Audited Statutory Accounts | D16: Adjustments | E16: Distribution business | F16: Standard Control Services | I16: Alternative Control Services | N16: Negotiated Services
F17: CPI Adjusted Forecast | G17: Actual | H17: Difference | I17: Public Lighting | K17: Other
I18: =IF(dms_Jurisdiction="Vic","Energy efficient","") ->  | J18: =IF(dms_Jurisdiction="Vic","Non-energy efficient","") ->  | K18: Connection services | L18: Metering services | M18: Ancillary network services
B19: Opex category | C19: $0's, nominal | H19: % | I19: $0's, nominal
B20: Vegetation management | C20: 50604841.41 | D20: 8845096.509 | E20: 41759744.9 | F20: 42736248.6 | G20: 41759744.9 | H20: =IF(F20=0,1,((G20-F20)/F20)*1) -> -0.02284954187 | I20: 0 | K20: 0 | L20: 0 | M20: 0
B21: Maintenance | C21: 59640205.4 | D21: 10424365.69 | E21: 49215839.71 | F21: 50366695.63 | G21: 49215839.71 | H21: -0.02284954187 | I21: 0 | K21: 0 | L21: 0 | M21: 0
B22: Emergency response | C22: 19147941.3 | D22: 3346821.846 | E22: 15801119.45 | F22: 16170610.5 | G22: 15801119.45 | H22: -0.02284954187 | I22: 0 | K22: 0 | L22: 0 | M22: 0
B23: Non-network | C23: 75423451.67 | D23: 13183080.72 | E23: 62240370.95 | F23: 63695790.58 | G23: 62240370.95 | H23: -0.02284954187 | I23: 0 | K23: 0 | L23: 0 | M23: 0
B24: network overheads | C24: 81115744.15 | D24: 14178022.6 | E24: 66937721.55 | F24: 58484330.04 | G24: 57147989.89 | H24: -0.02284954187 | I24: 1916492.087 | K24: 0 | L24: 1012910.147 | M24: 6860329.422
B25: corporate overheads | C25: 140766262.9 | D25: 24604190.94 | E25: 116162071.9 | F25: 95582214.03 | G25: 93398204.23 | H25: -0.02284954187 | I25: 6305061.12 | K25: 0 | L25: 6146997.542 | M25: 10311809.05
B26: Metering | C26: 12617740.68 | D26: 2205424.045 | E26: 10412316.63 | F26: 0 | G26: 0 | H26: 1 | I26: 0 | K26: 0 | L26: 10412316.63 | M26: 0
B27: Public Lighting | C27: 7408473.553 | D27: 1294908.98 | E27: 6113564.574 | F27: 0 | G27: 0 | H27: 1 | I27: 6113564.574 | K27: 0 | L27: 0 | M27: 0
B28: Fee and quoted | C28: 17000297.42 | D28: 2971440.423 | E28: 14028857 | F28: 0 | G28: 0 | H28: 1 | I28: 0 | K28: 0 | L28: 0 | M28: 14028857
B29: Balancing Item | C29: -75423451.67 | D29: -13183080.72 | E29: -62240370.95 | F29: -63695790.58 | G29: -62240370.95 | H29: -0.02284954187 | I29: 0 | K29: 0 | L29: 0 | M29: 0
H30: 1
H31: 1
H32: 1
H33: 1
H34: 1
H35: =IF(F35=0,1,((G35-F35)/F35)*1) -> 1
H36: 1
H37: 1
H38: 1
H39: 1
H40: 1
H41: =IF(F41=0,1,((G41-F41)/F41)*1) -> 1
H42: 1
H43: 1
H44: 1
H45: 1
H46: 1
H47: 1
H48: 1
H49: 1
H50: 1
H51: 1
H52: 1
H53: 1
H54: 1
H55: 1
H56: 1
H57: 1
H58: 1
H59: 1
H60: 1
H61: 1
H62: 1
H63: 1
H64: 1
H65: 1
H66: 1
H67: 1
H68: 1
H69: 1
B70: Total | C70: =SUM(C20:C69) -> 388301506.8 | D70: 67870271.04 | E70: 320431235.8 | F70: 263340098.8 | G70: 257322898.2 | H70: -0.02284954187 | I70: =SUM(I20:I69) -> 14335117.78 | J70: 0 | K70: 0 | L70: 17572224.32 | M70: 31200995.47 | N70: 0
B73: 8.4.2 - OPERATING & MAINTENANCE EXPENDITURE - BY PURPOSE - MARGINS ONLY
B75: "Related party margin expenditure' must COMPRISE ONLY profit margins or management fees paid directly or indirectly to related party contractors (for expenditure that is not an actual incurred expenditure of the related party contractor) for the regulatory reporting period.
C77: Audited Statutory Accounts | D77: Adjustments | E77: Distribution business | F77: Standard Control Services | I77: Alternative Control Services | N77: Negotiated Services
F78: CPI Adjusted Forecast | G78: Actual | H78: Difference | I78: Public Lighting | K78: Other
I79: =IF(dms_Jurisdiction="Vic","Energy efficient","") ->  | J79: =IF(dms_Jurisdiction="Vic","Non-energy efficient","") ->  | K79: Connection services | L79: Metering services | M79: Ancillary network services
B80: Opex category | C80: $0's, nominal | G80: $0's, nominal | H80: per cent | I80: $0's, nominal
B81: =IF(ISBLANK(B20),"",B20) -> Vegetation management | C81: 0 | D81: 0 | E81: 0 | F81: 0 | G81: 0 | H81: =IF(F81=0,1,((G81-F81)/F81)*1) -> 1 | I81: 0 | J81: 0 | K81: 0 | L81: 0 | M81: 0 | N81: 0
B82: Maintenance | C82: 0 | D82: 0 | E82: 0 | F82: 0 | G82: 0 | H82: 1 | I82: 0 | J82: 0 | K82: 0 | L82: 0 | M82: 0 | N82: 0
B83: Emergency response | C83: 0 | D83: 0 | E83: 0 | F83: 0 | G83: 0 | H83: 1 | I83: 0 | J83: 0 | K83: 0 | L83: 0 | M83: 0 | N83: 0
B84: Non-network | C84: 0 | D84: 0 | E84: 0 | F84: 0 | G84: 0 | H84: 1 | I84: 0 | J84: 0 | K84: 0 | L84: 0 | M84: 0 | N84: 0
B85: network overheads | C85: 0 | D85: 0 | E85: 0 | F85: 0 | G85: 0 | H85: 1 | I85: 0 | J85: 0 | K85: 0 | L85: 0 | M85: 0 | N85: 0
B86: corporate overheads | C86: 0 | D86: 0 | E86: 0 | F86: 0 | G86: 0 | H86: 1 | I86: 0 | J86: 0 | K86: 0 | L86: 0 | M86: 0 | N86: 0
B87: Metering | C87: 0 | D87: 0 | E87: 0 | F87: 0 | G87: 0 | H87: 1 | I87: 0 | J87: 0 | K87: 0 | L87: 0 | M87: 0 | N87: 0
B88: Public Lighting | C88: 0 | D88: 0 | E88: 0 | F88: 0 | G88: 0 | H88: =IF(F88=0,1,((G88-F88)/F88)*1) -> 1 | I88: 0 | J88: 0 | K88: 0 | L88: 0 | M88: 0 | N88: 0
B89: Fee and quoted | C89: 0 | D89: 0 | E89: 0 | F89: 0 | G89: 0 | H89: 1 | I89: 0 | J89: 0 | K89: 0 | L89: 0 | M89: 0 | N89: 0
B90: Balancing Item | C90: 0 | D90: 0 | E90: 0 | F90: 0 | G90: 0 | H90: 1 | I90: 0 | J90: 0 | K90: 0 | L90: 0 | M90: 0 | N90: 0
H91: 1
H92: 1
H93: 1
H94: 1
H95: 1
H96: 1
H97: =IF(F97=0,1,((G97-F97)/F97)*1) -> 1
H98: 1
H99: 1
H100: 1
H101: 1
H102: 1
H103: =IF(F103=0,1,((G103-F103)/F103)*1) -> 1
H104: 1
H105: 1
H106: 1
H107: 1
H108: 1
H109: 1
H110: 1
H111: 1
H112: 1
H113: 1
H114: 1
H115: 1
H116: 1
H117: 1
H118: 1
H119: 1
H120: 1
H121: 1
H122: 1
H123: 1
H124: 1
H125: 1
H126: 1
H127: 1
H128: 1
H129: 1
H130: 1
B131: Total | C131: =SUM(C81:C130) -> 0 | D131: =SUM(D81:D130) -> 0 | E131: =SUM(E81:E130) -> 0 | F131: =SUM(F81:F130) -> 0 | G131: =SUM(G81:G130) -> 0 | H131: 1 | I131: =SUM(I81:I130) -> 0 | J131: 0 | K131: 0 | L131: 0 | M131: 0 | N131: 0
B134: 8.4.3 - OPERATING & MAINTENANCE EXPENDITURE - EXPLANATION OF MATERIAL DIFFERENCE
B136: Where the difference between forecast and actual expenditure shown in table 8.4.1, column I is a Material Difference please explain the main factors driving the difference.
B138: Category | C138: Explanation
B139: Variances 2% lower than forecast are not material

Sheet 9.5 TUoS
B1: =IF(dms_DataQuality="backcast",INDEX(dms_Worksheet_List,MATCH(dms_Model,dms_Model_List))&" BACKCAST",INDEX(dms_Worksheet_List,MATCH(dms_Model,dms_Model_List))) -> ANNUAL REPORTING STATEMENT
B2: =INDEX(dms_TradingNameFull_List,MATCH(dms_TradingName,dms_TradingName_List)) -> Endeavour Energy
B3: =CONCATENATE("Annual Reporting RIN Response ",IF(SUM(dms_SingleYear_Model)>0,CONCATENATE(CRY),CONCATENATE(FRCP_y1," to ",dms_MultiYear_FinalYear_Result))) -> Annual Reporting RIN Response 2017-18
B4: 9.5 - TUoS AUDIT (t-2)
B6: This template collects information for annual pricing proposals from Victorian businesses only.
B8: 9.5.1 - TUOS CHARGES (AEMO)
F9: =CRY -> 2017-18
E16: Total | F16: =SUM(F10:F15) -> 0
B19: 9.5.2 - TRANSMISSION CONNECTION FEES
F20: =CRY -> 2017-18
E27: Total | F27: =SUM(F21:F26) -> 0
B30: 9.5.3 - CROSS BOUNDARY NETWORK CHARGES
C31: Amount (payable)/receivable
C32: $0's, nominal
C33: HV crossings | D33: Subtransmission crossings | E33: TUoS Adjustment | F33: Total
B34: Distribution Business | F34: =CRY -> 2017-18
F35: =IF((SUM(C35:E35)=0),"",(SUM(C35:E35))) -> 
F36: =IF((SUM(C36:E36)=0),"",(SUM(C36:E36))) -> 
B43: Total
B46: 9.5.4 - PAYMENTS TO EMBEDDED GENERATORS
B47: 9.5.4.1 - AVOIDED TRANSMISSION COSTS | F47: 2016-17
B56: Total | F56: =SUM(F48:F55) -> 0
B57: 9.5.4.2 - AVOIDED TUoS USAGE CHARGES | F57: 2016-17
B66: Total | F66: =SUM(F58:F65) -> 0
B67: Total payments to embedded generators | F67: =F66+F56 -> 0

Sheet NSP Amendments
D2: Amended Table | E2: Comments
D3: 3.6.7.3 - Call Centre Performance | E3: Endeavour Eenrgy has detected a formula error in the Annual Reporting RIN template under table 3.6.7.3. which has resulted in the populated figure for ‘total calls’ being picked up as the same as the ‘calls answered within 30s’ figure.
E4: The AER has confirmed that they consider the cells in question to be outside the scope of the audit, as they are based on a formula, rather than an input.
E5: The correct amounts should be: cell D63 - 189,339 and cell D64 - 186,189

Sheet Sheet1
